Workbook

Sheet Model Description
B2: Tab | C2: Description
B3: Summary | C3: This tab allows the user to input the year, baseline region, and other assumptions. Includes outputs of average bills for current and inputted year.
C4: Bundled represents customers that we procure gas for. System refers to all customer classes combined. Total System for a customer class includes Bundled + Unbundled.
B5: Authorized Rev Req | C5: This tab shows the authorized revenue requirement for each line item that is in existing rates.
B6: Incremental Rev Req | C6: This tab contains several sections: (i) Approved Application(s), (ii) Pending Application(s) Not Yet Approved, and (iii) Applications Projected to be Filed.
C7: The Approved Application(s) section shows the authorized revenue requirement for each line item forecasted out by year.
C8: The Pending Application(s) Not Yet Approved section includes pending advice letters or applications for new proceedings and any pending increases or decreases to current line items.
B9: SAR and RAR | C9: This tab shows the total revenue and the allocated revenue used to calculate Residential rates for the inputted year.
C10: The Residential percent allocations for the Revenue Recovery Mechanisms are estimated using the detailed Cost Allocation and Rate Design Model.
B11: Res Bill Impact | C11: This tab shows the calculation for Residential rates and average monthly bills.
B12: Hypothetical Tabs | C12: These tabs allow the user to estimate rate impacts from hypothetical revenue requirement changes relative to current rates.
B14: *IMPORTANT NOTE: | C14: CRT model uses current year CRT-calculated rates for comparison with future rates. For Hypothetical tabs, CRT uses current rates.

Sheet Summary
B1: Inputs: | G1: Assumptions:
C2: =CONCATENATE("Rate Impact for Year (",SetUp!J5,"-",SetUp!J9,")") -> Rate Impact for Year (2025-2029) | D2: 2025 | G2: Current Effective Rates | I2: =CurrentEffectiveRateDate -> 2025-09-01
C3: Baseline Region - (Residential bill) | D3: 1 | G3: Sales Forecast | I3: 2024
G4: Residential bill calculated using | I4: Schedule GR, Basic, Bundled, Single Family
G5: Non-CARE bill impact calculated with average summer usage of | K5: =IF($D$3="ALL",SUMPRODUCT('Res Bill Impact'!Q22:Q25,'Res Bill Impact'!U22:U25),VLOOKUP($D$3,'Res Bill Impact'!$P$22:$T$25,2,FALSE)) -> 22.68195339 | L5: therms per month
B6: Pending Proceedings | D6: Include in Impact (Y) | E6: Applicable Year(s) | G6: Non-CARE bill impact calculated with average winter usage of | K6: =IF($D$3="ALL",SUMPRODUCT('Res Bill Impact'!R22:R25,'Res Bill Impact'!U22:U25),VLOOKUP(D$3,'Res Bill Impact'!$P$22:$T$25,3,FALSE)) -> 45.72507267 | L6: therms per month
B7: ='Incremental Rev Req'!A122 -> DIMP Interim Recovery | D7: Y | E7: 2026 | G7: CARE bill impact calculated with average summer usage of | K7: =IF($D$3="ALL",SUMPRODUCT('Res Bill Impact'!S22:S25,'Res Bill Impact'!V22:V25),VLOOKUP($D$3,'Res Bill Impact'!$P$22:$T$25,4,FALSE)) -> 17.60404118 | L7: therms per month
B8: ='Incremental Rev Req'!A123 -> Catastrophic Event Memorandum Account (CEMA) | D8: Y | E8: 2026 | G8: CARE bill impact calculated with average winter usage of | K8: =IF($D$3="ALL",SUMPRODUCT('Res Bill Impact'!T22:T25,'Res Bill Impact'!V22:V25),VLOOKUP($D$3,'Res Bill Impact'!$P$22:$T$25,5,FALSE)) -> 33.00381282 | L8: therms per month
B9: ='Incremental Rev Req'!A124 -> COVID-19 Pandemic Protections Memorandum Account (CPPMA) | D9: Y | E9: 2026 | G9: Average monthly usage is for all customers (Non-CARE and CARE) based on seasonal usage in | L9: 2025
B10: ='Incremental Rev Req'!A125 -> DIMPBA | D10: Y | E10: 2026 | G10: Summer season | I10: 6 | J10: months
B11: ='Incremental Rev Req'!A126 -> Natural Gas Leak Abatement | D11: Y | E11: 2025-2026 | G11: Winter Season | I11: =12-I10 -> 6 | J11: months
B12: ='Incremental Rev Req'!A127 -> 2026 Cost of Capital | D12: Y | E12: 2026
B13: ='Incremental Rev Req'!A128 -> TIMPBA Application | D13: Y | E13: 2026
B14: ='Incremental Rev Req'!A129 -> 2024 GRC Track 3 (PSEP and WMPMA) | D14: Y | E14: 2026
B15: ='Incremental Rev Req'!A130 -> Application for Incremental Funding For CIS Replacement | D15: Y | E15: 2026 and 2027
B16: ='Incremental Rev Req'!A131 -> Low Income Bridge Application | D16: Y | E16: 2027
B17: ='Incremental Rev Req'!A132 -> Line Extension Allowance Application | D17: Y | E17: 2028 and 2029
B18: ='Incremental Rev Req'!A133 -> Angeles Link Phase 1 | D18: Y | E18: 2027
B19: ='Incremental Rev Req'!A134 -> MASS Energy | D19: Y | E19: 2027
B20: ='Incremental Rev Req'!A135 -> Angeles Link Phase 2 | D20: Y | E20: 2026,2027 and 2028
B21: Outputs:
D22: (A) | E22: (B) | F22: (C) | G22: (D) | H22: (D)/(A) | I22: (D)/(B) | J22: (D)/(C) | N22: (A) | O22: (B) | P22: (C) | Q22: (D) | R22: (D)/(A) | S22: (D)/(B) | T22: (D)/(C)
B23: Bundled Average Rates - ¢/therm | L23: Total System (Bundled and Unbundled) Average Rates - ¢/th
B24: Customer Group | D24: =BOYEffectiveRateDate -> 2025-01-01 | E24: =CurrentEffectiveRateDate -> 2025-09-01 | F24: =$D$2&" Authorized" -> 2025 Authorized | G24: =$D$2&" w/Pending" -> 2025 w/Pending | H24: =CONCATENATE("% Change over ",TEXT(BOYEffectiveRateDate,"m/d/yyyy")) -> % Change over 1/1/2025 | I24: =CONCATENATE("% Change over ",TEXT(CurrentEffectiveRateDate,"m/d/yyyy")) -> % Change over 9/1/2025 | J24: % Change over Authorized | L24: Customer Group | N24: =$D$24 -> 2025-01-01 | O24: =$E$24 -> 2025-09-01 | P24: =$D$2&" Authorized" -> 2025 Authorized | Q24: =$D$2&" w/Pending" -> 2025 w/Pending | R24: =$H$24 -> % Change over 1/1/2025 | S24: =$I$24 -> % Change over 9/1/2025 | T24: % Change over Authorized
B25: Residential | D25: 167.2677263 | E25: ='SAR and RAR'!G28 -> 189.717632 | F25: ='SAR and RAR'!H28 -> 189.717632 | G25: ='SAR and RAR'!I28 -> 194.8487925 | H25: =$G25/D25-1 -> 0.1648917385 | I25: =$G25/E25-1 -> 0.0270463025 | J25: =$G25/F25-1 -> 0.0270463025 | L25: Total Residential (RAR) | N25: 166.8870516 | O25: ='SAR and RAR'!R28 -> 189.3111167 | P25: ='SAR and RAR'!S28 -> 189.3111167 | Q25: ='SAR and RAR'!T28 -> 194.4422772 | R25: =$Q25/N25-1 -> 0.1651130231 | S25: =$Q25/O25-1 -> 0.0271043801 | T25: 0.0271043801
B26: System | D26: 84.2593347 | E26: ='SAR and RAR'!G29 -> 94.91430965 | F26: ='SAR and RAR'!H29 -> 94.91430965 | G26: ='SAR and RAR'!I29 -> 96.78432142 | H26: =$G26/D26-1 -> 0.1486480609 | I26: 0.01970210571 | J26: =$G26/F26-1 -> 0.01970210571 | L26: Total System (SAR) | N26: 66.70177055 | O26: ='SAR and RAR'!R29 -> 78.09629943 | P26: ='SAR and RAR'!S29 -> 78.09629943 | Q26: ='SAR and RAR'!T29 -> 79.96631119 | R26: 0.1988633964 | S26: 0.02394494715 | T26: 0.02394494715
B29: Basic Bundled Residential Monthly Average Bills
D30: =BOYEffectiveRateDate -> 2025-01-01 | E30: =CurrentEffectiveRateDate -> 2025-09-01 | F30: =$D$2&" Authorized" -> 2025 Authorized | G30: =$D$2&" w/Pending" -> 2025 w/Pending | H30: =CONCATENATE("% Change over ",TEXT(BOYEffectiveRateDate,"m/d/yyyy")) -> % Change over 1/1/2025 | I30: =CONCATENATE("% Change over ",TEXT(CurrentEffectiveRateDate,"m/d/yyyy")) -> % Change over 9/1/2025 | J30: % Change over Authorized
B31: Non-CARE | D31: =((D37*$I$10)+(D43*$I$11))/12 -> 59.73822138 | E31: =((E37*$I$10)+(E43*$I$11))/12 -> 67.50767229 | F31: 67.50767229 | G31: 69.34581595 | H31: =$G31/D31-1 -> 0.1608282662 | I31: 0.02722866305 | J31: 0.02722866305
B32: CARE | D32: =((D38*$I$10)+(D44*$I$11))/12 -> 35.48430534 | E32: 38.81283439 | F32: 38.81283439 | G32: 39.83610412 | H32: 0.1226401008 | I32: 0.02636421029 | J32: 0.02636421029
B33: Total | D33: =((D39*$I$10)+(D45*$I$11))/12 -> 53.29859326 | E33: 59.88894034 | F33: 59.88894034 | G33: 61.5107278 | H33: 0.1540778854 | I33: 0.02707991581 | J33: 0.02707991581 | M33: ='Res Bill Impact'!P18 -> Basic Bundled
M34: ='Res Bill Impact'!P19 -> 2024 Recorded Data - Average Monthly Usage - ALL-BASIC th
B35: Basic Bundled Residential Monthly Average Bills - Summer | M35: Climate Zone | N35: Summer | O35: Winter | P35: Summer | Q35: Winter
D36: =BOYEffectiveRateDate -> 2025-01-01 | E36: =CurrentEffectiveRateDate -> 2025-09-01 | F36: =$D$2&" Authorized" -> 2025 Authorized | G36: =$D$2&" w/Pending" -> 2025 w/Pending | H36: =CONCATENATE("% Change over ",TEXT(BOYEffectiveRateDate,"m/d/yyyy")) -> % Change over 1/1/2025 | I36: =CONCATENATE("% Change over ",TEXT(CurrentEffectiveRateDate,"m/d/yyyy")) -> % Change over 9/1/2025 | J36: % Change over Authorized | N36: Non-CARE | P36: CARE
B37: Non-CARE | D37: =IF($D$3="All",'Res Bill Impact'!$C$47,(VLOOKUP($D$3,'Res Bill Impact'!$B$43:$J$46,2,FALSE))) -> 42.92449883 | E37: =IF($D$3="All",'Res Bill Impact'!$E$47,(VLOOKUP($D$3,'Res Bill Impact'!$B$43:$J$46,4,FALSE))) -> 48.30717137 | F37: =IF($D$3="All",'Res Bill Impact'!$G$47,(VLOOKUP($D$3,'Res Bill Impact'!$B$43:$J$46,6,FALSE))) -> 48.30717137 | G37: =IF($D$3="All",'Res Bill Impact'!$I$47,(VLOOKUP($D$3,'Res Bill Impact'!$B$43:$J$46,8,FALSE))) -> 49.58076662 | H37: =$G37/D37-1 -> 0.1550692021 | I37: =$G37/E37-1 -> 0.02636451716 | J37: =$G37/F37-1 -> 0.02636451716 | M37: =Zones -> 1 | N37: ='Res Bill Impact'!Q22 -> 22.68195339 | O37: ='Res Bill Impact'!R22 -> 45.72507267 | P37: ='Res Bill Impact'!S22 -> 17.60404118 | Q37: ='Res Bill Impact'!T22 -> 33.00381282
B38: CARE | D38: =IF($D$3="All",'Res Bill Impact'!$C$57,(VLOOKUP($D$3,'Res Bill Impact'!$B$53:$J$56,2,FALSE))) -> 28.25810858 | E38: =IF($D$3="All",'Res Bill Impact'!$E$57,(VLOOKUP($D$3,'Res Bill Impact'!$B$53:$J$56,4,FALSE))) -> 29.42746651 | F38: =IF($D$3="All",'Res Bill Impact'!$G$57,(VLOOKUP($D$3,'Res Bill Impact'!$B$53:$J$56,6,FALSE))) -> 29.42746651 | G38: =IF($D$3="All",'Res Bill Impact'!$I$57,(VLOOKUP($D$3,'Res Bill Impact'!$B$53:$J$56,8,FALSE))) -> 30.17493242 | H38: =$G38/D38-1 -> 0.0678327015 | I38: =$G38/E38-1 -> 0.02540028086 | J38: 0.02540028086 | M38: 2 | N38: ='Res Bill Impact'!Q23 -> 19.24320082 | O38: ='Res Bill Impact'!R23 -> 49.58569166 | P38: ='Res Bill Impact'!S23 -> 18.36758446 | Q38: ='Res Bill Impact'!T23 -> 46.09184154
B39: Total | D39: =D37*(1-'SAR and RAR'!$AC$15)+D38*'SAR and RAR'!$AC$15 -> 39.03044317 | E39: =E37*(1-'SAR and RAR'!$AC$15)+E38*'SAR and RAR'!$AC$15 -> 43.29444361 | F39: =F37*(1-'SAR and RAR'!$AC$15)+F38*'SAR and RAR'!$AC$15 -> 43.29444361 | G39: =G37*(1-'SAR and RAR'!$AC$15)+G38*'SAR and RAR'!$AC$15 -> 44.42834689 | H39: =$G39/D39-1 -> 0.1382998316 | I39: 0.0261905036 | J39: 0.0261905036 | M39: 3 | N39: ='Res Bill Impact'!Q24 -> 18.94798314 | O39: ='Res Bill Impact'!R24 -> 71.48580122 | P39: ='Res Bill Impact'!S24 -> 23.35905116 | Q39: ='Res Bill Impact'!T24 -> 81.14343361
M40: 0 | N40: ='Res Bill Impact'!Q25 -> 0 | O40: ='Res Bill Impact'!R25 -> 0 | P40: ='Res Bill Impact'!S25 -> 0 | Q40: ='Res Bill Impact'!T25 -> 0
B41: Basic Bundled Residential Monthly Average Bills - Winter
D42: =BOYEffectiveRateDate -> 2025-01-01 | E42: =CurrentEffectiveRateDate -> 2025-09-01 | F42: =$D$2&" Authorized" -> 2025 Authorized | G42: =$D$2&" w/Pending" -> 2025 w/Pending | H42: =CONCATENATE("% Change over ",TEXT(BOYEffectiveRateDate,"m/d/yyyy")) -> % Change over 1/1/2025 | I42: =CONCATENATE("% Change over ",TEXT(CurrentEffectiveRateDate,"m/d/yyyy")) -> % Change over 9/1/2025 | J42: % Change over Authorized
B43: Non-CARE | D43: =IF($D$3="All",'Res Bill Impact'!$D$47,(VLOOKUP($D$3,'Res Bill Impact'!$B$43:$J$46,3,FALSE))) -> 76.55194393 | E43: =IF($D$3="All",'Res Bill Impact'!$F$47,(VLOOKUP($D$3,'Res Bill Impact'!$B$43:$J$46,5,FALSE))) -> 86.70817321 | F43: =IF($D$3="All",'Res Bill Impact'!$H$47,(VLOOKUP($D$3,'Res Bill Impact'!$B$43:$J$46,7,FALSE))) -> 86.70817321 | G43: =IF($D$3="All",'Res Bill Impact'!$J$47,(VLOOKUP($D$3,'Res Bill Impact'!$B$43:$J$46,9,FALSE))) -> 89.11086529 | H43: =$G43/D43-1 -> 0.1640575107 | I43: =$G43/E43-1 -> 0.02771009914 | J43: 0.02771009914
B44: CARE | D44: =IF($D$3="All",'Res Bill Impact'!$D$57,(VLOOKUP($D$3,'Res Bill Impact'!$B$53:$J$56,3,FALSE))) -> 42.71050209 | E44: =IF($D$3="All",'Res Bill Impact'!$F$57,(VLOOKUP($D$3,'Res Bill Impact'!$B$53:$J$56,5,FALSE))) -> 48.19820228 | F44: =IF($D$3="All",'Res Bill Impact'!$H$57,(VLOOKUP($D$3,'Res Bill Impact'!$B$53:$J$56,7,FALSE))) -> 48.19820228 | G44: =IF($D$3="All",'Res Bill Impact'!$J$57,(VLOOKUP($D$3,'Res Bill Impact'!$B$53:$J$56,9,FALSE))) -> 49.49727582 | H44: 0.1589017547 | I44: 0.02695273849 | J44: 0.02695273849
B45: Total | D45: =D43*(1-'SAR and RAR'!$AC$15)+D44*'SAR and RAR'!$AC$15 -> 67.56674335 | E45: =E43*(1-'SAR and RAR'!$AC$15)+E44*'SAR and RAR'!$AC$15 -> 76.48343708 | F45: =F43*(1-'SAR and RAR'!$AC$15)+F44*'SAR and RAR'!$AC$15 -> 76.48343708 | G45: =G43*(1-'SAR and RAR'!$AC$15)+G44*'SAR and RAR'!$AC$15 -> 78.59310872 | H45: 0.1631921982 | I45: 0.02758337916 | J45: 0.02758337916
B48: Basic Bundled Essential Use Residential Monthly Average Bills
D49: =BOYEffectiveRateDate -> 2025-01-01 | E49: =CurrentEffectiveRateDate -> 2025-09-01 | F49: =$D$2&" Authorized" -> 2025 Authorized | G49: =$D$2&" w/Pending" -> 2025 w/Pending | H49: =CONCATENATE("% Change over ",TEXT(BOYEffectiveRateDate,"m/d/yyyy")) -> % Change over 1/1/2025 | I49: =CONCATENATE("% Change over ",TEXT(CurrentEffectiveRateDate,"m/d/yyyy")) -> % Change over 9/1/2025 | J49: % Change over Authorized
B50: Essential Use - Non-CARE | D50: =((D56*$I$10)+(D62*$I$11))/12 -> 42.34708167 | E50: =((E56*$I$10)+(E62*$I$11))/12 -> 47.6485446 | F50: 47.6485446 | G50: 48.90256237 | H50: =$G50/D50-1 -> 0.1548036003 | I50: 0.02631807073 | J50: 0.02631807073
B51: Essential Use - CARE | D51: =((D57*$I$10)+(D63*$I$11))/12 -> 34.25919561 | E51: 37.7028158 | F51: 37.7028158 | G51: 38.69340894 | H51: 0.1294313324 | I51: 0.02627371792 | J51: 0.02627371792
B52: Total | D52: =D50*(1-'SAR and RAR'!$AC$15)+D51*'SAR and RAR'!$AC$15 -> 40.19967675 | E52: =E50*(1-'SAR and RAR'!$AC$15)+E51*'SAR and RAR'!$AC$15 -> 45.00786609 | F52: =F50*(1-'SAR and RAR'!$AC$15)+F51*'SAR and RAR'!$AC$15 -> 45.00786609 | G52: =G50*(1-'SAR and RAR'!$AC$15)+G51*'SAR and RAR'!$AC$15 -> 46.1919423 | H52: =$G52/D52-1 -> 0.1490625307 | I52: =$G52/E52-1 -> 0.02630820599 | J52: 0.02630820599
M53: ='Res Bill Impact'!H19 -> Essential Usage
B54: Basic Bundled Essential Use Residential Monthly Average Bills - Summer | M54: Monthly Tier 1 Baseline Allowance -BASIC (th)
D55: =BOYEffectiveRateDate -> 2025-01-01 | E55: =CurrentEffectiveRateDate -> 2025-09-01 | F55: =$D$2&" Authorized" -> 2025 Authorized | G55: =$D$2&" w/Pending" -> 2025 w/Pending | H55: =CONCATENATE("% Change over ",TEXT(BOYEffectiveRateDate,"m/d/yyyy")) -> % Change over 1/1/2025 | I55: =CONCATENATE("% Change over ",TEXT(CurrentEffectiveRateDate,"m/d/yyyy")) -> % Change over 9/1/2025 | J55: % Change over Authorized | M55: Climate Zone | N55: Summer 2025 | O55: Winter 2025
B56: Essential Use - Non-CARE | D56: =IF($D$3="All",'Res Bill Impact'!C67,(VLOOKUP($D$3,'Res Bill Impact'!$B$63:$J$66,2,FALSE))) -> 24.29187 | E56: =IF($D$3="All",'Res Bill Impact'!E67,(VLOOKUP($D$3,'Res Bill Impact'!$B$63:$J$66,4,FALSE))) -> 27.03037403 | F56: =IF($D$3="All",'Res Bill Impact'!G67,(VLOOKUP($D$3,'Res Bill Impact'!$B$63:$J$66,6,FALSE))) -> 27.03037403 | G56: =IF($D$3="All",'Res Bill Impact'!I67,(VLOOKUP($D$3,'Res Bill Impact'!$B$63:$J$66,8,FALSE))) -> 27.6781448 | H56: =$G56/D56-1 -> 0.139399511 | I56: =$G56/E56-1 -> 0.02396455063 | J56: =$G56/F56-1 -> 0.02396455063 | M56: =Zones -> 1 | N56: ='Res Bill Impact'!I22 -> 13 | O56: ='Res Bill Impact'!J22 -> 37.33333333
B57: Essential Use - CARE | D57: =IF($D$3="All",'Res Bill Impact'!C77,(VLOOKUP($D$3,'Res Bill Impact'!$B$73:$J$76,2,FALSE))) -> 20.72975122 | E57: =IF($D$3="All",'Res Bill Impact'!E77,(VLOOKUP($D$3,'Res Bill Impact'!$B$73:$J$76,4,FALSE))) -> 21.40940154 | F57: =IF($D$3="All",'Res Bill Impact'!G77,(VLOOKUP($D$3,'Res Bill Impact'!$B$73:$J$76,6,FALSE))) -> 21.40940154 | G57: =IF($D$3="All",'Res Bill Impact'!I77,(VLOOKUP($D$3,'Res Bill Impact'!$B$73:$J$76,8,FALSE))) -> 21.92109866 | H57: =$G57/D57-1 -> 0.0574704167 | I57: 0.02390058037 | J57: 0.02390058037 | M57: 2 | N57: ='Res Bill Impact'!I23 -> 13 | O57: ='Res Bill Impact'!J23 -> 42.16666667
B58: Total | D58: =D56*(1-'SAR and RAR'!$AC$15)+D57*'SAR and RAR'!$AC$15 -> 23.34609612 | E58: =E56*(1-'SAR and RAR'!$AC$15)+E57*'SAR and RAR'!$AC$15 -> 25.53795638 | F58: =F56*(1-'SAR and RAR'!$AC$15)+F57*'SAR and RAR'!$AC$15 -> 25.53795638 | G58: =G56*(1-'SAR and RAR'!$AC$15)+G57*'SAR and RAR'!$AC$15 -> 26.14959839 | H58: =$G58/D58-1 -> 0.1200844141 | I58: =$G58/E58-1 -> 0.02395031176 | J58: 0.02395031176 | M58: 3 | N58: ='Res Bill Impact'!I24 -> 13 | O58: ='Res Bill Impact'!J24 -> 65
M59: 0 | N59: ='Res Bill Impact'!I25 -> 0 | O59: ='Res Bill Impact'!J25 -> 0
B60: Basic Bundled Essential Use Residential Monthly Average Bills - Winter
D61: =BOYEffectiveRateDate -> 2025-01-01 | E61: =CurrentEffectiveRateDate -> 2025-09-01 | F61: =$D$2&" Authorized" -> 2025 Authorized | G61: =$D$2&" w/Pending" -> 2025 w/Pending | H61: =CONCATENATE("% Change over ",TEXT(BOYEffectiveRateDate,"m/d/yyyy")) -> % Change over 1/1/2025 | I61: =CONCATENATE("% Change over ",TEXT(CurrentEffectiveRateDate,"m/d/yyyy")) -> % Change over 9/1/2025 | J61: % Change over Authorized
B62: Essential Use - Non-CARE | D62: =IF($D$3="All",'Res Bill Impact'!D67,(VLOOKUP($D$3,'Res Bill Impact'!$B$63:$J$66,3,FALSE))) -> 60.40229333 | E62: =IF($D$3="All",'Res Bill Impact'!F67,(VLOOKUP($D$3,'Res Bill Impact'!$B$63:$J$66,5,FALSE))) -> 68.26671517 | F62: =IF($D$3="All",'Res Bill Impact'!H67,(VLOOKUP($D$3,'Res Bill Impact'!$B$63:$J$66,7,FALSE))) -> 68.26671517 | G62: =IF($D$3="All",'Res Bill Impact'!J67,(VLOOKUP($D$3,'Res Bill Impact'!$B$63:$J$66,9,FALSE))) -> 70.12697994 | H62: =$G62/D62-1 -> 0.1609986322 | I62: =$G62/E62-1 -> 0.02724995281 | J62: =$G62/F62-1 -> 0.02724995281
B63: Essential Use - CARE | D63: =IF($D$3="All",'Res Bill Impact'!D77,(VLOOKUP($D$3,'Res Bill Impact'!$B$73:$J$76,3,FALSE))) -> 47.78864 | E63: =IF($D$3="All",'Res Bill Impact'!F77,(VLOOKUP($D$3,'Res Bill Impact'!$B$73:$J$76,5,FALSE))) -> 53.99623005 | F63: =IF($D$3="All",'Res Bill Impact'!H77,(VLOOKUP($D$3,'Res Bill Impact'!$B$73:$J$76,7,FALSE))) -> 53.99623005 | G63: =IF($D$3="All",'Res Bill Impact'!J77,(VLOOKUP($D$3,'Res Bill Impact'!$B$73:$J$76,9,FALSE))) -> 55.46571923 | H63: =$G63/D63-1 -> 0.1606465308 | I63: 0.02721466239 | J63: 0.02721466239
B64: Total | D64: =D62*(1-'SAR and RAR'!$AC$15)+D63*'SAR and RAR'!$AC$15 -> 57.05325738 | E64: =E62*(1-'SAR and RAR'!$AC$15)+E63*'SAR and RAR'!$AC$15 -> 64.47777581 | F64: =F62*(1-'SAR and RAR'!$AC$15)+F63*'SAR and RAR'!$AC$15 -> 64.47777581 | G64: =G62*(1-'SAR and RAR'!$AC$15)+G63*'SAR and RAR'!$AC$15 -> 66.23428621 | H64: 0.1609203269 | I64: 0.02724210607 | J64: 0.02724210607
B67: Basic Bundled Typical Residential Monthly Average Bills
D68: =BOYEffectiveRateDate -> 2025-01-01 | E68: =CurrentEffectiveRateDate -> 2025-09-01 | F68: =$D$2&" Authorized" -> 2025 Authorized | G68: =$D$2&" w/Pending" -> 2025 w/Pending | H68: =CONCATENATE("% Change over ",TEXT(BOYEffectiveRateDate,"m/d/yyyy")) -> % Change over 1/1/2025 | I68: =CONCATENATE("% Change over ",TEXT(CurrentEffectiveRateDate,"m/d/yyyy")) -> % Change over 9/1/2025 | J68: % Change over Authorized
B69: 5-Year Average Usage- Non-CARE | D69: =((D75*$I$10)+(D81*$I$11))/12 -> 63.69828007 | E69: =((E75*$I$10)+(E81*$I$11))/12 -> 72.02970548 | F69: 72.02970548 | G69: 74.00085784 | H69: =$G69/D69-1 -> 0.1617402819 | I69: 0.02736582561 | J69: 0.02736582561
C70: 5-Year Average Usage - CARE | D70: =((D76*$I$10)+(D82*$I$11))/12 -> 36.39404581 | E70: 39.85698512 | F70: 39.85698512 | G70: 40.91094356 | H70: =$G70/D70-1 -> 0.1241108993 | I70: =$G70/E70-1 -> 0.02644350652 | J70: =$G70/F70-1 -> 0.02644350652
B71: Total | D71: =((D77*$I$10)+(D83*$I$11))/12 -> 56.44876562 | E71: 63.48756514 | F71: 63.48756514 | G71: 65.21519444 | H71: 0.1552988578 | I71: 0.0272120895 | J71: 0.0272120895 | M71: ='Res Bill Impact'!P27 -> Typical Bundled
M72: ='Res Bill Impact'!P28 -> 2020-2024 Recorded Data - Average Monthly Usage - ALL-BASIC th
B73: Basic Bundled Typical Residential Monthly Average Bills - Summer | M73: Climate Zone | N73: Summer | O73: Winter | P73: Summer | Q73: Winter
D74: =BOYEffectiveRateDate -> 2025-01-01 | E74: =CurrentEffectiveRateDate -> 2025-09-01 | F74: =$D$2&" Authorized" -> 2025 Authorized | G74: =$D$2&" w/Pending" -> 2025 w/Pending | H74: =CONCATENATE("% Change over ",TEXT(BOYEffectiveRateDate,"m/d/yyyy")) -> % Change over 1/1/2025 | I74: =CONCATENATE("% Change over ",TEXT(CurrentEffectiveRateDate,"m/d/yyyy")) -> % Change over 9/1/2025 | J74: % Change over Authorized | N74: Non-CARE | P74: CARE
B75: 5-Year Average Usage - Non-CARE | D75: =IF($D$3="All",'Res Bill Impact'!C87,(VLOOKUP($D$3,'Res Bill Impact'!$B$83:$J$86,2,FALSE))) -> 43.75772659 | E75: =IF($D$3="All",'Res Bill Impact'!E87,(VLOOKUP($D$3,'Res Bill Impact'!$B$83:$J$86,4,FALSE))) -> 49.25864302 | F75: =IF($D$3="All",'Res Bill Impact'!G87,(VLOOKUP($D$3,'Res Bill Impact'!$B$83:$J$86,6,FALSE))) -> 49.25864302 | G75: =IF($D$3="All",'Res Bill Impact'!I87,(VLOOKUP($D$3,'Res Bill Impact'!$B$83:$J$86,8,FALSE))) -> 50.56022435 | H75: =$G75/D75-1 -> 0.155458208 | I75: 0.02642341026 | J75: 0.02642341026 | M75: =Zones -> 1 | N75: ='Res Bill Impact'!Q31 -> 23.11491818 | O75: ='Res Bill Impact'!R31 -> 49.40758765 | P75: ='Res Bill Impact'!S31 -> 17.51725705 | Q75: ='Res Bill Impact'!T31 -> 34.67605291
C76: 5-Year Average Usage - CARE | D76: =IF($D$3="All",'Res Bill Impact'!C97,(VLOOKUP($D$3,'Res Bill Impact'!$B$93:$J$96,2,FALSE))) -> 28.1162024 | E76: =IF($D$3="All",'Res Bill Impact'!E97,(VLOOKUP($D$3,'Res Bill Impact'!$B$93:$J$96,4,FALSE))) -> 29.27632956 | F76: =IF($D$3="All",'Res Bill Impact'!G97,(VLOOKUP($D$3,'Res Bill Impact'!$B$93:$J$96,6,FALSE))) -> 29.27632956 | G76: =IF($D$3="All",'Res Bill Impact'!I97,(VLOOKUP($D$3,'Res Bill Impact'!$B$93:$J$96,8,FALSE))) -> 30.01935134 | H76: =$G76/D76-1 -> 0.06768869104 | I76: =$G76/E76-1 -> 0.02537960833 | J76: =$G76/F76-1 -> 0.02537960833 | M76: 2 | N76: ='Res Bill Impact'!Q32 -> 19.56195699 | O76: ='Res Bill Impact'!R32 -> 55.33374712 | P76: ='Res Bill Impact'!S32 -> 18.5317823 | Q76: ='Res Bill Impact'!T32 -> 51.14470611
B77: Total | D77: =D75*(1-'SAR and RAR'!$AC$15)+D76*'SAR and RAR'!$AC$15 -> 39.60476428 | E77: =E75*(1-'SAR and RAR'!$AC$15)+E76*'SAR and RAR'!$AC$15 -> 43.95316297 | F77: =F75*(1-'SAR and RAR'!$AC$15)+F76*'SAR and RAR'!$AC$15 -> 43.95316297 | G77: =G75*(1-'SAR and RAR'!$AC$15)+G76*'SAR and RAR'!$AC$15 -> 45.10644182 | H77: 0.1389145382 | I77: 0.02623881374 | J77: 0.02623881374 | M77: 3 | N77: ='Res Bill Impact'!Q33 -> 19.98866609 | O77: ='Res Bill Impact'!R33 -> 77.21481657 | P77: ='Res Bill Impact'!S33 -> 24.34162135 | Q77: ='Res Bill Impact'!T33 -> 87.23331811
M78: 0 | N78: ='Res Bill Impact'!Q34 -> 0 | O78: ='Res Bill Impact'!R34 -> 0 | P78: ='Res Bill Impact'!S34 -> 0 | Q78: ='Res Bill Impact'!T34 -> 0
B79: Basic Bundled Typical Residential Monthly Average Bills - Winter
D80: =BOYEffectiveRateDate -> 2025-01-01 | E80: =CurrentEffectiveRateDate -> 2025-09-01 | F80: =$D$2&" Authorized" -> 2025 Authorized | G80: =$D$2&" w/Pending" -> 2025 w/Pending | H80: =CONCATENATE("% Change over ",TEXT(BOYEffectiveRateDate,"m/d/yyyy")) -> % Change over 1/1/2025 | I80: =CONCATENATE("% Change over ",TEXT(CurrentEffectiveRateDate,"m/d/yyyy")) -> % Change over 9/1/2025 | J80: % Change over Authorized
B81: 5-Year Average Usage - Non-CARE | D81: =IF($D$3="All",'Res Bill Impact'!D87,(VLOOKUP($D$3,'Res Bill Impact'!$B$83:$J$86,3,FALSE))) -> 83.63883355 | E81: =IF($D$3="All",'Res Bill Impact'!F87,(VLOOKUP($D$3,'Res Bill Impact'!$B$83:$J$86,5,FALSE))) -> 94.80076795 | F81: =IF($D$3="All",'Res Bill Impact'!H87,(VLOOKUP($D$3,'Res Bill Impact'!$B$83:$J$86,7,FALSE))) -> 94.80076795 | G81: =IF($D$3="All",'Res Bill Impact'!J87,(VLOOKUP($D$3,'Res Bill Impact'!$B$83:$J$86,9,FALSE))) -> 97.44149134 | H81: =$G81/D81-1 -> 0.1650269044 | I81: 0.02785550625 | J81: 0.02785550625
C82: 5-Year Average Usage - CARE | D82: =IF($D$3="All",'Res Bill Impact'!D97,(VLOOKUP($D$3,'Res Bill Impact'!$B$93:$J$96,3,FALSE))) -> 44.67188922 | E82: =IF($D$3="All",'Res Bill Impact'!F97,(VLOOKUP($D$3,'Res Bill Impact'!$B$93:$J$96,5,FALSE))) -> 50.43764068 | F82: =IF($D$3="All",'Res Bill Impact'!H97,(VLOOKUP($D$3,'Res Bill Impact'!$B$93:$J$96,7,FALSE))) -> 50.43764068 | G82: =IF($D$3="All",'Res Bill Impact'!J97,(VLOOKUP($D$3,'Res Bill Impact'!$B$93:$J$96,9,FALSE))) -> 51.80253579 | H82: =$G82/D82-1 -> 0.1596226777 | I82: =$G82/E82-1 -> 0.02706104203 | J82: =$G82/F82-1 -> 0.02706104203
B83: Total | D83: =D81*(1-'SAR and RAR'!$AC$15)+D82*'SAR and RAR'!$AC$15 -> 73.29276695 | E83: =E81*(1-'SAR and RAR'!$AC$15)+E82*'SAR and RAR'!$AC$15 -> 83.0219673 | F83: =F81*(1-'SAR and RAR'!$AC$15)+F82*'SAR and RAR'!$AC$15 -> 83.0219673 | G83: =G81*(1-'SAR and RAR'!$AC$15)+G82*'SAR and RAR'!$AC$15 -> 85.32394706 | H83: 0.1641523523 | I83: 0.02772735731 | J83: 0.02772735731

Sheet Authorized Rev Req
A2: Annual Period 2025
A3: Reporting Date: Quarter Ended September 30
B5: Revenue Requirement Date: | C5: 2022-01-01 | D5: 2023-01-01 | E5: 2023-03-01 | F5: 2023-08-01 | G5: 2023-11-01 | H5: 2024-01-01 | I5: 2024-07-01 | J5: 2024-10-01 | K5: 2025-01-01 | L5: 2025-02-01 | M5: 2025-07-01
B6: Advice Letter: | C6: AL 5915-G | D6: AL 6071-G | E6: AL 6088-G | F6: AL 6168-G | G6: AL 6213-G | H6: AL 6237-G | I6: AL 6325-G | J6: AL 6369-G | K6: AL 6421-G | L6: AL 6340-G-A | M6: AL 6493-G
A7: Filing Description | B7: Authority for Revenue Requirement as of 2/1/2025 | C7: Authorized Revenue Requirement ($000) | D7: Authorized Revenue Requirement ($000) | E7: Authorized Revenue Requirement ($000) | F7: Authorized Revenue Requirement ($000) | G7: Authorized Revenue Requirement ($000) | H7: Authorized Revenue Requirement ($000) | I7: Authorized Revenue Requirement ($000) | J7: Authorized Revenue Requirement ($000) | K7: Authorized Revenue Requirement ($000) | L7: Authorized Revenue Requirement ($000) | M7: Authorized Revenue Requirement ($000) | N7: Revenue Recovery Mechanism | O7: Balancing Account
A8: Safety Affordability Reliability Proceedings
A9: Total Allocated Base Margin | B9: D.24-12-074 | C9: 2797438.81 | D9: 2813333.282 | E9: 2813333.282 | F9: 2813333.282 | G9: 2813333.28 | H9: 2828192.765 | I9: 2827790.601 | J9: 2827790.601 | K9: 2801126.364 | L9: 3218272.671 | M9: 3218272.671 | N9: Allocated Base Margin | O9: N
A10: Pipeline Safety Enhancement Plan (PSEP) GRC - Local Transmission (subtracted from Base Margin and allocated here) | B10: D.24-12-074 | C10: 20025.2391 | D10: 20972.1516 | E10: 20972.1516 | F10: 20972.1516 | G10: 20972.1516 | H10: 20972.1516 | I10: 20972.1516 | J10: 20972.1516 | K10: 20972.1516 | L10: 12473.81268 | M10: 12473.81268 | N10: Local Transmission | O10: N
A11: Pipeline Safety Enhancement Plan (PSEP) GRC -Distribution (subtracted from Base Margin and allocated here) | B11: D.24-12-074 | C11: 28629.01 | D11: 29982.76 | E11: 29982.76 | F11: 29982.76 | G11: 29982.76 | H11: 29982.76 | I11: 29982.76 | J11: 29982.76 | K11: 29982.76 | L11: 73422.06 | M11: 73422.06 | N11: Distribution | O11: N
A12: Company Use Gas: Other | B12: D.24-07-009, AL 6421-G,AL 6340-G-A | C12: 1792.692921 | D12: 2442.782407 | E12: 2442.782407 | F12: 2442.782407 | G12: 2442.782407 | H12: 2021.517814 | I12: 2086.359644 | J12: 2086.359644 | K12: 1696.960573 | L12: 1283.388791 | M12: 1223.184112 | N12: ECPT | O12: N
A13: Company Use Gas: Storage Load Balancing | B13: D.24-07-009, AL 6421-G,AL 6340-G-A | C13: 1739.982378 | D13: 2371.288817 | E13: 2371.288817 | F13: 2371.288817 | G13: 2371.288817 | H13: 1962.353492 | I13: 2025.297578 | J13: 2025.297578 | K13: 1647.295157 | L13: 3617.87136 | M13: 3501.139374 | N13: ECPT | O13: N
A14: Exchange Revenues & Interutility Transactions | B14: D.24-07-009, AL 6421-G,AL 6340-G-A | C14: 342.77791 | D14: 342.77791 | E14: 342.77791 | F14: 342.77791 | G14: 342.77791 | H14: 342.77791 | I14: 342.77791 | J14: 342.77791 | K14: 342.77791 | L14: 342.77791 | M14: 342.77791 | N14: ECPT | O14: N
A15: Unaccounted For (UAF) Gas | B15: D.24-07-009, AL 6421-G,AL 6340-G-A | C15: 43865.64079 | D15: 59771.78668 | E15: 59771.78668 | F15: 59771.78668 | G15: 59771.78668 | H15: 49463.97649 | I15: 51050.57382 | J15: 51050.57382 | K15: 41522.47251 | L15: 32364.54513 | M15: 30832.58319 | N15: 47% Res (LUAF, Other) | O15: N
A16: Well Incidents & Surface Leaks | B16: D.24-07-009, AL 6421-G,AL 6340-G-A | C16: 226.3891543 | D16: 308.4843465 | E16: 308.4843465 | F16: 308.4843465 | G16: 308.4843465 | H16: 255.2853664 | I16: 263.4738524 | J16: 263.4738524 | K16: 214.298978 | L16: 45.49847815 | M16: 43.35194566 | N16: ECPT | O16: N
A17: SCG PSEP - 2017 Forecast Application RevReq Capital Cost - Local Transmission | B17: D.24-07-009, AL 6421-G,AL 6340-G-A | C17: 381.0924644 | D17: 363.8434006 | E17: 363.8434006 | F17: 363.8434006 | G17: 363.8434006 | H17: 373.2391018 | I17: 373.2391018 | J17: 373.2391018 | K17: 338.8845378 | L17: 343.3496879 | M17: 343.4341302 | N17: Local Transmission | O17: N
A18: SCG PSEP - 2017 Forecast Application RevReq Capital Cost - Distribution | B18: D.24-07-009, AL 6421-G,AL 6340-G-A | C18: 24839.85663 | D18: 24959.79958 | E18: 24959.79958 | F18: 24959.79958 | G18: 24959.79958 | H18: 25796.91107 | I18: 25796.91107 | J18: 25796.91107 | K18: 23492.4964 | L18: 23486.26448 | M18: 23492.26643 | N18: Distribution | O18: N
A19: AMI Balancing Account (AMIBA) | B19: D.24-07-009, AL 6421-G,AL 6340-G-A | C19: -77756.9011 | D19: -323.9718593 | E19: -323.9718593 | F19: -323.9718593 | G19: -323.9718593 | H19: 0 | I19: 0 | J19: 0 | K19: -589.6895134 | L19: 0 | M19: 0 | N19: EPAM | O19: Y
A20: Residential Uncollectible Balancing Account (RUBA) | B20: D.24-07-009, AL 6421-G,AL 6340-G-A | C20: 16080.82923 | D20: 44745.19835 | E20: 44745.19835 | F20: 44745.19835 | G20: 44745.19835 | H20: 361045.4563 | I20: 361045.4563 | J20: 361045.4563 | K20: 68088.97402 | L20: 68056.53932 | M20: 68056.53932 | N20: ECPT | O20: Y
A21: Affiliate Transfer Fee Account (ATFA) | B21: D.24-07-009, AL 6421-G,AL 6340-G-A | C21: -56.8521172 | D21: -106.5216742 | E21: -106.5216742 | F21: -106.5216742 | G21: -106.5218593 | H21: -332.5151735 | I21: -332.5151719 | J21: -332.5151719 | K21: -159.2084278 | L21: -159.1502742 | M21: -159.1502742 | N21: EPAM | O21: Y
A22: Core Fixed Cost Account - Non NGV (CFCA) | B22: D.24-07-009, AL 6421-G,AL 6340-G-A | C22: -28133.81894 | D22: 121885.4366 | E22: -12481.01707 | F22: -12481.01707 | G22: -15934.57573 | H22: -159234.434 | I22: -159234.434 | J22: -159234.434 | K22: 116918.4048 | L22: 116879.0578 | M22: 116879.0578 | N22: CFCA | O22: Y
A23: Core Fixed Cost Account - NGV (CFCA) | B23: D.24-07-009, AL 6421-G,AL 6340-G-A | C23: 9826.724141 | D23: -1151.989741 | E23: -1401.302084 | F23: -1401.302084 | G23: -1401.302084 | H23: -6384.867245 | I23: -6384.867245 | J23: -6384.867245 | K23: -10720.89735 | L23: -10717.2894 | M23: -10717.2894 | N23: Non-Residential | O23: Y
A24: Core Fixed Cost Account - C&I Shortfall (CFCA) | B24: D.24-07-009, AL 6421-G,AL 6340-G-A | C24: 28765.69276 | D24: 0 | E24: 0 | F24: 0 | G24: 0 | H24: 0 | I24: 0 | J24: 0 | K24: -352.80365 | L24: -352.6849195 | M24: -352.6849195 | N24: Non-Residential | O24: Y
A25: Economic Practicality Shortfall Memorandum Account (EPSMA) | B25: D.24-07-009, AL 6421-G,AL 6340-G-A | C25: 395.853484 | D25: 434.2273838 | E25: 434.2273838 | F25: 434.2273838 | G25: 434.2273838 | H25: 623.9141766 | I25: 623.9141766 | J25: 623.9141766 | K25: 331.592532 | L25: 331.4809398 | M25: 331.4809398 | N25: Non-Residential | O25: Y
A26: Enhanced Oil Recovery Account (EORA) | B26: D.24-07-009, AL 6421-G,AL 6340-G-A | C26: 2530.55974 | D26: -7124.256786 | E26: -7124.256786 | F26: -7124.256786 | G26: -7124.269166 | H26: 9594.38968 | I26: 9594.389634 | J26: 9594.389634 | K26: 1231.783468 | L26: 1231.333538 | M26: 1231.333538 | N26: EPAM | O26: Y
A27: Hazardous Substance Cost-Recovery Account (HSCRA) | B27: D.24-07-009, AL 6421-G,AL 6340-G-A | C27: 284.26279 | D27: 441.0656654 | E27: 441.0656654 | F27: 441.0656654 | G27: 441.0656654 | H27: 2438.240816 | I27: 2438.240816 | J27: 2438.240816 | K27: 7084.132681 | L27: 7080.758101 | M27: 7080.758101 | N27: ECPT | O27: Y
A28: Intervenor Award Memorandum Account (IAMA) | B28: D.24-07-009, AL 6421-G,AL 6340-G-A | C28: 731.580665 | D28: 832.9371787 | E28: 832.9371787 | F28: 832.9371787 | G28: 832.9371787 | H28: 435.5787082 | I28: 435.5787082 | J28: 435.5787082 | K28: 1579.573997 | L28: 1578.821555 | M28: 1578.821555 | N28: ECPT | O28: Y
A29: Master Meter Balancing Account (MMBA) | B29: D.24-07-009, AL 6421-G,AL 6340-G-A | C29: 17468.47031 | D29: 24824.50463 | E29: 24824.50463 | F29: 24824.50463 | G29: 24824.54776 | H29: 27664.39859 | I29: 27664.39846 | J29: 27664.39846 | K29: 57995.52302 | L29: 56029.54399 | M29: 56029.54399 | N29: EPAM | O29: Y
A30: Noncore Fixed Cost Account (NFCA) Margin | B30: D.24-07-009, AL 6421-G,AL 6340-G-A | C30: 6370.180978 | D30: 12427.60401 | E30: 12427.60401 | F30: 12427.60401 | G30: 12427.83405 | H30: 6309.96825 | I30: 6309.968067 | J30: 6309.968067 | K30: 19275.21055 | L30: 19264.23989 | M30: 19264.23989 | N30: Non-Residential | O30: Y
A31: Noncore Fixed Cost Account (NFCA) Nonmargin | B31: D.24-07-009, AL 6421-G,AL 6340-G-A | C31: -3275.185198 | D31: 959.6319265 | E31: 959.6319265 | F31: 959.6319265 | G31: -11436.66702 | H31: 913.703406 | I31: 913.703406 | J31: 913.703406 | K31: 18733.58886 | L31: 18722.78709 | M31: 18722.78709 | N31: Non-Residential | O31: Y
A32: Integrated Transmission Balancing Account (ITBA) Margin | B32: D.24-07-009, AL 6421-G,AL 6340-G-A | C32: 176.0981414 | D32: 5083.885059 | E32: 5083.885059 | F32: 5083.885059 | G32: 5083.885059 | H32: -2088.910606 | I32: -2088.910606 | J32: -2088.910606 | K32: 13617.12929 | L32: 13611.38962 | M32: 13611.38962 | N32: ECPT | O32: Y
A33: Compressor Station Fuel and Power Balancing Account (CFPBA) | B33: D.24-07-009, AL 6421-G,AL 6340-G-A | C33: -1423.035883 | D33: 3459.772548 | E33: 3459.772548 | F33: 3459.772548 | G33: 3459.772548 | H33: 5089.794203 | I33: 5089.794203 | J33: 5089.794203 | K33: 14061.42309 | L33: 14055.49615 | M33: 14055.49615 | N33: ECPT | O33: Y
A34: Compression Services Balancing Account (CSBA) | B34: D.24-07-009, AL 6421-G,AL 6340-G-A | C34: -68.36948884 | D34: -73.63685293 | E34: -73.63685293 | F34: -73.63685293 | G34: -73.63685293 | H34: 0 | I34: 0 | J34: 0 | K34: 0 | L34: 0 | M34: 0 | N34: Non-Residential | O34: Y
A35: Company-Use Fuel for Load Balancing Account (CUFLBA) | B35: D.24-07-009, AL 6421-G,AL 6340-G-A | C35: -1168.448441 | D35: 5918.687245 | E35: 5918.687245 | F35: 5918.687245 | G35: 5918.687245 | H35: 12182.44939 | I35: 12182.44939 | J35: 12182.44939 | K35: 2553.019545 | L35: 2551.992899 | M35: 2552.735232 | N35: ECPT | O35: Y
A36: Noncore Storage Balancing Account (NSBA) | B36: D.24-07-009, AL 6421-G,AL 6340-G-A | C36: 122.0512176 | D36: 93.94677741 | E36: 93.94677741 | F36: 93.94677741 | G36: 93.94677741 | H36: 0 | I36: 0 | J36: 0 | K36: -28184.0505 | L36: -28170.62481 | M36: -28170.62481 | N36: ECPT | O36: Y
A37: Pension Balancing Account (PBA) | B37: D.24-07-009, AL 6421-G,AL 6340-G-A | C37: 11312.64409 | D37: 9235.968926 | E37: 9235.968926 | F37: 9235.968926 | G37: 9235.984974 | H37: 23408.24727 | I37: 23408.24716 | J37: 23408.24716 | K37: 41484.86135 | L37: 17893.67727 | M37: 17893.67727 | N37: EPAM | O37: Y
A38: PBOP Balancing Account (PBOPBA) | B38: D.24-07-009, AL 6421-G,AL 6340-G-A | C38: -4328.422797 | D38: -4765.790274 | E38: -4765.790274 | F38: -4765.790274 | G38: -4765.798555 | H38: -1010.398893 | I38: -1010.398888 | J38: -1010.398888 | K38: -1093.046874 | L38: -3240.981219 | M38: -3240.981219 | N38: EPAM | O38: Y
A39: Safety Enhancement Capital Cost Balancing Account (SECCBA) - Local Transmission | B39: D.24-07-009, AL 6421-G,AL 6340-G-A | C39: 22874.17654 | D39: 24483.53553 | E39: 24483.53553 | F39: 24483.53553 | G39: 24483.53553 | H39: 25945.72456 | I39: 25945.72456 | J39: 25945.72456 | K39: 25737.97512 | L39: -7932.369624 | M39: -7934.320485 | N39: Local Transmission | O39: Y
A40: Safety Enhancement Capital Cost Balancing Account (SECCBA) - Distribution | B40: D.24-07-009, AL 6421-G,AL 6340-G-A | C40: 72521.18682 | D40: 74787.02382 | E40: 74787.02382 | F40: 74787.02382 | G40: 74787.02382 | H40: 78908.4625 | I40: 78908.4625 | J40: 78908.4625 | K40: 77781.07254 | L40: -35512.15609 | M40: -35521.23128 | N40: Distribution | O40: Y
A41: Safety Enhancement Expense Balancing Account (SEEBA) - Local Transmission | B41: D.24-07-009, AL 6421-G,AL 6340-G-A | C41: 572.0979832 | D41: -674.0780882 | E41: -674.0780882 | F41: -674.0780882 | G41: -674.0780882 | H41: -305.1347641 | I41: -305.1347641 | J41: -305.1347641 | K41: 207.9130707 | L41: 210.6525379 | M41: 210.7043451 | N41: Local Transmission | O41: Y
A42: Safety Enhancement Expense Balancing Account (SEEBA) - Distribution | B42: D.24-07-009, AL 6421-G,AL 6340-G-A | C42: 1611.907472 | D42: 2206.086744 | E42: 2206.086744 | F42: 2206.086744 | G42: 2206.086744 | H42: 402.7958316 | I42: 402.7958316 | J42: 402.7958316 | K42: 586.1714733 | L42: 586.0159779 | M42: 586.1657352 | N42: Distribution | O42: Y
A43: Research Royalty Memorandum Account (RRMA) | B43: D.24-07-009, AL 6421-G,AL 6340-G-A | C43: -160.8244502 | D43: -247.9508232 | E43: -247.9508232 | F43: -247.9508232 | G43: -247.9512541 | H43: -157.2750448 | I43: -157.275044 | J43: -157.275044 | K43: -187.7276666 | L43: -187.6590959 | M43: -187.6590959 | N43: EPAM | O43: Y
A44: Self-Generation Program Memorandum Account (SGPMA) | B44: D.24-07-009, AL 6421-G,AL 6340-G-A | C44: 16267.79819 | D44: 16265.02543 | E44: 16265.02543 | F44: 16265.02543 | G44: 16265.02543 | H44: 16265.02543 | I44: 16265.02543 | J44: 16265.02543 | K44: 0 | L44: 0 | M44: 0 | N44: SGIP | O44: Y
A45: System Operator Gas Account (SOGA) | B45: D.24-07-009, AL 6421-G,AL 6340-G-A | C45: -57.47472488 | D45: -54.79102466 | E45: -54.79102466 | F45: -54.79102466 | G45: -54.79102466 | H45: 0 | I45: 0 | J45: 0 | K45: 1062.864181 | L45: 1062.357878 | M45: 1062.357878 | N45: ECPT | O45: Y
A46: Rewards & Penalties Balancing Account (RPBA) | B46: D.24-07-009, AL 6421-G,AL 6340-G-A | C46: -266.7671576 | D46: -288.8720611 | E46: -288.8720611 | F46: -288.8720611 | G46: -288.872563 | H46: 7370.233834 | I46: 7370.233799 | J46: 7370.233799 | K46: 4000.144377 | L46: 3998.683255 | M46: -4451.889016 | N46: EPAM | O46: Y
A47: Liability Insurance Premium Balancing Account (LIPBA) | B47: D.24-07-009, AL 6421-G,AL 6340-G-A | C47: 14313.74818 | D47: 23349.85594 | E47: 23349.85594 | F47: 23349.85594 | G47: 23349.89651 | H47: 24061.23156 | I47: 24061.23145 | J47: 24061.23145 | K47: 27244.79019 | L47: -15158.15314 | M47: -15158.15619 | N47: EPAM | O47: Y
A48: NonCore Backbone Transmission | B48: D.24-07-009, AL 6421-G,AL 6340-G-A | C48: 205899.099 | D48: 307036.3771 | E48: 307036.3771 | F48: 307036.3771 | G48: 307036.3771 | H48: 302321.9664 | I48: 403718.6134 | J48: 403718.6134 | K48: 346725.4363 | L48: 385487.5997 | M48: 304889.8509 | N48: Backbone Transmission | O48: N
A49: Storage Integrity Management Program Balancing Account (SIMPBA) Balance | B49: D.22-07-016, D.20-02-045, AL6421-G | C49: 0 | D49: 35607.36669 | E49: 35607.36669 | F49: 35607.36669 | G49: 35607.42856 | H49: 0 | I49: 0 | J49: 0 | K49: 0 | L49: 0 | M49: =L49 -> 0 | N49: EPAM | O49: Y
A50: On-Bill Financing Balancing Account (OBFBA) | B50: D.19-03-001, AL 5853-A, AL 6421-G | C50: 0 | D50: 4574.363334 | E50: 4574.363334 | F50: 4574.363334 | G50: 4574.371282 | H50: 0 | I50: 0 | J50: 0 | K50: 0 | L50: 0 | M50: =L50 -> 0 | N50: EPAM | O50: Y
A51: System Reliability Memorandum Account (SRMA) | B51: D.24-07-009, AL 6421-G,AL 6340-G-A | C51: 0 | D51: 15184.32229 | E51: 15184.32229 | F51: 15184.32229 | G51: 15184.32229 | H51: 32096.06422 | I51: 32096.06422 | J51: 32096.06422 | K51: 15326.50399 | L51: 15319.20309 | M51: 15319.20309 | N51: ECPT | O51: Y
A52: Distributed Energy Resources Svcs Bal Account (DERSBA) | B52: D.24-07-009, AL 6421-G,AL 6340-G-A | C52: 0 | D52: -61.47842668 | E52: -61.47842668 | F52: -61.47842668 | G52: -61.47853351 | H52: 0 | I52: 0 | J52: 0 | K52: 0 | L52: 0 | M52: 0 | N52: EPAM | O52: Y
A53: Percentage of Income Payment Plan Balancing Account (PIPPBA) | B53: D.24-07-009, AL 6421-G,AL 6340-G-A | C53: 0 | D53: 0 | E53: 0 | F53: 0 | G53: 0 | H53: 573.8082412 | I53: 573.8082412 | J53: 573.8082412 | K53: 895.8920064 | L53: 895.4652414 | M53: 895.4652414 | N53: ECPT | O53: Y
A54: Transmission Integrity Management Program Memorandum Account (TIMPBA) Local Transmission | B54: AL 6325-G, D.24-07-009,AL 6421-G,AL 6340-G-A | C54: 0 | D54: 0 | E54: 0 | F54: 0 | G54: 0 | H54: 0 | I54: 56339.32306 | J54: 56339.32306 | K54: 56339.32306 | L54: 65908.49897 | M54: 0 | N54: Local Transmission | O54: Y
A55: San Joaquin Valley Disadvantaged Communities Bal Acct (SJVDACBA) - TTM subaccount | B55: D.18-12-015, AL 6421-G | C55: 0 | D55: 0 | E55: 0 | F55: 0 | G55: 0 | H55: 0 | I55: 0 | J55: 0 | K55: 303.2116872 | L55: 303.06725 | M55: 303.06725 | N55: ECPT | O55: Y
A56: AB802 Memorandum Account (AB802MA) | B56: D.24-12-074, AL6430-G-A | C56: 0 | D56: 0 | E56: 0 | F56: 0 | G56: 0 | H56: 0 | I56: 0 | J56: 0 | K56: 0 | L56: 1235.818849 | M56: 1235.818849 | N56: EPAM | O56: Y
A57: AMIBA Escalated Jurisdiction Cost Subaccount | B57: D.24-12-074, AL6430-G-A | C57: 0 | D57: 0 | E57: 0 | F57: 0 | G57: 0 | H57: 0 | I57: 0 | J57: 0 | K57: 0 | L57: 952.4052728 | M57: 952.4052728 | N57: EPAM | O57: Y
A58: AMIBA Deployment and Post-Deployment subaccounts | B58: D.24-12-074, AL6430-G-A | C58: 0 | D58: 0 | E58: 0 | F58: 0 | G58: 0 | H58: 0 | I58: 0 | J58: 0 | K58: 0 | L58: -589.4910628 | M58: -589.4910628 | N58: EPAM | O58: Y
A59: Core Gas Balancing Memorandum Account (CGBMA) | B59: D.24-12-074, AL6430-G-A | C59: 0 | D59: 0 | E59: 0 | F59: 0 | G59: 0 | H59: 0 | I59: 0 | J59: 0 | K59: 0 | L59: 4474.483233 | M59: 4474.483233 | N59: EPAM | O59: Y
A60: Diary Biomethane Solicitation Develop. Memorandum Account (DBSDMA) | B60: D.24-12-074, AL6430-G-A | C60: 0 | D60: 0 | E60: 0 | F60: 0 | G60: 0 | H60: 0 | I60: 0 | J60: 0 | K60: 0 | L60: 1037.325066 | M60: 1037.325066 | N60: EPAM | O60: Y
A61: Injection Enhancement Cost Memorandum Account (IECMA) | B61: D.24-12-074, AL6430-G-A | C61: 0 | D61: 0 | E61: 0 | F61: 0 | G61: 0 | H61: 0 | I61: 0 | J61: 0 | K61: 0 | L61: -209.4205028 | M61: -209.4205028 | N61: EPAM | O61: Y
A62: Residential Disconnect Memorandum Account (RDMA) | B62: D.24-12-074, AL6430-G-A | C62: 0 | D62: 0 | E62: 0 | F62: 0 | G62: 0 | H62: 0 | I62: 0 | J62: 0 | K62: 0 | L62: 9.701236543 | M62: 9.701236543 | N62: EPAM | O62: Y
A63: Wildfire Customer Protection Memorandum Account (WCPMA) | B63: D.24-12-074, AL6430-G-A | C63: 0 | D63: 0 | E63: 0 | F63: 0 | G63: 0 | H63: 0 | I63: 0 | J63: 0 | K63: 0 | L63: 127.6535183 | M63: 127.6535183 | N63: EPAM | O63: Y
A64: Avoided Cost Calculator Update Memorandum Account (ACCUMA) | B64: D.24-12-074, AL6430-G-A | C64: 0 | D64: 0 | E64: 0 | F64: 0 | G64: 0 | H64: 0 | I64: 0 | J64: 0 | K64: 0 | L64: 65.29815233 | M64: 65.29815233 | N64: EPAM | O64: Y
A65: California Consumer Privacy Act Memorandum Account (CCPAMA) | B65: D.24-12-074, AL6430-G-A | C65: 0 | D65: 0 | E65: 0 | F65: 0 | G65: 0 | H65: 0 | I65: 0 | J65: 0 | K65: 0 | L65: 3668.345737 | M65: 3668.345737 | N65: EPAM | O65: Y
A66: Emergency Customer Protection Memorandum Account (ECPMA) | B66: D.24-12-074, AL6430-G-A | C66: 0 | D66: 0 | E66: 0 | F66: 0 | G66: 0 | H66: 0 | I66: 0 | J66: 0 | K66: 0 | L66: 359.9334552 | M66: 359.9334552 | N66: EPAM | O66: Y
A67: Morongo Right of Way Memorandum Account (MROWMA) | B67: D.24-12-074, AL6430-G-A | C67: 0 | D67: 0 | E67: 0 | F67: 0 | G67: 0 | H67: 0 | I67: 0 | J67: 0 | K67: 0 | L67: 56007.72103 | M67: 56007.72103 | N67: EPAM | O67: Y
A68: Residential Disconnect Protections Memorandum Account (RDPMA) | B68: D.24-12-074, AL6430-G-A | C68: 0 | D68: 0 | E68: 0 | F68: 0 | G68: 0 | H68: 0 | I68: 0 | J68: 0 | K68: 0 | L68: 2610.392714 | M68: 2610.392714 | N68: EPAM | O68: Y
A69: Aliso Canyon Memorandum Account (ACMA) | B69: D.24-12-074, AL6430-G-A | C69: 0 | D69: 0 | E69: 0 | F69: 0 | G69: 0 | H69: 0 | I69: 0 | J69: 0 | K69: 0 | L69: 12154.54219 | M69: 12155.8965 | N69: Storage | O69: Y
A70: Cost of Capital Adjustment (Subtracted from Base Margin) | B70: D.24-12-074, AL6430-G-A | C70: 0 | D70: 0 | E70: 0 | F70: 0 | G70: 0 | H70: 0 | I70: 0 | J70: 0 | K70: 0 | L70: -34275 | M70: -34275 | N70: EPAM | O70: N
A71: General Rate Case Revenue Requirement Memorandum Account (GRCMA) | B71: D.24-12-074, AL6430-G-A | C71: 0 | D71: 0 | E71: 0 | F71: 0 | G71: 0 | H71: 0 | I71: 0 | J71: 0 | K71: 0 | L71: 250251.014 | M71: 250251.014 | N71: EPAM | O71: Y
A72: GRCMA Sub allocation for AB32 Admin Fees | B72: D.24-12-074, AL6430-G-A | C72: 0 | D72: 0 | E72: 0 | F72: 0 | G72: 0 | H72: 0 | I72: 0 | J72: 0 | K72: 0 | L72: 4736 | M72: 4736 | N72: ECPT | O72: Y
A73: GRCMA PSEP Local Transmission | B73: D.24-12-074, AL6430-G-A | C73: 0 | D73: 0 | E73: 0 | F73: 0 | G73: 0 | H73: 0 | I73: 0 | J73: 0 | K73: 0 | L73: -5984.28996 | M73: -5984.28996 | N73: Local Transmission | O73: Y
A74: GRCMA PSEP Distribution | B74: D.24-12-074, AL6430-G-A | L74: 28198.07333 | M74: 28198.07333 | N74: Distribution | O74: Y
A75: Subtotal Safety Affordability Reliability | C75: =SUM(C9:C52) -> 3230710.353 | D75: =SUM(D9:D55) -> 3673812.442 | E75: 3539196.676 | F75: 3539196.676 | G75: 3523347.194 | H75: 3727501.655 | I75: 3886558.033 | J75: 3886558.033 | K75: 3799215.553 | L75: =SUM(L9:L74) -> 4400110.339 | M75: =SUM(M9:M74) -> 4243439.83
A78: Public Policy Proceedings
A79: AB32 Fees (subtracted from base margin and allocated here) | B79: D.24-12-074 | C79: 5107.071894 | D79: 5106.20142 | E79: 5106.20142 | F79: 5106.20142 | G79: 5106.20142 | H79: 5106.20142 | I79: 5106.20142 | J79: 5106.20142 | K79: 5106.20142 | L79: 12693.43568 | M79: 12693.43568 | N79: ECPT adjusted | O79: N
A80: Green House Gas Balancing Account (GHGBA) - Company Gas Compressor Revenue Requirement | B80: AL 6421-G, D.24-07-009 | C80: 2676.455882 | D80: 2388.575096 | E80: 2388.575096 | F80: 2388.575096 | G80: 2388.575096 | H80: 2684.159829 | I80: 2684.159829 | J80: 2684.159829 | K80: 2343.979971 | L80: 2342.863399 | M80: 2342.863399 | N80: ECPT | O80: N
A81: Green House Gas Balancing Account (GHGBA) - End User Revenue Requirement | B81: AL 6421-G, D.24-07-009 | C81: 421911.6559 | D81: 451660.1517 | E81: 451660.1517 | F81: 451660.1517 | G81: 451660.1517 | H81: 659841.4191 | I81: 659841.4191 | J81: 659841.4191 | K81: 824457.2471 | L81: 824179.789 | M81: 824179.789 | N81: GHG End User | O81: N
A82: Green House Gas Balancing Account (GHGBA) - LUAF Revenue Requirement | B82: AL 6421-G, D.24-07-009 | C82: 11523.70083 | D82: 11338.59513 | E82: 11338.59513 | F82: 11338.59513 | G82: 11338.59513 | H82: 14890.28891 | I82: 14890.28891 | J82: 14890.28891 | K82: 14055.21946 | L82: 14049.97763 | M82: 14051.9063 | N82: 47% Res (LUAF, Other) | O82: N
A83: Green House Gas Balancing Account (GHGBA) - Company Gas Compressor | B83: AL 6421-G, D.24-07-009 | C83: 110.1068734 | D83: -783.1516359 | E83: -783.1516359 | F83: -783.1516359 | G83: -783.1516359 | H83: -2420.193065 | I83: -2420.193065 | J83: -2420.193065 | K83: -291.5247478 | L83: -291.3858778 | M83: -291.3858778 | N83: ECPT | O83: Y
A84: Green House Gas Balancing Account (GHGBA) - End User | B84: AL 6421-G, D.24-07-009 | C84: 24082.11232 | D84: -22703.37309 | E84: -22703.37309 | F84: -22703.37309 | G84: -22703.37309 | H84: 85564.85517 | I84: 85564.85517 | J84: 85564.85517 | K84: -99825.58576 | L84: -99791.99104 | M84: -99791.99104 | N84: GHG End User | O84: Y
A85: Green House Gas Balancing Account (GHGBA) - LUAF | B85: AL 6421-G, D.24-07-009 | C85: 96.16147584 | D85: 3057.496701 | E85: 3057.496701 | F85: 3057.496701 | G85: 3057.496701 | H85: -7155.03039 | I85: -7155.03039 | J85: -7155.03039 | K85: -17279.4012 | L85: -17272.95692 | M85: -17275.32802 | N85: 47% Res (LUAF, Other) | O85: Y
A86: New Envirnomental Regulatory Balancing Account (NERBA) - Admin Fees Subaccount | B86: AL 6421-G, D.24-07-009 | C86: 3566.9059 | D86: 5564.392269 | E86: 5564.392269 | F86: 5564.392269 | G86: 5564.392269 | H86: 8886.02153 | I86: 8886.02153 | J86: 8886.02153 | K86: 7220.333492 | L86: -656.1735167 | M86: -656.1735167 | N86: ECPT adjusted | O86: Y
A87: New Environmental Regulatory Balancing Account (NERBA) - Leak Detection & Repair (LDAR) sub-account | B87: AL 6421-G, D.24-07-009 | C87: 1979.707886 | D87: 6090.186376 | E87: 6090.186376 | F87: 6090.186376 | G87: 6090.196959 | H87: 8805.759368 | I87: 8805.759326 | J87: 8805.759326 | K87: 10802.02753 | L87: -981.6438092 | M87: -981.6438092 | N87: EPAM | O87: Y
A88: New Envirnomental Regulatory Balancing Account (NERBA) -Natural Gas Leak Abatement Program | B88: AL 6421-G, D.24-07-009 | C88: -2147.512017 | D88: 0 | E88: 0 | F88: 0 | G88: 0 | H88: 0 | I88: 0 | J88: 0 | K88: 0 | L88: 0 | M88: 0 | N88: EPAM | O88: Y
A89: New Envirnomental Regulatory Balancing Account (NERBA) - Subpart W | B89: AL 6421-G, D.24-07-009 | C89: 0 | D89: 0 | E89: 0 | F89: 0 | G89: 0 | H89: 0 | I89: 0 | J89: 0 | K89: -889.9950251 | L89: -889.6695427 | M89: -889.6695427 | N89: EPAM | O89: Y
A90: New Environmental Regulatory Balancing Account (NERBA) - MS4 sub-account | B90: AL 6421-G, D.24-07-009 | C90: 0 | D90: 0 | E90: 0 | F90: 0 | G90: 0 | H90: 0 | I90: 0 | J90: 0 | K90: -843.0909638 | L90: -842.7831119 | M90: -842.7831119 | N90: EPAM | O90: Y
A91: NGV, EG,TLS Adjustment | B91: AL 6421-G, D.24-07-009 | C91: -6644.931817 | D91: 10390.21603 | E91: 10421.05359 | F91: 10394.54613 | G91: 10191.85865 | H91: 8841 | I91: 8840.838331 | J91: 9275.991556 | K91: 5762.69625 | L91: 8112.407169 | M91: 7976.952669 | N91: Non-Residential | O91: N
A92: Natural Gas Leak Abatement Program Revenue Requirement | B92: AL 5915G, AL 6071, AL 6168-G, AL 5950-G-B | C92: 86446.46472 | D92: 86431.16512 | E92: 86431.16512 | F92: 107531.4643 | G92: 107531.6511 | H92: 104496.8284 | I92: 104898.9772 | J92: 104898.9772 | K92: 104604.1877 | L92: 104565.979 | M92: 104565.979 | N92: EPAM | O92: N
A93: Biogas Conditioning/Upgrading Svcs Bal Acct (BCSBA) | B93: D. 13-12-040 | C93: -48.66967436 | D93: 0 | E93: 0 | F93: 0 | G93: 0 | H93: 0 | I93: 0 | J93: 0 | K93: 0 | L93: 0 | M93: 0 | N93: EPAM | O93: Y
A94: Diary Biomethane Project Balancing Account (DBPBA) | B94: D. 17-12-004 | C94: 45457.03256 | D94: 34573.34405 | E94: 34573.34405 | F94: 34573.34405 | G94: 34573.40413 | H94: 1209.195516 | I94: 1209.195511 | J94: 1209.195511 | K94: 0 | L94: 0 | M94: 0 | N94: EPAM | O94: Y
A95: Diary Biomethane Project Memorandum Account (DBPMA) | B95: D. 17-12-004 | C95: =0 -> 0 | D95: 8114.656258 | E95: 8114.656258 | F95: 8114.656258 | G95: 8114.670358 | H95: 5125.990541 | I95: 5125.990516 | J95: 5125.990516 | K95: 6275.667165 | L95: 6273.374869 | M95: 6273.374869 | N95: EPAM | O95: Y
A96: California Solar Iniative Thermal Memorandum Account (CSITPMA) | B96: D. 10-01-022 | C96: 1411.38197 | D96: 1113.860455 | E96: 1113.860455 | F96: 1113.860455 | G96: 1113.860455 | H96: 1391.107979 | I96: 1391.107979 | J96: 1391.107979 | K96: 2681.917678 | L96: 2681.015121 | M96: 2681.015121 | N96: ECPT adjusted | O96: Y
A97: Biomethane Procurement and Pilot Costs Balancing Account (BPPCBA) - Program Administrative Costs Subaccount | B97: D. 22-02-025 | C97: 0 | D97: 0 | E97: 0 | F97: 0 | G97: 0 | H97: 237.0470114 | I97: 237.0470103 | J97: 237.0470103 | K97: 0 | L97: 0 | M97: 0 | N97: EPAM | O97: Y
A98: Biomethane Cost Incentive Pgm Balancing Acct (BCIPBA) | B98: D.16-12-043/D.19-12-009 | C98: 10172.0832 | D98: 0 | E98: 0 | F98: 0 | G98: 0 | H98: 0 | I98: 0 | J98: 0 | K98: 0 | L98: 0 | M98: 0 | N98: ECPT | O98: Y
A104: PPPS Programs
A105: California Alternate Rates for Energy (CARE) | B105: D.21-06-015, AL 6393 | C105: 229388.1321 | D105: 199514.8915 | E105: 199514.8915 | F105: 199514.8915 | G105: 199514.8915 | H105: 272251.1514 | I105: 272251.1514 | J105: 272251.1514 | K105: 172216.7959 | L105: =K105 -> 172216.7959 | M105: =L105 -> 172216.7959 | N105: Public Purpose Programs | O105: N
A106: Energy Efficiency | B106: AL 6393 | C106: 107144.935 | D106: 166906.526 | E106: 166906.526 | F106: 166906.526 | G106: 166906.526 | H106: 165866.6393 | I106: 165866.6393 | J106: 165866.6393 | K106: 166375.8554 | L106: =K106 -> 166375.8554 | M106: 166375.8554 | N106: Public Purpose Programs | O106: N
A107: RD&D | B107: AL 6393 | C107: 12406.90965 | D107: 12264.872 | E107: 12264.872 | F107: 12264.872 | G107: 12264.872 | H107: 11380.1178 | I107: 11380.1178 | J107: 11380.1178 | K107: 12881.5384 | L107: 12881.5384 | M107: 12881.5384 | N107: Public Purpose Programs | O107: N
A108: Bureau Of Equalization BOE | B108: AL 6393 | C108: 547.65497 | D108: 520.254 | E108: 520.254 | F108: 520.254 | G108: 520.254 | H108: 476.44983 | I108: 476.44983 | J108: 476.44983 | K108: 488.24258 | L108: 488.24258 | M108: 488.24258 | N108: Public Purpose Programs | O108: N
A109: Energy Savings Assistance | B109: D.21-06-015, AL 6393 | C109: =0 -> 0 | D109: 80174.20485 | E109: 80174.20485 | F109: 80174.20485 | G109: 80174.20485 | H109: 111508.2999 | I109: 111508.2999 | J109: 111508.2999 | K109: 107549.884 | L109: 107549.884 | M109: 107549.884 | N109: Public Purpose Programs | O109: N
A110: SJVDGPMA | B110: AL 6393 | C110: =0 -> 0 | D110: 806.165 | E110: 806.165 | F110: 806.165 | G110: 806.165 | H110: 90.978 | I110: 90.978 | J110: 90.978 | K110: -62.068 | L110: -62.068 | M110: -62.068 | N110: Public Purpose Programs | O110: N
A117: Subtotal Public Policy | C117: =SUM(C79:C116) -> 955187.3596 | D117: =SUM(D79:D116) -> 1062529.229 | E117: 1062560.067 | F117: 1083633.858 | G117: 1083431.443 | H117: 1459078.288 | I117: 1459480.275 | J117: 1459915.428 | K117: 1323630.128 | L117: 1313622.486 | M117: 1313486.589
A119: EOR | B119: D.24-07-009, AL 6421-G | C119: -19696.02666 | D119: -25124.8966 | E119: -25124.8966 | F119: -25233.57266 | G119: -24742.54871 | H119: -32255.65745 | I119: -33347.39611 | J119: -33358.5985 | K119: -26721.64885 | L119: -13185.84461 | N119: EPAM
A121: Procurement
A122: Procurement | B122: D.98-07-068 | C122: =TotalCoreVolume*SetUp!K11 -> 1063670.711 | D122: 3301020.314 | E122: 3301020.314 | F122: 3301020.314 | G122: 3301020.314 | H122: 1800955.444 | I122: 1800955.444 | J122: 1800955.444 | K122: =TotalCoreVolume*SetUp!K5 -> 1051542.735 | L122: =K122 -> 1051542.735 | M122: =L122 -> 1051542.735 | N122: Core Procurement
A128: Subtotal Procurement | C128: =SUM(C122:C127) -> 1063670.711 | D128: 3301020.314 | E128: 3301020.314 | F128: 3301020.314 | G128: 3301020.314 | H128: 1800955.444 | I128: 1800955.444 | J128: =SUM(J122:J127) -> 1800955.444 | K128: =SUM(K122:K127) -> 1051542.735 | L128: 1051542.735 | M128: 1051542.735
A130: Total Authorized Revenue | C130: =C75+C117+C128+C119 -> 5229872.396 | D130: 8012237.088 | E130: 7877652.16 | F130: 7898617.276 | G130: 7883056.402 | H130: 6955279.729 | I130: 7113646.355 | J130: =J75+J117+J128+J119 -> 7114070.306 | K130: =K75+K117+K128+K119 -> 6147666.767 | L130: 6752089.716 | M130: =M75+M117+M128+M119 -> 6608469.154
L132: =SUM(L75,L79:L98)-L48+L119 -> 4855609.133 | M132: =SUM(M75,M79:M98)-M48+M119 -> 4792586.32
L133: 4855609.133 | M133: 4792586.32
L134: =L132-L133 -> 0 | M134: =M132-M133 -> 0

Sheet Incremental Rev Req
A2: ='Authorized Rev Req'!A2 -> Annual Period 2025
A3: Reporting Date: Quarter Ended September 30
A5: Current Revenue Requirement ($000): | B5: ='Authorized Rev Req'!M130 -> 6608469.154
A6: Current Revenue Requirement Effective: | B6: ='Authorized Rev Req'!M5 -> 2025-07-01
A7: Approved Application(s), Implemented Since Jan 1 or To Be Implemented
A8: Filing Description | B8: Proceeding | C8: Authority for Revenue Requirement | D8: Authorized Revenue Requirement with FF&U ($000) | E8: Revenue Recovery Mechanism | F8: Authorized Revenue Requirement with FF&U ($000) - Breakout by Year | K8: Existing or New Item (if existing, use delta from prior for rate impact) | O8: =TRANSPOSE(YearsForRateImpact) -> 2025 | P8: 2026 | Q8: 2027 | R8: 2028 | S8: 2029
A9: Safety Affordability Reliability Proceedings | D9: =B6 -> 2025-07-01 | F9: =TRANSPOSE(YearsForRateImpact) -> 2025 | G9: 2026 | H9: 2027 | I9: 2028 | J9: 2029 | L9: 0.03 | N9: =RevRecoveryMechanisms -> Core Procurement | O9: =SUMIF($E$10:$E$113,N9,$F$10:$F$113) -> 1051542.735 | P9: =SUMIF($E$10:$E$113,N9,$G$10:$G$113) -> 1051542.735 | Q9: =SUMIF($E$10:$E$113,N9,$H$10:$H$113) -> 1051542.735 | R9: =SUMIF($E$10:$E$113,N9,$I$10:$I$113) -> 1051542.735 | S9: =SUMIF($E$10:$E$113,N9,$J$10:$J$113) -> 1051542.735
A10: ='Authorized Rev Req'!A9 -> Total Allocated Base Margin | C10: ='Authorized Rev Req'!B9 -> D.24-12-074 | D10: =F10 -> 3218272.671 | E10: ='Authorized Rev Req'!N9 -> Allocated Base Margin | F10: ='Authorized Rev Req'!M9 -> 3218272.671 | G10: =F10+L10 -> 3314820.851 | H10: =G10+L12 -> 3414265.477 | I10: =H10 -> 3414265.477 | J10: =I10 -> 3414265.477 | K10: Existing | L10: =F10*L9 -> 96548.18014 | N10: Allocated Base Margin | O10: 3218272.671 | P10: 3314820.851 | Q10: 3414265.477 | R10: 3414265.477 | S10: 3414265.477
A11: ='Authorized Rev Req'!A10 -> Pipeline Safety Enhancement Plan (PSEP) GRC - Local Transmission (subtracted from Base Margin and allocated here) | C11: ='Authorized Rev Req'!B10 -> D.24-12-074 | D11: 12473.81268 | E11: ='Authorized Rev Req'!N10 -> Local Transmission | F11: ='Authorized Rev Req'!M10 -> 12473.81268 | G11: 0 | H11: =0 -> 0 | I11: =0 -> 0 | J11: =0 -> 0 | K11: Existing | L11: =F10+L10 -> 3314820.851 | N11: Distribution | O11: 90177.33422 | P11: 0 | Q11: 0 | R11: 0 | S11: 0
A12: ='Authorized Rev Req'!A11 -> Pipeline Safety Enhancement Plan (PSEP) GRC -Distribution (subtracted from Base Margin and allocated here) | C12: ='Authorized Rev Req'!B11 -> D.24-12-074 | D12: 73422.06 | E12: ='Authorized Rev Req'!N11 -> Distribution | F12: ='Authorized Rev Req'!M11 -> 73422.06 | G12: 0 | H12: =0 -> 0 | I12: =0 -> 0 | J12: =0 -> 0 | K12: Existing | L12: =L11*3% -> 99444.62554 | N12: ECPT adjusted | O12: 14718.27728 | P12: 0 | Q12: 0 | R12: 0 | S12: 0
A13: ='Authorized Rev Req'!A12 -> Company Use Gas: Other | C13: ='Authorized Rev Req'!B12 -> D.24-07-009, AL 6421-G,AL 6340-G-A | D13: 1223.184112 | E13: ='Authorized Rev Req'!N12 -> ECPT | F13: ='Authorized Rev Req'!M12 -> 1223.184112 | G13: 0 | H13: =0 -> 0 | I13: =0 -> 0 | J13: =0 -> 0 | K13: Existing | L13: =L11+L12 -> 3414265.477 | N13: Local Transmission | O13: -890.6592899 | P13: 0 | Q13: 0 | R13: 0 | S13: 0
A14: ='Authorized Rev Req'!A13 -> Company Use Gas: Storage Load Balancing | C14: ='Authorized Rev Req'!B13 -> D.24-07-009, AL 6421-G,AL 6340-G-A | D14: 3501.139374 | E14: ='Authorized Rev Req'!N13 -> ECPT | F14: ='Authorized Rev Req'!M13 -> 3501.139374 | G14: 0 | H14: =0 -> 0 | I14: =0 -> 0 | J14: =0 -> 0 | K14: Existing | N14: SGIP | O14: 0 | P14: 0 | Q14: 0 | R14: 0 | S14: 0
A15: ='Authorized Rev Req'!A14 -> Exchange Revenues & Interutility Transactions | C15: ='Authorized Rev Req'!B14 -> D.24-07-009, AL 6421-G,AL 6340-G-A | D15: 342.77791 | E15: ='Authorized Rev Req'!N14 -> ECPT | F15: ='Authorized Rev Req'!M14 -> 342.77791 | G15: 0 | H15: =0 -> 0 | I15: =0 -> 0 | J15: =0 -> 0 | K15: Existing | N15: GHG End User | O15: 724387.798 | P15: 0 | Q15: 0 | R15: 0 | S15: 0
A16: ='Authorized Rev Req'!A15 -> Unaccounted For (UAF) Gas | C16: ='Authorized Rev Req'!B15 -> D.24-07-009, AL 6421-G,AL 6340-G-A | D16: 30832.58319 | E16: ='Authorized Rev Req'!N15 -> 47% Res (LUAF, Other) | F16: ='Authorized Rev Req'!M15 -> 30832.58319 | G16: 0 | H16: =0 -> 0 | I16: =0 -> 0 | J16: =0 -> 0 | K16: Existing | N16: Public Purpose Programs | O16: 459450.2482 | P16: 276509 | Q16: 153968 | R16: 0 | S16: 0
A17: ='Authorized Rev Req'!A16 -> Well Incidents & Surface Leaks | C17: ='Authorized Rev Req'!B16 -> D.24-07-009, AL 6421-G,AL 6340-G-A | D17: 43.35194566 | E17: ='Authorized Rev Req'!N16 -> ECPT | F17: ='Authorized Rev Req'!M16 -> 43.35194566 | G17: 0 | H17: =0 -> 0 | I17: =0 -> 0 | J17: =0 -> 0 | K17: Existing | N17: Backbone Transmission | O17: 304889.8509 | P17: 0 | Q17: 0 | R17: 0 | S17: 0
A18: ='Authorized Rev Req'!A17 -> SCG PSEP - 2017 Forecast Application RevReq Capital Cost - Local Transmission | C18: ='Authorized Rev Req'!B17 -> D.24-07-009, AL 6421-G,AL 6340-G-A | D18: 343.4341302 | E18: ='Authorized Rev Req'!N17 -> Local Transmission | F18: ='Authorized Rev Req'!M17 -> 343.4341302 | G18: 0 | H18: =0 -> 0 | I18: =0 -> 0 | J18: =0 -> 0 | K18: Existing | N18: 47% Res (LUAF, Other) | O18: 27609.16147 | P18: 0 | Q18: 0 | R18: 0 | S18: 0
A19: ='Authorized Rev Req'!A18 -> SCG PSEP - 2017 Forecast Application RevReq Capital Cost - Distribution | C19: ='Authorized Rev Req'!B18 -> D.24-07-009, AL 6421-G,AL 6340-G-A | D19: 23492.26643 | E19: ='Authorized Rev Req'!N18 -> Distribution | F19: ='Authorized Rev Req'!M18 -> 23492.26643 | G19: 0 | H19: =0 -> 0 | I19: =0 -> 0 | J19: =0 -> 0 | K19: Existing | N19: ECPT | O19: 108243.1395 | P19: 0 | Q19: 0 | R19: 0 | S19: 0
A20: ='Authorized Rev Req'!A19 -> AMI Balancing Account (AMIBA) | C20: ='Authorized Rev Req'!B19 -> D.24-07-009, AL 6421-G,AL 6340-G-A | D20: 0 | E20: ='Authorized Rev Req'!N19 -> EPAM | F20: ='Authorized Rev Req'!M19 -> 0 | G20: 0 | H20: =0 -> 0 | I20: =0 -> 0 | J20: =0 -> 0 | K20: Existing | N20: EPAM | O20: 457964.0536 | P20: 57115.39492 | Q20: 62356.27851 | R20: 65805.05712 | S20: 69277.32567
A21: ='Authorized Rev Req'!A20 -> Residential Uncollectible Balancing Account (RUBA) | C21: ='Authorized Rev Req'!B20 -> D.24-07-009, AL 6421-G,AL 6340-G-A | D21: 68056.53932 | E21: ='Authorized Rev Req'!N20 -> ECPT | F21: ='Authorized Rev Req'!M20 -> 68056.53932 | G21: 0 | H21: =0 -> 0 | I21: =0 -> 0 | J21: =0 -> 0 | K21: Existing | N21: CFCA | O21: 116879.0578 | P21: 0 | Q21: 0 | R21: 0 | S21: 0
A22: ='Authorized Rev Req'!A21 -> Affiliate Transfer Fee Account (ATFA) | C22: ='Authorized Rev Req'!B21 -> D.24-07-009, AL 6421-G,AL 6340-G-A | D22: -159.1502742 | E22: ='Authorized Rev Req'!N21 -> EPAM | F22: ='Authorized Rev Req'!M21 -> -159.1502742 | G22: 0 | H22: =0 -> 0 | I22: =0 -> 0 | J22: =0 -> 0 | K22: Existing | N22: Non-Residential | O22: 35225.48627 | P22: 0 | Q22: 0 | R22: 0 | S22: 0
A23: ='Authorized Rev Req'!A22 -> Core Fixed Cost Account - Non NGV (CFCA) | C23: ='Authorized Rev Req'!B22 -> D.24-07-009, AL 6421-G,AL 6340-G-A | D23: 116879.0578 | E23: ='Authorized Rev Req'!N22 -> CFCA | F23: ='Authorized Rev Req'!M22 -> 116879.0578 | G23: 0 | H23: =0 -> 0 | I23: =0 -> 0 | J23: =0 -> 0 | K23: Existing | N23: Total | O23: =SUM(O9:O22) -> 6608469.154 | P23: =SUM(P9:P22) -> 4699987.981 | Q23: 4682132.491 | R23: 4531613.269 | S23: 4535085.538
A24: ='Authorized Rev Req'!A23 -> Core Fixed Cost Account - NGV (CFCA) | C24: ='Authorized Rev Req'!B23 -> D.24-07-009, AL 6421-G,AL 6340-G-A | D24: -10717.2894 | E24: ='Authorized Rev Req'!N23 -> Non-Residential | F24: ='Authorized Rev Req'!M23 -> -10717.2894 | G24: 0 | H24: =0 -> 0 | I24: =0 -> 0 | J24: =0 -> 0 | K24: Existing | N24: CPUC Fee | O24: =RegulatoryFee -> 0.0025
A25: ='Authorized Rev Req'!A24 -> Core Fixed Cost Account - C&I Shortfall (CFCA) | C25: ='Authorized Rev Req'!B24 -> D.24-07-009, AL 6421-G,AL 6340-G-A | D25: -352.6849195 | E25: ='Authorized Rev Req'!N24 -> Non-Residential | F25: ='Authorized Rev Req'!M24 -> -352.6849195 | G25: 0 | H25: =0 -> 0 | I25: =0 -> 0 | J25: =0 -> 0 | K25: Existing | L25: FFU Rate | N25: Check | O25: =O23-F114 -> 0 | P25: =P23-G114 -> 0 | Q25: =Q23-H114 -> 0 | R25: =R23-I114 -> 0 | S25: =S23-J114 -> 0
A26: ='Authorized Rev Req'!A25 -> Economic Practicality Shortfall Memorandum Account (EPSMA) | C26: ='Authorized Rev Req'!B25 -> D.24-07-009, AL 6421-G,AL 6340-G-A | D26: 331.4809398 | E26: ='Authorized Rev Req'!N25 -> Non-Residential | F26: ='Authorized Rev Req'!M25 -> 331.4809398 | G26: 0 | H26: =0 -> 0 | I26: =0 -> 0 | J26: =0 -> 0 | K26: Existing | L26: 1.016221981
A27: ='Authorized Rev Req'!A26 -> Enhanced Oil Recovery Account (EORA) | C27: ='Authorized Rev Req'!B26 -> D.24-07-009, AL 6421-G,AL 6340-G-A | D27: 1231.333538 | E27: ='Authorized Rev Req'!N26 -> EPAM | F27: ='Authorized Rev Req'!M26 -> 1231.333538 | G27: 0 | H27: =0 -> 0 | I27: =0 -> 0 | J27: =0 -> 0 | K27: Existing
A28: ='Authorized Rev Req'!A27 -> Hazardous Substance Cost-Recovery Account (HSCRA) | C28: ='Authorized Rev Req'!B27 -> D.24-07-009, AL 6421-G,AL 6340-G-A | D28: 7080.758101 | E28: ='Authorized Rev Req'!N27 -> ECPT | F28: ='Authorized Rev Req'!M27 -> 7080.758101 | G28: 0 | H28: =0 -> 0 | I28: =0 -> 0 | J28: =0 -> 0 | K28: Existing
A29: ='Authorized Rev Req'!A28 -> Intervenor Award Memorandum Account (IAMA) | C29: ='Authorized Rev Req'!B28 -> D.24-07-009, AL 6421-G,AL 6340-G-A | D29: 1578.821555 | E29: ='Authorized Rev Req'!N28 -> ECPT | F29: ='Authorized Rev Req'!M28 -> 1578.821555 | G29: 0 | H29: =0 -> 0 | I29: =0 -> 0 | J29: =0 -> 0 | K29: Existing
A30: ='Authorized Rev Req'!A29 -> Master Meter Balancing Account (MMBA) | C30: ='Authorized Rev Req'!B29 -> D.24-07-009, AL 6421-G,AL 6340-G-A | D30: 56029.54399 | E30: ='Authorized Rev Req'!N29 -> EPAM | F30: ='Authorized Rev Req'!M29 -> 56029.54399 | G30: 41038.83714 | H30: 46568.63343 | I30: 50528.70619 | J30: 54417.13631 | K30: Existing
A31: ='Authorized Rev Req'!A30 -> Noncore Fixed Cost Account (NFCA) Margin | C31: ='Authorized Rev Req'!B30 -> D.24-07-009, AL 6421-G,AL 6340-G-A | D31: 19264.23989 | E31: ='Authorized Rev Req'!N30 -> Non-Residential | F31: ='Authorized Rev Req'!M30 -> 19264.23989 | G31: 0 | H31: =0 -> 0 | I31: =0 -> 0 | J31: =0 -> 0 | K31: Existing
A32: ='Authorized Rev Req'!A31 -> Noncore Fixed Cost Account (NFCA) Nonmargin | C32: ='Authorized Rev Req'!B31 -> D.24-07-009, AL 6421-G,AL 6340-G-A | D32: 18722.78709 | E32: ='Authorized Rev Req'!N31 -> Non-Residential | F32: ='Authorized Rev Req'!M31 -> 18722.78709 | G32: 0 | H32: =0 -> 0 | I32: =0 -> 0 | J32: =0 -> 0 | K32: Existing
A33: ='Authorized Rev Req'!A32 -> Integrated Transmission Balancing Account (ITBA) Margin | C33: ='Authorized Rev Req'!B32 -> D.24-07-009, AL 6421-G,AL 6340-G-A | D33: 13611.38962 | E33: ='Authorized Rev Req'!N32 -> ECPT | F33: ='Authorized Rev Req'!M32 -> 13611.38962 | G33: 0 | H33: =0 -> 0 | I33: =0 -> 0 | J33: =0 -> 0 | K33: Existing
A34: ='Authorized Rev Req'!A33 -> Compressor Station Fuel and Power Balancing Account (CFPBA) | C34: ='Authorized Rev Req'!B33 -> D.24-07-009, AL 6421-G,AL 6340-G-A | D34: 14055.49615 | E34: ='Authorized Rev Req'!N33 -> ECPT | F34: ='Authorized Rev Req'!M33 -> 14055.49615 | G34: 0 | H34: =0 -> 0 | I34: =0 -> 0 | J34: =0 -> 0 | K34: Existing
A35: ='Authorized Rev Req'!A34 -> Compression Services Balancing Account (CSBA) | C35: ='Authorized Rev Req'!B34 -> D.24-07-009, AL 6421-G,AL 6340-G-A | D35: 0 | E35: ='Authorized Rev Req'!N34 -> Non-Residential | F35: ='Authorized Rev Req'!M34 -> 0 | G35: 0 | H35: =0 -> 0 | I35: =0 -> 0 | J35: =0 -> 0 | K35: Existing
A36: ='Authorized Rev Req'!A35 -> Company-Use Fuel for Load Balancing Account (CUFLBA) | C36: ='Authorized Rev Req'!B35 -> D.24-07-009, AL 6421-G,AL 6340-G-A | D36: 2552.735232 | E36: ='Authorized Rev Req'!N35 -> ECPT | F36: ='Authorized Rev Req'!M35 -> 2552.735232 | G36: 0 | H36: =0 -> 0 | I36: =0 -> 0 | J36: =0 -> 0 | K36: Existing
A37: ='Authorized Rev Req'!A36 -> Noncore Storage Balancing Account (NSBA) | C37: ='Authorized Rev Req'!B36 -> D.24-07-009, AL 6421-G,AL 6340-G-A | D37: -28170.62481 | E37: ='Authorized Rev Req'!N36 -> ECPT | F37: ='Authorized Rev Req'!M36 -> -28170.62481 | G37: 0 | H37: =0 -> 0 | I37: =0 -> 0 | J37: =0 -> 0 | K37: Existing
A38: ='Authorized Rev Req'!A37 -> Pension Balancing Account (PBA) | C38: ='Authorized Rev Req'!B37 -> D.24-07-009, AL 6421-G,AL 6340-G-A | D38: 17893.67727 | E38: ='Authorized Rev Req'!N37 -> EPAM | F38: ='Authorized Rev Req'!M37 -> 17893.67727 | G38: 0 | H38: =0 -> 0 | I38: =0 -> 0 | J38: =0 -> 0 | K38: Existing
A39: ='Authorized Rev Req'!A38 -> PBOP Balancing Account (PBOPBA) | C39: ='Authorized Rev Req'!B38 -> D.24-07-009, AL 6421-G,AL 6340-G-A | D39: -3240.981219 | E39: ='Authorized Rev Req'!N38 -> EPAM | F39: ='Authorized Rev Req'!M38 -> -3240.981219 | G39: 0 | H39: =0 -> 0 | I39: =0 -> 0 | J39: =0 -> 0 | K39: Existing
A40: ='Authorized Rev Req'!A39 -> Safety Enhancement Capital Cost Balancing Account (SECCBA) - Local Transmission | C40: ='Authorized Rev Req'!B39 -> D.24-07-009, AL 6421-G,AL 6340-G-A | D40: -7934.320485 | E40: ='Authorized Rev Req'!N39 -> Local Transmission | F40: ='Authorized Rev Req'!M39 -> -7934.320485 | G40: 0 | H40: =0 -> 0 | I40: =0 -> 0 | J40: =0 -> 0 | K40: Existing
A41: ='Authorized Rev Req'!A40 -> Safety Enhancement Capital Cost Balancing Account (SECCBA) - Distribution | C41: ='Authorized Rev Req'!B40 -> D.24-07-009, AL 6421-G,AL 6340-G-A | D41: -35521.23128 | E41: ='Authorized Rev Req'!N40 -> Distribution | F41: ='Authorized Rev Req'!M40 -> -35521.23128 | G41: 0 | H41: =0 -> 0 | I41: =0 -> 0 | J41: =0 -> 0 | K41: Existing
A42: ='Authorized Rev Req'!A41 -> Safety Enhancement Expense Balancing Account (SEEBA) - Local Transmission | C42: ='Authorized Rev Req'!B41 -> D.24-07-009, AL 6421-G,AL 6340-G-A | D42: 210.7043451 | E42: ='Authorized Rev Req'!N41 -> Local Transmission | F42: ='Authorized Rev Req'!M41 -> 210.7043451 | G42: 0 | H42: =0 -> 0 | I42: =0 -> 0 | J42: =0 -> 0 | K42: Existing
A43: ='Authorized Rev Req'!A42 -> Safety Enhancement Expense Balancing Account (SEEBA) - Distribution | C43: ='Authorized Rev Req'!B42 -> D.24-07-009, AL 6421-G,AL 6340-G-A | D43: 586.1657352 | E43: ='Authorized Rev Req'!N42 -> Distribution | F43: ='Authorized Rev Req'!M42 -> 586.1657352 | G43: 0 | H43: =0 -> 0 | I43: =0 -> 0 | J43: =0 -> 0 | K43: Existing
A44: ='Authorized Rev Req'!A43 -> Research Royalty Memorandum Account (RRMA) | C44: ='Authorized Rev Req'!B43 -> D.24-07-009, AL 6421-G,AL 6340-G-A | D44: -187.6590959 | E44: ='Authorized Rev Req'!N43 -> EPAM | F44: ='Authorized Rev Req'!M43 -> -187.6590959 | G44: 0 | H44: =0 -> 0 | I44: =0 -> 0 | J44: =0 -> 0 | K44: Existing
A45: ='Authorized Rev Req'!A44 -> Self-Generation Program Memorandum Account (SGPMA) | C45: ='Authorized Rev Req'!B44 -> D.24-07-009, AL 6421-G,AL 6340-G-A | D45: 0 | E45: ='Authorized Rev Req'!N44 -> SGIP | F45: ='Authorized Rev Req'!M44 -> 0 | G45: 0 | H45: =0 -> 0 | I45: =0 -> 0 | J45: =0 -> 0 | K45: Existing
A46: ='Authorized Rev Req'!A45 -> System Operator Gas Account (SOGA) | C46: ='Authorized Rev Req'!B45 -> D.24-07-009, AL 6421-G,AL 6340-G-A | D46: 1062.357878 | E46: ='Authorized Rev Req'!N45 -> ECPT | F46: ='Authorized Rev Req'!M45 -> 1062.357878 | G46: 0 | H46: =0 -> 0 | I46: =0 -> 0 | J46: =0 -> 0 | K46: Existing
A47: ='Authorized Rev Req'!A46 -> Rewards & Penalties Balancing Account (RPBA) | C47: ='Authorized Rev Req'!B46 -> D.24-07-009, AL 6421-G,AL 6340-G-A | D47: -4451.889016 | E47: ='Authorized Rev Req'!N46 -> EPAM | F47: ='Authorized Rev Req'!M46 -> -4451.889016 | G47: 0 | H47: =0 -> 0 | I47: =0 -> 0 | J47: =0 -> 0 | K47: Existing
A48: ='Authorized Rev Req'!A47 -> Liability Insurance Premium Balancing Account (LIPBA) | C48: ='Authorized Rev Req'!B47 -> D.24-07-009, AL 6421-G,AL 6340-G-A | D48: -15158.15619 | E48: ='Authorized Rev Req'!N47 -> EPAM | F48: ='Authorized Rev Req'!M47 -> -15158.15619 | G48: 0 | H48: =0 -> 0 | I48: =0 -> 0 | J48: =0 -> 0 | K48: Existing
A49: ='Authorized Rev Req'!A48 -> NonCore Backbone Transmission | C49: ='Authorized Rev Req'!B48 -> D.24-07-009, AL 6421-G,AL 6340-G-A | D49: 304889.8509 | E49: ='Authorized Rev Req'!N48 -> Backbone Transmission | F49: ='Authorized Rev Req'!M48 -> 304889.8509 | G49: =0 -> 0 | H49: =0 -> 0 | I49: =0 -> 0 | J49: =0 -> 0 | K49: Existing
A50: ='Authorized Rev Req'!A49 -> Storage Integrity Management Program Balancing Account (SIMPBA) Balance | C50: ='Authorized Rev Req'!B49 -> D.22-07-016, D.20-02-045, AL6421-G | D50: 0 | E50: ='Authorized Rev Req'!N49 -> EPAM | F50: ='Authorized Rev Req'!M49 -> 0 | G50: 0 | H50: =0 -> 0 | I50: =0 -> 0 | J50: =0 -> 0 | K50: Existing
A51: ='Authorized Rev Req'!A50 -> On-Bill Financing Balancing Account (OBFBA) | C51: ='Authorized Rev Req'!B50 -> D.19-03-001, AL 5853-A, AL 6421-G | D51: 0 | E51: ='Authorized Rev Req'!N50 -> EPAM | F51: ='Authorized Rev Req'!M50 -> 0 | G51: 0 | H51: =0 -> 0 | I51: =0 -> 0 | J51: =0 -> 0 | K51: Existing
A52: ='Authorized Rev Req'!A51 -> System Reliability Memorandum Account (SRMA) | C52: ='Authorized Rev Req'!B51 -> D.24-07-009, AL 6421-G,AL 6340-G-A | D52: 15319.20309 | E52: ='Authorized Rev Req'!N51 -> ECPT | F52: ='Authorized Rev Req'!M51 -> 15319.20309 | G52: 0 | H52: =0 -> 0 | I52: =0 -> 0 | J52: =0 -> 0 | K52: Existing
A53: ='Authorized Rev Req'!A52 -> Distributed Energy Resources Svcs Bal Account (DERSBA) | C53: ='Authorized Rev Req'!B52 -> D.24-07-009, AL 6421-G,AL 6340-G-A | D53: 0 | E53: ='Authorized Rev Req'!N52 -> EPAM | F53: ='Authorized Rev Req'!M52 -> 0 | G53: 0 | H53: =0 -> 0 | I53: =0 -> 0 | J53: =0 -> 0 | K53: Existing
A54: ='Authorized Rev Req'!A53 -> Percentage of Income Payment Plan Balancing Account (PIPPBA) | C54: ='Authorized Rev Req'!B53 -> D.24-07-009, AL 6421-G,AL 6340-G-A | D54: =F54 -> 895.4652414 | E54: ='Authorized Rev Req'!N53 -> ECPT | F54: ='Authorized Rev Req'!M53 -> 895.4652414 | G54: =0 -> 0 | H54: =0 -> 0 | I54: =0 -> 0 | J54: =0 -> 0 | K54: Existing
A55: ='Authorized Rev Req'!A54 -> Transmission Integrity Management Program Memorandum Account (TIMPBA) Local Transmission | C55: ='Authorized Rev Req'!B54 -> AL 6325-G, D.24-07-009,AL 6421-G,AL 6340-G-A | D55: 0 | E55: ='Authorized Rev Req'!N54 -> Local Transmission | F55: ='Authorized Rev Req'!M54 -> 0 | G55: =0 -> 0 | H55: =0 -> 0 | I55: =0 -> 0 | J55: =0 -> 0 | K55: Existing
A56: ='Authorized Rev Req'!A55 -> San Joaquin Valley Disadvantaged Communities Bal Acct (SJVDACBA) - TTM subaccount | C56: ='Authorized Rev Req'!B55 -> D.18-12-015, AL 6421-G | D56: =F56 -> 303.06725 | E56: ECPT | F56: ='Authorized Rev Req'!M55 -> 303.06725 | G56: =0 -> 0 | H56: =0 -> 0 | I56: =0 -> 0 | J56: =0 -> 0 | K56: Existing
A57: ='Authorized Rev Req'!A56 -> AB802 Memorandum Account (AB802MA) | C57: ='Authorized Rev Req'!B56 -> D.24-12-074, AL6430-G-A | D57: =F57 -> 1235.818849 | E57: EPAM | F57: ='Authorized Rev Req'!M56 -> 1235.818849 | G57: 0 | H57: 0 | I57: 0 | J57: 0 | K57: Existing
A58: ='Authorized Rev Req'!A57 -> AMIBA Escalated Jurisdiction Cost Subaccount | C58: ='Authorized Rev Req'!B57 -> D.24-12-074, AL6430-G-A | D58: 952.4052728 | E58: EPAM | F58: ='Authorized Rev Req'!M57 -> 952.4052728 | G58: 0 | H58: 0 | I58: 0 | J58: 0 | K58: Existing
A59: ='Authorized Rev Req'!A58 -> AMIBA Deployment and Post-Deployment subaccounts | C59: ='Authorized Rev Req'!B58 -> D.24-12-074, AL6430-G-A | D59: -589.4910628 | E59: EPAM | F59: ='Authorized Rev Req'!M58 -> -589.4910628 | G59: 0 | H59: 0 | I59: 0 | J59: 0 | K59: Existing
A60: ='Authorized Rev Req'!A59 -> Core Gas Balancing Memorandum Account (CGBMA) | C60: ='Authorized Rev Req'!B59 -> D.24-12-074, AL6430-G-A | D60: 4474.483233 | E60: EPAM | F60: ='Authorized Rev Req'!M59 -> 4474.483233 | G60: 0 | H60: 0 | I60: 0 | J60: 0 | K60: Existing
A61: ='Authorized Rev Req'!A60 -> Diary Biomethane Solicitation Develop. Memorandum Account (DBSDMA) | C61: ='Authorized Rev Req'!B60 -> D.24-12-074, AL6430-G-A | D61: 1037.325066 | E61: EPAM | F61: ='Authorized Rev Req'!M60 -> 1037.325066 | G61: 0 | H61: 0 | I61: 0 | J61: 0 | K61: Existing
A62: ='Authorized Rev Req'!A61 -> Injection Enhancement Cost Memorandum Account (IECMA) | C62: ='Authorized Rev Req'!B61 -> D.24-12-074, AL6430-G-A | D62: -209.4205028 | E62: EPAM | F62: ='Authorized Rev Req'!M61 -> -209.4205028 | G62: 0 | H62: 0 | I62: 0 | J62: 0 | K62: Existing
A63: ='Authorized Rev Req'!A62 -> Residential Disconnect Memorandum Account (RDMA) | C63: ='Authorized Rev Req'!B62 -> D.24-12-074, AL6430-G-A | D63: 9.701236543 | E63: EPAM | F63: ='Authorized Rev Req'!M62 -> 9.701236543 | G63: 0 | H63: 0 | I63: 0 | J63: 0 | K63: Existing
A64: ='Authorized Rev Req'!A63 -> Wildfire Customer Protection Memorandum Account (WCPMA) | C64: ='Authorized Rev Req'!B63 -> D.24-12-074, AL6430-G-A | D64: 127.6535183 | E64: EPAM | F64: ='Authorized Rev Req'!M63 -> 127.6535183 | G64: 0 | H64: 0 | I64: 0 | J64: 0 | K64: Existing
A65: ='Authorized Rev Req'!A64 -> Avoided Cost Calculator Update Memorandum Account (ACCUMA) | C65: ='Authorized Rev Req'!B64 -> D.24-12-074, AL6430-G-A | D65: 65.29815233 | E65: EPAM | F65: ='Authorized Rev Req'!M64 -> 65.29815233 | G65: 0 | H65: 0 | I65: 0 | J65: 0 | K65: Existing
A66: ='Authorized Rev Req'!A65 -> California Consumer Privacy Act Memorandum Account (CCPAMA) | C66: ='Authorized Rev Req'!B65 -> D.24-12-074, AL6430-G-A | D66: 3668.345737 | E66: EPAM | F66: ='Authorized Rev Req'!M65 -> 3668.345737 | G66: 0 | H66: 0 | I66: 0 | J66: 0 | K66: Existing
A67: ='Authorized Rev Req'!A66 -> Emergency Customer Protection Memorandum Account (ECPMA) | C67: ='Authorized Rev Req'!B66 -> D.24-12-074, AL6430-G-A | D67: 359.9334552 | E67: EPAM | F67: ='Authorized Rev Req'!M66 -> 359.9334552 | G67: 0 | H67: 0 | I67: 0 | J67: 0 | K67: Existing
A68: ='Authorized Rev Req'!A67 -> Morongo Right of Way Memorandum Account (MROWMA) | C68: ='Authorized Rev Req'!B67 -> D.24-12-074, AL6430-G-A | D68: 56007.72103 | E68: EPAM | F68: ='Authorized Rev Req'!M67 -> 56007.72103 | G68: 0 | H68: 0 | I68: 0 | J68: 0 | K68: Existing
A69: ='Authorized Rev Req'!A68 -> Residential Disconnect Protections Memorandum Account (RDPMA) | C69: ='Authorized Rev Req'!B68 -> D.24-12-074, AL6430-G-A | D69: 2610.392714 | E69: EPAM | F69: ='Authorized Rev Req'!M68 -> 2610.392714 | G69: 0 | H69: 0 | I69: 0 | J69: 0 | K69: Existing
A70: ='Authorized Rev Req'!A69 -> Aliso Canyon Memorandum Account (ACMA) | C70: ='Authorized Rev Req'!B69 -> D.24-12-074, AL6430-G-A | D70: =F70 -> 12155.8965 | E70: EPAM | F70: ='Authorized Rev Req'!M69 -> 12155.8965 | G70: 0 | H70: 0 | I70: 0 | J70: 0 | K70: Existing
A71: ='Authorized Rev Req'!A70 -> Cost of Capital Adjustment (Subtracted from Base Margin) | C71: ='Authorized Rev Req'!B70 -> D.24-12-074, AL6430-G-A | D71: =F71 -> -34275 | E71: EPAM | F71: ='Authorized Rev Req'!M70 -> -34275 | G71: 0 | H71: 0 | I71: 0 | J71: 0 | K71: Existing
A72: ='Authorized Rev Req'!A71 -> General Rate Case Revenue Requirement Memorandum Account (GRCMA) | C72: ='Authorized Rev Req'!B71 -> D.24-12-074, AL6430-G-A | D72: =F72 -> 250251.014 | E72: EPAM | F72: ='Authorized Rev Req'!M71 -> 250251.014 | G72: 0 | H72: 0 | I72: 0 | J72: 0 | K72: Existing
A73: ='Authorized Rev Req'!A72 -> GRCMA Sub allocation for AB32 Admin Fees | C73: ='Authorized Rev Req'!B72 -> D.24-12-074, AL6430-G-A | D73: 4736 | E73: ECPT | F73: ='Authorized Rev Req'!M72 -> 4736 | G73: 0 | H73: 0 | I73: 0 | J73: 0 | K73: Existing
A74: ='Authorized Rev Req'!A73 -> GRCMA PSEP Local Transmission | C74: ='Authorized Rev Req'!B73 -> D.24-12-074, AL6430-G-A | D74: -5984.28996 | E74: Local Transmission | F74: ='Authorized Rev Req'!M73 -> -5984.28996 | G74: 0 | H74: 0 | I74: 0 | J74: 0 | K74: Existing
A75: ='Authorized Rev Req'!A74 -> GRCMA PSEP Distribution | C75: ='Authorized Rev Req'!B74 -> D.24-12-074, AL6430-G-A | D75: 28198.07333 | E75: Distribution | F75: ='Authorized Rev Req'!M74 -> 28198.07333 | G75: 0 | H75: 0 | I75: 0 | J75: 0 | K75: Existing
A77: ='Authorized Rev Req'!A78 -> Public Policy Proceedings
A78: ='Authorized Rev Req'!A79 -> AB32 Fees (subtracted from base margin and allocated here) | C78: ='Authorized Rev Req'!B79 -> D.24-12-074 | D78: =F78 -> 12693.43568 | E78: ='Authorized Rev Req'!N79 -> ECPT adjusted | F78: ='Authorized Rev Req'!M79 -> 12693.43568 | G78: =0 -> 0 | H78: =0 -> 0 | I78: =H78 -> 0 | J78: =I78 -> 0 | K78: Existing
A79: ='Authorized Rev Req'!A80 -> Green House Gas Balancing Account (GHGBA) - Company Gas Compressor Revenue Requirement | C79: ='Authorized Rev Req'!B80 -> AL 6421-G, D.24-07-009 | D79: 2342.863399 | E79: ='Authorized Rev Req'!N80 -> ECPT | F79: ='Authorized Rev Req'!M80 -> 2342.863399 | G79: =0 -> 0 | H79: =0 -> 0 | I79: =H79 -> 0 | J79: =I79 -> 0 | K79: Existing
A80: ='Authorized Rev Req'!A81 -> Green House Gas Balancing Account (GHGBA) - End User Revenue Requirement | C80: ='Authorized Rev Req'!B81 -> AL 6421-G, D.24-07-009 | D80: 824179.789 | E80: ='Authorized Rev Req'!N81 -> GHG End User | F80: ='Authorized Rev Req'!M81 -> 824179.789 | G80: =0 -> 0 | H80: =0 -> 0 | I80: 0 | J80: 0 | K80: Existing
A81: ='Authorized Rev Req'!A82 -> Green House Gas Balancing Account (GHGBA) - LUAF Revenue Requirement | C81: ='Authorized Rev Req'!B82 -> AL 6421-G, D.24-07-009 | D81: 14051.9063 | E81: ='Authorized Rev Req'!N82 -> 47% Res (LUAF, Other) | F81: ='Authorized Rev Req'!M82 -> 14051.9063 | G81: =0 -> 0 | H81: =0 -> 0 | I81: 0 | J81: 0 | K81: Existing
A82: ='Authorized Rev Req'!A83 -> Green House Gas Balancing Account (GHGBA) - Company Gas Compressor | C82: ='Authorized Rev Req'!B83 -> AL 6421-G, D.24-07-009 | D82: -291.3858778 | E82: ='Authorized Rev Req'!N83 -> ECPT | F82: ='Authorized Rev Req'!M83 -> -291.3858778 | G82: =0 -> 0 | H82: =0 -> 0 | I82: 0 | J82: 0 | K82: Existing
A83: ='Authorized Rev Req'!A84 -> Green House Gas Balancing Account (GHGBA) - End User | C83: ='Authorized Rev Req'!B84 -> AL 6421-G, D.24-07-009 | D83: -99791.99104 | E83: ='Authorized Rev Req'!N84 -> GHG End User | F83: ='Authorized Rev Req'!M84 -> -99791.99104 | G83: =0 -> 0 | H83: =0 -> 0 | I83: 0 | J83: 0 | K83: Existing
A84: ='Authorized Rev Req'!A85 -> Green House Gas Balancing Account (GHGBA) - LUAF | C84: ='Authorized Rev Req'!B85 -> AL 6421-G, D.24-07-009 | D84: -17275.32802 | E84: ='Authorized Rev Req'!N85 -> 47% Res (LUAF, Other) | F84: ='Authorized Rev Req'!M85 -> -17275.32802 | G84: =0 -> 0 | H84: =0 -> 0 | I84: 0 | J84: 0 | K84: Existing
A85: ='Authorized Rev Req'!A86 -> New Envirnomental Regulatory Balancing Account (NERBA) - Admin Fees Subaccount | C85: ='Authorized Rev Req'!B86 -> AL 6421-G, D.24-07-009 | D85: -656.1735167 | E85: ='Authorized Rev Req'!N86 -> ECPT adjusted | F85: ='Authorized Rev Req'!M86 -> -656.1735167 | G85: =0 -> 0 | H85: =0 -> 0 | I85: 0 | J85: 0 | K85: Existing
A86: ='Authorized Rev Req'!A87 -> New Environmental Regulatory Balancing Account (NERBA) - Leak Detection & Repair (LDAR) sub-account | C86: ='Authorized Rev Req'!B87 -> AL 6421-G, D.24-07-009 | D86: -981.6438092 | E86: ='Authorized Rev Req'!N87 -> EPAM | F86: ='Authorized Rev Req'!M87 -> -981.6438092 | G86: =0 -> 0 | H86: =0 -> 0 | I86: 0 | J86: 0 | K86: Existing
A87: ='Authorized Rev Req'!A88 -> New Envirnomental Regulatory Balancing Account (NERBA) -Natural Gas Leak Abatement Program | C87: ='Authorized Rev Req'!B88 -> AL 6421-G, D.24-07-009 | D87: 0 | E87: ='Authorized Rev Req'!N88 -> EPAM | F87: ='Authorized Rev Req'!M88 -> 0 | G87: =0 -> 0 | H87: =0 -> 0 | I87: 0 | J87: 0 | K87: Existing
A88: ='Authorized Rev Req'!A89 -> New Envirnomental Regulatory Balancing Account (NERBA) - Subpart W | C88: ='Authorized Rev Req'!B89 -> AL 6421-G, D.24-07-009 | D88: =F88 -> -889.6695427 | E88: EPAM | F88: ='Authorized Rev Req'!M89 -> -889.6695427 | K88: Existing
A89: ='Authorized Rev Req'!A90 -> New Environmental Regulatory Balancing Account (NERBA) - MS4 sub-account | C89: ='Authorized Rev Req'!B90 -> AL 6421-G, D.24-07-009 | D89: =F89 -> -842.7831119 | E89: EPAM | F89: ='Authorized Rev Req'!M90 -> -842.7831119 | K89: Existing
A90: ='Authorized Rev Req'!A91 -> NGV, EG,TLS Adjustment | C90: ='Authorized Rev Req'!B91 -> AL 6421-G, D.24-07-009 | D90: 7976.952669 | E90: ='Authorized Rev Req'!N91 -> Non-Residential | F90: ='Authorized Rev Req'!M91 -> 7976.952669 | G90: =0 -> 0 | H90: =0 -> 0 | I90: 0 | J90: 0 | K90: Existing
A91: ='Authorized Rev Req'!A92 -> Natural Gas Leak Abatement Program Revenue Requirement | C91: ='Authorized Rev Req'!B92 -> AL 5915G, AL 6071, AL 6168-G, AL 5950-G-B | D91: 104565.979 | E91: ='Authorized Rev Req'!N92 -> EPAM | F91: ='Authorized Rev Req'!M92 -> 104565.979 | G91: 16076.55778 | H91: 15787.64507 | I91: 15276.35093 | J91: 14860.18936 | K91: Existing
A92: ='Authorized Rev Req'!A93 -> Biogas Conditioning/Upgrading Svcs Bal Acct (BCSBA) | C92: ='Authorized Rev Req'!B93 -> D. 13-12-040 | D92: 0 | E92: ='Authorized Rev Req'!N93 -> EPAM | F92: ='Authorized Rev Req'!M93 -> 0 | G92: =0 -> 0 | H92: =0 -> 0 | I92: =H92 -> 0 | J92: =I92 -> 0 | K92: Existing
A93: ='Authorized Rev Req'!A94 -> Diary Biomethane Project Balancing Account (DBPBA) | C93: ='Authorized Rev Req'!B94 -> D. 17-12-004 | D93: 0 | E93: ='Authorized Rev Req'!N94 -> EPAM | F93: ='Authorized Rev Req'!M94 -> 0 | G93: =0 -> 0 | H93: =0 -> 0 | I93: 0 | J93: 0 | K93: Existing
A94: ='Authorized Rev Req'!A95 -> Diary Biomethane Project Memorandum Account (DBPMA) | C94: ='Authorized Rev Req'!B95 -> D. 17-12-004 | D94: 6273.374869 | E94: ='Authorized Rev Req'!N95 -> EPAM | F94: ='Authorized Rev Req'!M95 -> 6273.374869 | G94: =0 -> 0 | H94: =0 -> 0 | I94: 0 | J94: 0 | K94: Existing
A95: ='Authorized Rev Req'!A96 -> California Solar Iniative Thermal Memorandum Account (CSITPMA) | C95: ='Authorized Rev Req'!B96 -> D. 10-01-022 | D95: 2681.015121 | E95: ='Authorized Rev Req'!N96 -> ECPT adjusted | F95: ='Authorized Rev Req'!M96 -> 2681.015121 | G95: =0 -> 0 | H95: =0 -> 0 | I95: 0 | J95: 0 | K95: Existing
A96: ='Authorized Rev Req'!A97 -> Biomethane Procurement and Pilot Costs Balancing Account (BPPCBA) - Program Administrative Costs Subaccount | C96: ='Authorized Rev Req'!B97 -> D. 22-02-025 | D96: 0 | E96: EPAM | F96: ='Authorized Rev Req'!M97 -> 0 | G96: =0 -> 0 | H96: =0 -> 0 | I96: =H96 -> 0 | J96: =I96 -> 0 | K96: Existing
A97: ='Authorized Rev Req'!A98 -> Biomethane Cost Incentive Pgm Balancing Acct (BCIPBA) | C97: ='Authorized Rev Req'!B98 -> D.16-12-043/D.19-12-009 | D97: =F97 -> 0 | E97: ECPT | F97: ='Authorized Rev Req'!M98 -> 0 | G97: 0 | H97: 0 | I97: 0 | J97: 0 | K97: Existing
A98: PPPS Programs
A99: ='Authorized Rev Req'!A105 -> California Alternate Rates for Energy (CARE) | C99: ='Authorized Rev Req'!B105 -> D.21-06-015, AL 6393 | D99: =F99 -> 172216.7959 | E99: ='Authorized Rev Req'!N105 -> Public Purpose Programs | F99: ='Authorized Rev Req'!M105 -> 172216.7959 | G99: =0 -> 0 | H99: =0 -> 0 | I99: =0 -> 0 | J99: =0 -> 0 | K99: Existing
A100: ='Authorized Rev Req'!A106 -> Energy Efficiency | C100: ='Authorized Rev Req'!B106 -> AL 6393 | D100: 166375.8554 | E100: ='Authorized Rev Req'!N106 -> Public Purpose Programs | F100: ='Authorized Rev Req'!M106 -> 166375.8554 | G100: 153968 | H100: =G100 -> 153968 | K100: Existing | L100: Provided by Reg Accounting Tony Tjioe
A101: ='Authorized Rev Req'!A107 -> RD&D | C101: ='Authorized Rev Req'!B107 -> AL 6393 | D101: 12881.5384 | E101: ='Authorized Rev Req'!N107 -> Public Purpose Programs | F101: ='Authorized Rev Req'!M107 -> 12881.5384 | H101: =0 -> 0 | I101: =0 -> 0 | J101: =0 -> 0 | K101: Existing
A102: ='Authorized Rev Req'!A108 -> Bureau Of Equalization BOE | C102: ='Authorized Rev Req'!B108 -> AL 6393 | D102: 488.24258 | E102: ='Authorized Rev Req'!N108 -> Public Purpose Programs | F102: ='Authorized Rev Req'!M108 -> 488.24258 | H102: =0 -> 0 | I102: =0 -> 0 | J102: =0 -> 0 | K102: Existing
A103: ='Authorized Rev Req'!A109 -> Energy Savings Assistance | C103: ='Authorized Rev Req'!B109 -> D.21-06-015, AL 6393 | D103: 107549.884 | E103: ='Authorized Rev Req'!N109 -> Public Purpose Programs | F103: ='Authorized Rev Req'!M109 -> 107549.884 | G103: 122541 | K103: Existing | L103: Provided by Reg Accounting Tony Tjioe
A104: ='Authorized Rev Req'!A110 -> SJVDGPMA | D104: -62.068 | E104: ='Authorized Rev Req'!N110 -> Public Purpose Programs | F104: ='Authorized Rev Req'!M110 -> -62.068 | H104: =0 -> 0 | I104: =0 -> 0 | J104: =0 -> 0 | K104: Existing
A107: ='Authorized Rev Req'!A119 -> EOR | C107: ='Authorized Rev Req'!B119 -> D.24-07-009, AL 6421-G | D107: =F107 -> 0 | E107: ='Authorized Rev Req'!N119 -> EPAM | F107: ='Authorized Rev Req'!M120 -> 0 | G107: =0 -> 0 | H107: =0 -> 0 | I107: =H107 -> 0 | J107: =I107 -> 0 | K107: Existing
A110: Procurement | C110: ='Authorized Rev Req'!B122 -> D.98-07-068 | D110: =F110 -> 1051542.735 | E110: ='Authorized Rev Req'!N122 -> Core Procurement | F110: ='Authorized Rev Req'!M122 -> 1051542.735 | G110: =F110 -> 1051542.735 | H110: =G110 -> 1051542.735 | I110: =H110 -> 1051542.735 | J110: =I110 -> 1051542.735 | K110: Existing | L110: FFU Feb 1
L111: 1.016221981
A114: Total Approved, Implemented Since Jan 1 or To Be Implemented | D114: =SUM(F10:F113) -> 6608469.154 | F114: =SUM(F10:F113) -> 6608469.154 | G114: =SUM(G10:G113) -> 4699987.981 | H114: =SUM(H10:H113) -> 4682132.491 | I114: =SUM(I10:I113) -> 4531613.269 | J114: =SUM(J10:J113) -> 4535085.538
A116: CPUC Fee | E116: CPUC Fee | F116: =RegulatoryFee -> 0.0025
A119: Pending Application(s) Not Yet Approved
A120: Filing Description | B120: Proceeding | C120: Basis of Revenue Requirement Forecast: Application, Amended Application , Amended Testimony, Proposed Settlement Agreement, Proposed Decision | D120: Proposed Revenue Requirement with FF&U ($000) | E120: Proposed Revenue Recovery Mechanism | F120: Incremental Revenue Requirement with FF&U ($000) - Breakout by Year | K120: Existing or New Item (if existing, use delta from prior for rate impact)
A121: Safety Affordability Reliability Proceedings | F121: =TRANSPOSE(YearsForRateImpact) -> 2025 | G121: 2026 | H121: 2027 | I121: 2028 | J121: 2029 | L121: Include in Impact
A122: DIMP Interim Recovery | B122: A.25-08-008 | C122: Application | D122: =SUM(F122,G122,H122,I122,J122) -> 59144.447 | E122: EPAM | G122: 59144.447 | K122: Existing | L122: =IFERROR(VLOOKUP(A122,Summary!$B$7:$D$19,3,FALSE),"-") -> Y
A123: Catastrophic Event Memorandum Account (CEMA) | B123: A.23-11-003 | C123: Application | D123: =SUM(F123:J123) -> 53246.71467 | E123: ECPT | G123: 53246.71467 | K123: Existing | L123: =IFERROR(VLOOKUP(A123,Summary!$B$7:$D$19,3,FALSE),"-") -> Y
A124: COVID-19 Pandemic Protections Memorandum Account (CPPMA) | B124: A.23-11-003 | C124: Application | D124: =SUM(F124:J124) -> 5828.250576 | E124: ECPT | G124: 5828.250576 | K124: Existing | L124: =IFERROR(VLOOKUP(A124,Summary!$B$7:$D$19,3,FALSE),"-") -> Y | N124: Authorized + Pending
A125: DIMPBA | B125: AL 6224 | C125: Advice Letter | D125: 82740.80586 | E125: EPAM | G125: 82740.80586 | K125: Existing | L125: =IFERROR(VLOOKUP(A125,Summary!$B$7:$D$19,3,FALSE),"-") -> Y | O125: =TRANSPOSE(YearsForRateImpact) -> 2025 | P125: 2026 | Q125: 2027 | R125: 2028 | S125: 2029
A126: Natural Gas Leak Abatement | B126: AL 6277-G-B | C126: Advice Letter | D126: 289899.8519 | E126: EPAM | F126: =155713.463843507*L111 -> 158239.4446 | G126: =129558.708347318*L111 -> 131660.4072 | K126: Existing | L126: =IFERROR(VLOOKUP(A126,Summary!$B$7:$D$19,3,FALSE),"-") -> Y | N126: =RevRecoveryMechanisms -> Core Procurement | O126: =SUM(O9,SUMIFS(F$122:F$153,$E$122:$E$153,$N126,$L$123:$L$154,"y")) -> 1051542.735 | P126: =SUM(P9,SUMIFS(G$122:G$153,$E$122:$E$153,$N126,$L$123:$L$154,"y")) -> 1051542.735 | Q126: =SUM(Q9,SUMIFS(H$122:H$153,$E$122:$E$153,$N126,$L$123:$L$154,"y")) -> 1051542.735 | R126: =SUM(R9,SUMIFS(I$122:I$153,$E$122:$E$153,$N126,$L$123:$L$154,"y")) -> 1051542.735 | S126: =SUM(S9,SUMIFS(J$122:J$153,$E$122:$E$153,$N126,$L$123:$L$154,"y")) -> 1051542.735
A127: 2026 Cost of Capital | B127: A.25-03-011 | C127: Application | D127: =SUM(F127:J127) -> 117484.5496 | E127: EPAM | G127: 117484.5496 | K127: Existing | L127: Y | N127: Allocated Base Margin | O127: 3218272.671 | P127: 3314820.851 | Q127: 3414265.477 | R127: 3414265.477 | S127: 3414265.477
A128: TIMPBA Application | B128: A.25-04-020 | C128: Application | D128: 173808.37 | E128: Backbone Transmission | G128: 173808.37 | K128: Existing | L128: =IFERROR(VLOOKUP(A128,Summary!$B$7:$D$19,3,FALSE),"-") -> Y | N128: Distribution | O128: 90177.33422 | P128: 0 | Q128: 0 | R128: 0 | S128: 0
A129: 2024 GRC Track 3 (PSEP and WMPMA) | B129: A.25-05-015/016 | C129: Application | D129: 132245 | E129: EPAM | G129: 132245 | K129: Existing | L129: =IFERROR(VLOOKUP(A129,Summary!$B$7:$D$19,3,FALSE),"-") -> Y | N129: ECPT adjusted | O129: 14718.27728 | P129: 0 | Q129: 0 | R129: 0 | S129: 0
A130: Application for Incremental Funding For CIS Replacement | B130: A.25-05-004 | C130: Application | D130: 25600 | E130: EPAM | G130: 12700 | H130: 12900 | K130: Existing | L130: Y | N130: Local Transmission | O130: -890.6592899 | P130: 0 | Q130: 0 | R130: 0 | S130: 0
A131: Low Income Bridge Application | B131: A.25-06-012 | C131: Application | D131: =SUM(F131,G131,H131,I131,J131) -> 20690.27751 | E131: EPAM | H131: 20690.27751 | K131: NEW | L131: Y | N131: SGIP | O131: 0 | P131: 0 | Q131: 0 | R131: 0 | S131: 0
A132: Line Extension Allowance Application | B132: A.25-07-001 | C132: Application | D132: 488.7430154 | E132: EPAM | I132: 34.96921632 | J132: 453.7737991 | K132: NEW | L132: Y | N132: GHG End User | O132: 724387.798 | P132: 0 | Q132: 0 | R132: 0 | S132: 0
A133: Angeles Link Phase 1 | B133: A-25-06-011 | C133: Application | D133: 24720 | E133: ECPT | H133: =24.72*1000 -> 24720 | K133: NEW | L133: Y | N133: Public Purpose Programs | O133: 459450.2482 | P133: 276509 | Q133: 153968 | R133: 0 | S133: 0
A134: MASS Energy | B134: A.25-089-XXX | C134: Application | D134: 9972.956 | E134: EPAM | H134: 9972.956 | K134: NEW | L134: =IFERROR(VLOOKUP(A134,Summary!$B$7:$D$19,3,FALSE),"-") -> Y | N134: Backbone Transmission | O134: 304889.8509 | P134: 173808.37 | Q134: 0 | R134: 0 | S134: 0
A135: Angeles Link Phase 2 | B135: A.24-12-011 | C135: Application | D135: =SUM(F135:J135) -> 273335.4699 | E135: ECPT | G135: 89484.33836 | H135: 118326.434 | I135: 65524.69747 | K135: NEW | L135: =IFERROR(VLOOKUP(A135,Summary!$B$7:$D$20,3,FALSE),"-") -> Y | N135: 47% Res (LUAF, Other) | O135: 27609.16147 | P135: 0 | Q135: 0 | R135: 0 | S135: 0
A136: Public Policy Proceedings | D136: =SUM(F136:J136) -> 0 | G136: 0 | H136: 0 | I136: 0 | J136: 0 | L136: =IFERROR(VLOOKUP(A136,Summary!$B$7:$D$19,3,FALSE),"-") -> - | N136: ECPT | O136: 108243.1395 | P136: 59074.96525 | Q136: 24720 | R136: 0 | S136: 0
D137: =SUM(F137:J137) -> 0 | L137: =IFERROR(VLOOKUP(A137,Summary!$B$7:$D$19,3,FALSE),"-") -> - | N137: EPAM | O137: =SUM(O20,SUMIFS(F$122:F$153,$E$122:$E$153,$N137,$L$123:$L$154,"y")) -> 616203.4983 | P137: =SUM(P20,SUMIFS(G$122:G$154,$E$122:$E$154,$N137,$L$122:$L$154,"y")) -> 593090.6046 | Q137: 178583.4581 | R137: =SUM(R20,SUMIFS(I$122:I$153,$E$122:$E$153,$N137,$L$123:$L$154,"y")) -> 65840.02634 | S137: 69731.09947
D138: =SUM(F138:J138) -> 0 | L138: =IFERROR(VLOOKUP(A138,Summary!$B$7:$D$19,3,FALSE),"-") -> - | N138: CFCA | O138: =SUM(O21,SUMIFS(F$122:F$153,$E$122:$E$153,$N138,$L$123:$L$154,"y")) -> 116879.0578 | P138: =SUM(P21,SUMIFS(G$122:G$153,$E$122:$E$153,$N138,$L$123:$L$154,"y")) -> 0 | Q138: =SUM(Q21,SUMIFS(H$122:H$153,$E$122:$E$153,$N138,$L$123:$L$154,"y")) -> 0 | R138: 0 | S138: 0
L139: =IFERROR(VLOOKUP(A139,Summary!$B$7:$D$19,3,FALSE),"-") -> - | N139: Non-Residential | O139: =SUM(O22,SUMIFS(F$122:F$153,$E$122:$E$153,$N139,$L$123:$L$154,"y")) -> 35225.48627 | P139: =SUM(P22,SUMIFS(G$122:G$153,$E$122:$E$153,$N139,$L$123:$L$154,"y")) -> 0 | Q139: =SUM(Q22,SUMIFS(H$122:H$153,$E$122:$E$153,$N139,$L$123:$L$154,"y")) -> 0 | R139: 0 | S139: 0
L140: =IFERROR(VLOOKUP(A140,Summary!$B$7:$D$19,3,FALSE),"-") -> - | N140: Total | O140: =SUM(O126:O139) -> 6766708.599 | P140: =SUM(P126:P139) -> 5468846.526 | Q140: =SUM(Q126:Q139) -> 4823079.67 | R140: =SUM(R126:R139) -> 4531648.238 | S140: =SUM(S126:S139) -> 4535539.311
N141: Incremental Revenues | O141: =O140-O23 -> 158239.4446 | P141: =G155 -> 858342.8833 | Q141: =H155 -> 186609.6675 | R141: =I155 -> 65559.66669 | S141: =S140-S23 -> 453.7737991
N143: CPUC Fee | O143: =RegulatoryFee -> 0.0025
N144: Check Figure | O144: =ROUND(O141,6)-ROUND(F155,6) -> 0 | P144: =ROUND(P141,6)-SUM(G122:G153) -> -3.215391189e-07 | Q144: =ROUND(Q141,6)-SUM(H122:H153) -> 1.143780537e-08 | R144: =ROUND(R141,6)-SUM(I122:I153) -> 2.009037416e-07 | S144: =ROUND(S141,6)-SUM(J122:J152) -> -1.026241989e-07
A155: Total Pending, Filed but not Approved | D155: =SUM(D122:D152) -> 1269205.436 | F155: =SUM(F122:F154) -> 158239.4446 | G155: =SUM(G122:G153) -> 858342.8833 | H155: =SUM(H122:H153) -> 186609.6675 | I155: =SUM(I122:I153) -> 65559.66669 | J155: =SUM(J122:J154) -> 453.7737991
A156: Applications Projected to be Filed, Next 12 Months
A158: Filing Description | B158: Estimated Filing Date | C158: Filing Basis | D158: Proposed Revenue Requirement ($000) | E158: Proposed Revenue Recovery Mechanism | F158: Projected Authorized Revenue Requirement ($000) - Breakout by Year | K158: Existing or New Item (if existing, use delta from prior for rate impact)
A159: Safety Affordability Reliability Proceedings | F159: =TRANSPOSE(YearsForRateImpact) -> 2025 | G159: 2026 | H159: 2027 | I159: 2028 | J159: 2029
A164: Public Policy Proceedings

Sheet SAR and RAR
C1: Revenue Change ($000)
C2: Authorized | D2: w/ Pending
B3: =RevRecoveryMechanisms -> Core Procurement | C3: =INDEX('Incremental Rev Req'!$N$9:$S$22,MATCH(B3,'Incremental Rev Req'!$N$9:$N$22,0),MATCH(Summary!$D$2,'Incremental Rev Req'!$N$8:$S$8,0)) -> 1051542.735 | D3: =INDEX('Incremental Rev Req'!$N$126:$S$139,MATCH(B3,'Incremental Rev Req'!$N$126:$N$139,0),MATCH(Summary!$D$2,'Incremental Rev Req'!$N$125:$S$125,0)) -> 1051542.735 | G3: Allocation | P3: Other Revenues and Balancing Accounts
B4: Allocated Base Margin | C4: =INDEX('Incremental Rev Req'!$N$9:$S$22,MATCH(B4,'Incremental Rev Req'!$N$9:$N$22,0),MATCH(Summary!$D$2,'Incremental Rev Req'!$N$8:$S$8,0)) -> 3218272.671 | D4: =INDEX('Incremental Rev Req'!$N$126:$S$139,MATCH(B4,'Incremental Rev Req'!$N$126:$N$139,0),MATCH(Summary!$D$2,'Incremental Rev Req'!$N$125:$S$125,0)) -> 3218272.671 | G4: =TRANSPOSE(RevRecoveryMechanisms) -> Core Procurement | H4: Allocated Base Margin | I4: Distribution | J4: ECPT adjusted | K4: Local Transmission | L4: SGIP | M4: GHG End User | N4: Public Purpose Programs | O4: Backbone Transmission | P4: 47% Res (LUAF, Other) | Q4: ECPT | R4: EPAM | S4: CFCA | T4: Non-Residential | U4: CPUC Fee
B5: Distribution | C5: =INDEX('Incremental Rev Req'!$N$9:$S$22,MATCH(B5,'Incremental Rev Req'!$N$9:$N$22,0),MATCH(Summary!$D$2,'Incremental Rev Req'!$N$8:$S$8,0)) -> 90177.33422 | D5: =INDEX('Incremental Rev Req'!$N$126:$S$139,MATCH(B5,'Incremental Rev Req'!$N$126:$N$139,0),MATCH(Summary!$D$2,'Incremental Rev Req'!$N$125:$S$125,0)) -> 90177.33422 | F5: Residential | G5: 0.6660172187 | H5: 0.708839031 | I5: 0.6095871975 | J5: 0.4012431755 | K5: 0.4207017225 | L5: 0.3707585355 | M5: 0.5437255755 | N5: 0.5526432166 | O5: 0 | P5: 0.4735382425 | Q5: 0.2583309048 | R5: 0.708839031 | S5: 0.7082921542 | T5: 0 | U5: =RegulatoryFee -> 0.0025
B6: ECPT adjusted | C6: =INDEX('Incremental Rev Req'!$N$9:$S$22,MATCH(B6,'Incremental Rev Req'!$N$9:$N$22,0),MATCH(Summary!$D$2,'Incremental Rev Req'!$N$8:$S$8,0)) -> 14718.27728 | D6: =INDEX('Incremental Rev Req'!$N$126:$S$139,MATCH(B6,'Incremental Rev Req'!$N$126:$N$139,0),MATCH(Summary!$D$2,'Incremental Rev Req'!$N$125:$S$125,0)) -> 14718.27728
B7: Local Transmission | C7: =INDEX('Incremental Rev Req'!$N$9:$S$22,MATCH(B7,'Incremental Rev Req'!$N$9:$N$22,0),MATCH(Summary!$D$2,'Incremental Rev Req'!$N$8:$S$8,0)) -> -890.6592899 | D7: =INDEX('Incremental Rev Req'!$N$126:$S$139,MATCH(B7,'Incremental Rev Req'!$N$126:$N$139,0),MATCH(Summary!$D$2,'Incremental Rev Req'!$N$125:$S$125,0)) -> -890.6592899 | G7: Revenue Change ($000) - System
B8: SGIP | C8: =INDEX('Incremental Rev Req'!$N$9:$S$22,MATCH(B8,'Incremental Rev Req'!$N$9:$N$22,0),MATCH(Summary!$D$2,'Incremental Rev Req'!$N$8:$S$8,0)) -> 0 | D8: =INDEX('Incremental Rev Req'!$N$126:$S$139,MATCH(B8,'Incremental Rev Req'!$N$126:$N$139,0),MATCH(Summary!$D$2,'Incremental Rev Req'!$N$125:$S$125,0)) -> 0 | F8: Authorized | G8: =TRANSPOSE(RevRecoveryMechanisms) -> Core Procurement | H8: Allocated Base Margin | I8: Distribution | J8: ECPT adjusted | K8: Local Transmission | L8: SGIP | M8: GHG End User | N8: Public Purpose Programs | O8: Backbone Transmission | P8: 47% Res (LUAF, Other) | Q8: ECPT | R8: EPAM | S8: CFCA | T8: Non-Residential
B9: GHG End User | C9: =INDEX('Incremental Rev Req'!$N$9:$S$22,MATCH(B9,'Incremental Rev Req'!$N$9:$N$22,0),MATCH(Summary!$D$2,'Incremental Rev Req'!$N$8:$S$8,0)) -> 724387.798 | D9: =INDEX('Incremental Rev Req'!$N$126:$S$139,MATCH(B9,'Incremental Rev Req'!$N$126:$N$139,0),MATCH(Summary!$D$2,'Incremental Rev Req'!$N$125:$S$125,0)) -> 724387.798 | F9: Residential | G9: =G5*G10 -> 700345.5677 | H9: =H5*H10 -> 2281237.282 | I9: =I5*I10 -> 54970.94844 | J9: =J5*J10 -> 5905.608316 | K9: -374.7018974 | L9: 0 | M9: 393868.1723 | N9: 253912.0631 | O9: =O5*O10 -> 0 | P9: 13073.9938 | Q9: =Q5*Q10 -> 27962.54817 | R9: =R5*R10 -> 324622.796 | S9: =S5*S10 -> 82784.5196 | T9: =T5*T10 -> 0 | U9: =SUM(G9:T9) -> 4138308.797 | V9: Check | W9: CPUC Fee
B10: Public Purpose Programs | C10: =INDEX('Incremental Rev Req'!$N$9:$S$22,MATCH(B10,'Incremental Rev Req'!$N$9:$N$22,0),MATCH(Summary!$D$2,'Incremental Rev Req'!$N$8:$S$8,0)) -> 459450.2482 | D10: =INDEX('Incremental Rev Req'!$N$126:$S$139,MATCH(B10,'Incremental Rev Req'!$N$126:$N$139,0),MATCH(Summary!$D$2,'Incremental Rev Req'!$N$125:$S$125,0)) -> 459450.2482 | F10: Total System | G10: =C3 -> 1051542.735 | H10: =C4 -> 3218272.671 | I10: =C5 -> 90177.33422 | J10: =C6 -> 14718.27728 | K10: =C7 -> -890.6592899 | L10: =C8 -> 0 | M10: =C9 -> 724387.798 | N10: =C10 -> 459450.2482 | O10: =C11 -> 304889.8509 | P10: =C12 -> 27609.16147 | Q10: =C13 -> 108243.1395 | R10: =C14 -> 457964.0536 | S10: =C15 -> 116879.0578 | T10: =C16 -> 35225.48627 | U10: =SUM(G10:T10) -> 6608469.154 | V10: =U10-C17 -> 0 | W10: =RegulatoryFee -> 0.0025
B11: Backbone Transmission | C11: =INDEX('Incremental Rev Req'!$N$9:$S$22,MATCH(B11,'Incremental Rev Req'!$N$9:$N$22,0),MATCH(Summary!$D$2,'Incremental Rev Req'!$N$8:$S$8,0)) -> 304889.8509 | D11: =INDEX('Incremental Rev Req'!$N$126:$S$139,MATCH(B11,'Incremental Rev Req'!$N$126:$N$139,0),MATCH(Summary!$D$2,'Incremental Rev Req'!$N$125:$S$125,0)) -> 304889.8509 | F11: w/Pending
B12: 47% Res (LUAF, Other) | C12: =INDEX('Incremental Rev Req'!$N$9:$S$22,MATCH(B12,'Incremental Rev Req'!$N$9:$N$22,0),MATCH(Summary!$D$2,'Incremental Rev Req'!$N$8:$S$8,0)) -> 27609.16147 | D12: =INDEX('Incremental Rev Req'!$N$126:$S$139,MATCH(B12,'Incremental Rev Req'!$N$126:$N$139,0),MATCH(Summary!$D$2,'Incremental Rev Req'!$N$125:$S$125,0)) -> 27609.16147 | F12: Residential | G12: =G5*G13 -> 700345.5677 | H12: =H5*H13 -> 2281237.282 | I12: 54970.94844 | J12: 5905.608316 | K12: -374.7018974 | L12: 0 | M12: 393868.1723 | N12: 253912.0631 | O12: =O5*O13 -> 0 | P12: 13073.9938 | Q12: =Q5*Q13 -> 27962.54817 | R12: =R5*R13 -> 436789.0906 | S12: =S5*S13 -> 82784.5196 | T12: =T5*T13 -> 0 | U12: =SUM(G12:T12) -> 4250475.092 | V12: Check | W12: CPUC Fee
B13: ECPT | C13: =INDEX('Incremental Rev Req'!$N$9:$S$22,MATCH(B13,'Incremental Rev Req'!$N$9:$N$22,0),MATCH(Summary!$D$2,'Incremental Rev Req'!$N$8:$S$8,0)) -> 108243.1395 | D13: =INDEX('Incremental Rev Req'!$N$126:$S$139,MATCH(B13,'Incremental Rev Req'!$N$126:$N$139,0),MATCH(Summary!$D$2,'Incremental Rev Req'!$N$125:$S$125,0)) -> 108243.1395 | F13: Total System | G13: =D3 -> 1051542.735 | H13: =D4 -> 3218272.671 | I13: =D5 -> 90177.33422 | J13: =D6 -> 14718.27728 | K13: =D7 -> -890.6592899 | L13: =D8 -> 0 | M13: =D9 -> 724387.798 | N13: =D10 -> 459450.2482 | O13: =D11 -> 304889.8509 | P13: =D12 -> 27609.16147 | Q13: =D13 -> 108243.1395 | R13: =D14 -> 616203.4983 | S13: =D15 -> 116879.0578 | T13: =D16 -> 35225.48627 | U13: =SUM(G13:T13) -> 6766708.599 | V13: =U13-D17 -> 0 | W13: =RegulatoryFee -> 0.0025
B14: EPAM | C14: =INDEX('Incremental Rev Req'!$N$9:$S$22,MATCH(B14,'Incremental Rev Req'!$N$9:$N$22,0),MATCH(Summary!$D$2,'Incremental Rev Req'!$N$8:$S$8,0)) -> 457964.0536 | D14: =INDEX('Incremental Rev Req'!$N$126:$S$139,MATCH(B14,'Incremental Rev Req'!$N$126:$N$139,0),MATCH(Summary!$D$2,'Incremental Rev Req'!$N$125:$S$125,0)) -> 616203.4983 | AC14: Authorized | AD14: w/Pending
B15: CFCA | C15: =INDEX('Incremental Rev Req'!$N$9:$S$22,MATCH(B15,'Incremental Rev Req'!$N$9:$N$22,0),MATCH(Summary!$D$2,'Incremental Rev Req'!$N$8:$S$8,0)) -> 116879.0578 | D15: =INDEX('Incremental Rev Req'!$N$126:$S$139,MATCH(B15,'Incremental Rev Req'!$N$126:$N$139,0),MATCH(Summary!$D$2,'Incremental Rev Req'!$N$125:$S$125,0)) -> 116879.0578 | AB15: % of CARE Sales (Bundled) | AC15: 0.2655087991 | AD15: =AC15 -> 0.2655087991
B16: Non-Residential | C16: =INDEX('Incremental Rev Req'!$N$9:$S$22,MATCH(B16,'Incremental Rev Req'!$N$9:$N$22,0),MATCH(Summary!$D$2,'Incremental Rev Req'!$N$8:$S$8,0)) -> 35225.48627 | D16: =INDEX('Incremental Rev Req'!$N$126:$S$139,MATCH(B16,'Incremental Rev Req'!$N$126:$N$139,0),MATCH(Summary!$D$2,'Incremental Rev Req'!$N$125:$S$125,0)) -> 35225.48627 | U16: Authorized | W16: w/Pending Total UDC | Y16: Commodity | Z16: w/Pending Commodity
B17: Total Revenue Requirement | C17: =SUM(C3:C16) -> 6608469.154 | D17: =SUM(D3:D16) -> 6766708.599 | G17: Revenue Split - Bundled Customer | U17: Bundled Revenue Change | W17: Bundled Revenue Change
B18: CPUC Fee | C18: =RegulatoryFee -> 0.0025 | D18: =C18 -> 0.0025 | G18: =TRANSPOSE(RevRecoveryMechanisms) -> Core Procurement | H18: Allocated Base Margin | I18: Distribution | J18: ECPT adjusted | K18: Local Transmission | L18: SGIP | M18: GHG End User | N18: Public Purpose Programs | O18: Backbone Transmission | P18: 47% Res (LUAF, Other) | Q18: ECPT | R18: EPAM | S18: CFCA | T18: Non-Residential | U18: Total | W18: Total | Y18: Core Procurement | Z18: Core Procurement
F19: Residential | G19: 1 | H19: 1 | I19: 1 | J19: 1 | K19: 1 | L19: 1 | M19: 1 | N19: 1 | O19: 1 | P19: 1 | Q19: 1 | R19: 1 | S19: 1 | T19: 1 | U19: =SUMPRODUCT(H9:T9,H19:T19) -> 3437963.23 | W19: =SUMPRODUCT(H12:T12,H19:T19) -> 3550129.524 | Y19: =SUMPRODUCT(G9,G19) -> 700345.5677 | Z19: =SUMPRODUCT(G12,G19) -> 700345.5677
F20: Total System | G20: 1 | H20: 1 | I20: 1 | J20: 1 | K20: 1 | L20: 1 | M20: 1 | N20: 0 | O20: 1 | P20: 1 | Q20: 1 | R20: 1 | S20: 1 | T20: 1 | U20: =SUMPRODUCT(H10:T10,H20:T20) -> 5097476.171 | W20: =SUMPRODUCT(H13:T13,H20:T20) -> 5255715.616 | Y20: =SUMPRODUCT(G10,G20) -> 1051542.735 | Z20: =SUMPRODUCT(G13,G20) -> 1051542.735
C22: CAP D.24-07-009 SALES DETERMINANTS SYSTEM NET (MTH) Average year Throughput | D22: CAP D.24-07-009 SALES DETERMINANTS BUNDLED (MTH)Average year throughput
B23: Residential | C23: 2185982.983 | D23: 2158593.606
B24: Total System | C24: 8461949.161 | D24: 3032625.674
F26: Bundled | P26: System (Bundled and Unbundled)
B27: CARE Discount | F27: CAP D.24-07-009 SALES DETERMINANTS BUNDLED | G27: =CONCATENATE(TEXT(CurrentEffectiveRateDate,"mm/dd/yyyy")," Avg Rates"&"(sales adj.)") -> 09/01/2025 Avg Rates(sales adj.) | H27: Proposed Avg Rates (Authorized) | I27: Proposed Avg Rates (w/Pending) | J27: % Change (Authorized) | K27: % Change (w/Pending) | Q27: =F27 -> CAP D.24-07-009 SALES DETERMINANTS BUNDLED | R27: =G27 -> 09/01/2025 Avg Rates(sales adj.) | S27: Proposed Avg Rates (Authorized) | T27: Proposed Avg Rates (w/Pending) | U27: % Change (Authorized) | V27: % Change (w/Pending)
B28: 2020 | C28: 132417.9764 | E28: Residential | F28: =D23 -> 2158593.606 | G28: 189.717632 | H28: =(U19/C23*100)+(Y19/D23*100) -> 189.717632 | I28: =(W19/C23*100)+(Z19/D23*100) -> 194.8487925 | J28: =H28/G28-1 -> 0 | K28: =I28/G28-1 -> 0.0270463025 | P28: Residential | Q28: =C23 -> 2185982.983 | R28: 189.3111167 | S28: =U9/Q28*100 -> 189.3111167 | T28: =U12/Q28*100 -> 194.4422772 | U28: =S28/R28-1 -> 0 | V28: =T28/R28-1 -> 0.0271043801
B29: 2021 | C29: 187534.6647 | E29: Total System | F29: =D24 -> 3032625.674 | G29: 94.91430965 | H29: =(U20/C24*100)+(Y20/D24*100) -> 94.91430965 | I29: =(W20/C24*100)+(Z20/D24*100) -> 96.78432142 | J29: =H29/G29-1 -> 0 | K29: =I29/G29-1 -> 0.01970210571 | P29: Total System | Q29: =C24 -> 8461949.161 | R29: 78.09629943 | S29: =U10/Q29*100 -> 78.09629943 | T29: =U13/Q29*100 -> 79.96631119 | U29: =S29/R29-1 -> 0 | V29: =T29/R29-1 -> 0.02394494715
B30: 2022 | C30: 210430.2141 | H30: cents/therm
B31: 2023 | C31: 213115.4392
B32: 2024 | C32: 214904.4994
B33: 2025 | C33: 201591.9989

Sheet Res Bill Impact
E3: Schedule GR | P3: Schedule GR [CARE]
E4: =SalesForecastYear -> 2024 | F4: =CurrentEffectiveRateDate -> 2025-09-01 | G4: =CurrentEffectiveRateDate -> 2025-09-01 | H4: Proposed | I4: Proposed | J4: Proposed | K4: Proposed | P4: =SalesForecastYear -> 2024 | Q4: =CurrentEffectiveRateDate -> 2025-09-01 | R4: =CurrentEffectiveRateDate -> 2025-09-01 | S4: Proposed | T4: Proposed | U4: Proposed | V4: Proposed
E5: System Sales Forecast | F5: Rates | G5: Revenue | H5: Authorized Rates | I5: Authorized Revenue | J5: w/Pending Rates | K5: w/Pending Revenue | P5: Sales Forecast | Q5: Rates | R5: Revenue | S5: Authorized Rates | T5: Authorized Revenue | U5: w/Pending Rates | V5: w/Pending Revenue
D7: Baseline | E7: 1106153.307 | F7: 1.618296193 | G7: =F7*E7 -> 1790083.685 | H7: =((Y10-I12-T12)/SUM(E7,F9/F7*E9,P7*((Q7/F7)),P9*((Q9/F7)))) -> 1.692144156 | I7: =E7*H7 -> 1871770.854 | J7: =((Y13-K12-V12)/SUM(SUM(E7),F9/F7*SUM(E9),SUM(P7)*((Q7/F7)),SUM(P9)*(Q9/F7))) -> 1.741972677 | K7: =E7*J7 -> 1926888.837 | O7: =D7 -> Baseline | P7: 408227.7802 | Q7: 1.278349606 | R7: =Q7*P7 -> 521857.8219 | S7: =H7*(1+(Q7/F7-1)) -> 1.336684734 | T7: =P7*S7 -> 545671.8416 | U7: =J7*(1+(Q7/F7-1)) -> 1.376046051 | V7: =P7*U7 -> 561740.2247 | X7: Bundled Residential Rev Req
X8: Current | Y8: =(SUM(G7:G9)+SUM(R7:R9)) -> 3642859.261
D9: non-Baseline | E9: 490559.9158 | F9: 2.099276193 | G9: =F9*E9 -> 1029820.752 | H9: =F9/F$7*H$7 -> 2.195072792 | I9: =E9*H9 -> 1076814.724 | J9: =F9/F$7*J$7 -> 2.259711038 | K9: 1108523.656 | O9: =D9 -> non-Baseline | P9: 181041.9805 | Q9: 1.663133606 | R9: =Q9*P9 -> 301097.0019 | S9: =H9*(1+(Q9/F9-1)) -> 1.739027642 | T9: =P9*S9 -> 314837.0085 | U9: =J9*(1+(Q9/F9-1)) -> 1.790236739 | V9: =P9*U9 -> 324108.0049 | X9: Change (Authorized) | Y9: =Y10-Y8 -> 495449.5364
X10: Proposed (Authorized) | Y10: ='SAR and RAR'!U9 -> 4138308.797
E11: Non-CARE customers | P11: CARE Customers
D12: Fixed Charge | E12: =E13-P12 -> 4047089.348 | F12: 5 | G12: =F12*12*E12/1000 -> 242825.3609 | H12: =SetUp!D7 -> 5 | I12: =(H12*12*E12)/1000 -> 242825.3609 | J12: =H12 -> 5 | K12: =I12 -> 242825.3609 | O12: Fixed Charge | P12: 1799771 | Q12: =F12*(1-CAREDiscountPercent) -> 4 | R12: =Q12*12*P12/1000 -> 86389.008 | S12: =SetUp!D7*(1-CAREDiscountPercent) -> 4 | T12: =(S12*12*P12)/1000 -> 86389.008 | U12: =S12 -> 4 | V12: =T12 -> 86389.008 | X12: Change (w/Pending) | Y12: =Y13-Y8 -> 607615.831
D13: Total Customers | E13: 5846860.348 | X13: Proposed (w/Pending) | Y13: ='SAR and RAR'!U12 -> 4250475.092
P18: Basic Bundled
E19: =Summary!D2 -> 2025 | F19: =Summary!D2 -> 2025 | H19: Essential Usage | P19: 2024 Recorded Data - Average Monthly Usage - ALL-BASIC th
B20: SCHEDULE GR RATES ($/therm) | E20: Proposed | F20: Proposed | H20: Monthly Tier 1 Baseline Allowance -BASIC (th) | P20: Climate Zone | Q20: Summer | R20: Winter | S20: Summer | T20: Winter
B21: Rates | C21: =BOYEffectiveRateDate -> 2025-01-01 | D21: =CurrentEffectiveRateDate -> 2025-09-01 | E21: Authorized | F21: w/Pending | H21: Climate Zone | I21: Summer 2024 | J21: Winter 2024 | Q21: Non-CARE | S21: CARE
A22: Summer | B22: Tier 1 | C22: 1.48149 | D22: 1.692144156 | E22: =H7 -> 1.692144156 | F22: =J7 -> 1.741972677 | H22: =Zones -> 1 | I22: 13 | J22: 37.33333333 | P22: =Zones -> 1 | Q22: 22.68195339 | R22: 45.72507267 | S22: 17.60404118 | T22: 33.00381282
B23: Tier 2 | C23: 1.92197 | D23: 2.195072792 | E23: =H9 -> 2.195072792 | F23: =J9 -> 2.259711038 | H23: 2 | I23: 13 | J23: 42.16666667 | P23: 2 | Q23: 19.24320082 | R23: 49.58569166 | S23: 18.36758446 | T23: 46.09184154
H24: 3 | I24: 13 | J24: 65 | P24: 3 | Q24: 18.94798314 | R24: 71.48580122 | S24: 23.35905116 | T24: 81.14343361
A25: Winter | B25: Tier 1 | C25: =C22 -> 1.48149 | D25: =D22 -> 1.692144156 | E25: =E22 -> 1.692144156 | F25: 1.741972677 | H25: 0 | P25: 0
B26: Tier 2 | C26: =C23 -> 1.92197 | D26: =D23 -> 2.195072792 | E26: =E23 -> 2.195072792 | F26: 2.259711038
P27: Typical Bundled
E28: =Summary!D2 -> 2025 | F28: =Summary!D2 -> 2025 | P28: 2020-2024 Recorded Data - Average Monthly Usage - ALL-BASIC th
B29: SCHEDULE GR-LI [CARE] ($/therm) | E29: Proposed | F29: Proposed | P29: Climate Zone | Q29: Summer | R29: Winter | S29: Summer | T29: Winter
B30: Rates | C30: =C21 -> 2025-01-01 | D30: =D21 -> 2025-09-01 | E30: Authorized | F30: w/Pending | Q30: Non-CARE | S30: CARE
A31: Summer | B31: Tier 1 | C31: 1.28440394 | D31: 1.336684734 | E31: =S7 -> 1.336684734 | F31: =U7 -> 1.376046051 | P31: =Zones -> 1 | Q31: 23.11491818 | R31: 49.40758765 | S31: 17.51725705 | T31: 34.67605291
B32: Tier 2 | C32: 1.632662909 | D32: 1.739027642 | E32: =S9 -> 1.739027642 | F32: =U9 -> 1.790236739 | P32: 2 | Q32: 19.56195699 | R32: 55.33374712 | S32: 18.5317823 | T32: 51.14470611
P33: 3 | Q33: 19.98866609 | R33: 77.21481657 | S33: 24.34162135 | T33: 87.23331811
A34: Winter | B34: Tier 1 | C34: 1.17041 | D34: =D31 -> 1.336684734 | E34: 1.336684734 | F34: 1.376046051 | P34: 0
B35: Tier 2 | C35: 1.5228 | D35: =D32 -> 1.739027642 | E35: 1.739027642 | F35: 1.790236739
C39: Note: Bill inserts include CPUC fee in the calculations
C40: 2023 Recorded Average Basic Bundled Non-CARE Customer Bill
C41: =C30 -> 2025-01-01 | E41: =D30 -> 2025-09-01 | G41: =E21 -> Authorized | I41: =F21 -> w/Pending
C42: Summer | D42: Winter | E42: Summer | F42: Winter | G42: Summer | H42: Winter | I42: Summer | J42: Winter
B43: =Zones -> 1 | C43: =IF($Q22>$I22,C$22*$I22+C$23*($Q22-$I22),$Q22*C$22)+('Incremental Rev Req'!$F$116*$Q22)+IF(Q22>0,$F$12,0) -> 42.92449883 | D43: =IF($R22>$J22,C$25*$J22+C$26*($R22-$J22),$R22*C$25)+('Incremental Rev Req'!$F$116*$R22)+IF(R22>0,$F$12,0) -> 76.55194393 | E43: =IF($Q22>$I22,D$22*$I22+D$23*($Q22-$I22),$Q22*D$22)+('Incremental Rev Req'!$F$116*$Q22)+IF(Q22>0,$F$12,0) -> 48.30717137 | F43: =IF($R22>$J22,D$25*$J22+D$26*($R22-$J22),$R22*D$25)+('Incremental Rev Req'!$F$116*$R22)+IF(R22>0,$F$12,0) -> 86.70817321 | G43: =IF($Q22>$I22,E$22*$I22+E$23*($Q22-$I22),$Q22*E$22)+('Incremental Rev Req'!$F$116*$Q22)+IF(Q22>0,$H$12,0) -> 48.30717137 | H43: =IF($R22>$J22,E$25*$J22+E$26*($R22-$J22),$R22*E$25)+('Incremental Rev Req'!$F$116*$R22)+IF(R22>0,$H$12,0) -> 86.70817321 | I43: =IF($Q22>$I22,F$22*$I22+F$23*($Q22-$I22),$Q22*F$22)+('Incremental Rev Req'!$F$116*$Q22)+IF(Q22>0,$J$12,0) -> 49.58076662 | J43: =IF($R22>$J22,F$25*$J22+F$26*($R22-$J22),$R22*F$25)+('Incremental Rev Req'!$F$116*$R22)+IF(R22>0,$J$12,0) -> 89.11086529
B44: 2 | C44: =IF($Q23>$I23,C$22*$I23+C$23*($Q23-$I23),$Q23*C$22)+('Incremental Rev Req'!$F$116*$Q23)+IF(Q23>0,$F$12,0) -> 36.30672268 | D44: =IF($R23>$J23,C$25*$J23+C$26*($R23-$J23),$R23*C$25)+('Incremental Rev Req'!$F$116*$R23)+IF(R23>0,$F$12,0) -> 81.8526027 | E44: =IF($Q23>$I23,D$22*$I23+D$23*($Q23-$I23),$Q23*D$22)+('Incremental Rev Req'!$F$116*$Q23)+IF(Q23>0,$F$12,0) -> 40.75026228 | F44: =IF($R23>$J23,D$25*$J23+D$26*($R23-$J23),$R23*D$25)+('Incremental Rev Req'!$F$116*$R23)+IF(R23>0,$F$12,0) -> 92.76134273 | G44: =IF($Q23>$I23,E$22*$I23+E$23*($Q23-$I23),$Q23*E$22)+('Incremental Rev Req'!$F$116*$Q23)+IF(Q23>0,$H$12,0) -> 40.75026228 | H44: =IF($R23>$J23,E$25*$J23+E$26*($R23-$J23),$R23*E$25)+('Incremental Rev Req'!$F$116*$R23)+IF(R23>0,$H$12,0) -> 92.76134273 | I44: =IF($Q23>$I23,F$22*$I23+F$23*($Q23-$I23),$Q23*F$22)+('Incremental Rev Req'!$F$116*$Q23)+IF(Q23>0,$J$12,0) -> 41.8015826 | J44: =IF($R23>$J23,F$25*$J23+F$26*($R23-$J23),$R23*F$25)+('Incremental Rev Req'!$F$116*$R23)+IF(R23>0,$J$12,0) -> 95.34199811
B45: 3 | C45: =IF($Q24>$I24,C$22*$I24+C$23*($Q24-$I24),$Q24*C$22)+('Incremental Rev Req'!$F$116*$Q24)+IF(Q24>0,$F$12,0) -> 35.73858511 | D45: =IF($R24>$J24,C$25*$J24+C$26*($R24-$J24),$R24*C$25)+('Incremental Rev Req'!$F$116*$R24)+IF(R24>0,$F$12,0) -> 113.9410799 | E45: =IF($Q24>$I24,D$22*$I24+D$23*($Q24-$I24),$Q24*D$22)+('Incremental Rev Req'!$F$116*$Q24)+IF(Q24>0,$F$12,0) -> 40.10149995 | F45: =IF($R24>$J24,D$25*$J24+D$26*($R24-$J24),$R24*D$25)+('Incremental Rev Req'!$F$116*$R24)+IF(R24>0,$F$12,0) -> 129.4048905 | G45: =IF($Q24>$I24,E$22*$I24+E$23*($Q24-$I24),$Q24*E$22)+('Incremental Rev Req'!$F$116*$Q24)+IF(Q24>0,$H$12,0) -> 40.10149995 | H45: =IF($R24>$J24,E$25*$J24+E$26*($R24-$J24),$R24*E$25)+('Incremental Rev Req'!$F$116*$R24)+IF(R24>0,$H$12,0) -> 129.4048905 | I45: =IF($Q24>$I24,F$22*$I24+F$23*($Q24-$I24),$Q24*F$22)+('Incremental Rev Req'!$F$116*$Q24)+IF(Q24>0,$J$12,0) -> 41.13373791 | J45: =IF($R24>$J24,F$25*$J24+F$26*($R24-$J24),$R24*F$25)+('Incremental Rev Req'!$F$116*$R24)+IF(R24>0,$J$12,0) -> 133.0629751
B46: 0 | C46: =IF($Q25>$I25,C$22*$I25+C$23*($Q25-$I25),$Q25*C$22)+('Incremental Rev Req'!$F$116*$Q25)+IF(Q25>0,$F$12,0) -> 0 | D46: =IF($R25>$J25,C$25*$J25+C$26*($R25-$J25),$R25*C$25)+('Incremental Rev Req'!$F$116*$R25)+IF(R25>0,$F$12,0) -> 0 | E46: =IF($Q25>$I25,D$22*$I25+D$23*($Q25-$I25),$Q25*D$22)+('Incremental Rev Req'!$F$116*$Q25)+IF(Q25>0,$F$12,0) -> 0 | F46: =IF($R25>$J25,D$25*$J25+D$26*($R25-$J25),$R25*D$25)+('Incremental Rev Req'!$F$116*$R25)+IF(R25>0,$F$12,0) -> 0 | G46: =IF($Q25>$I25,E$22*$I25+E$23*($Q25-$I25),$Q25*E$22)+('Incremental Rev Req'!$F$116*$Q25)+IF(Q25>0,$H$12,0) -> 0 | H46: =IF($R25>$J25,E$25*$J25+E$26*($R25-$J25),$R25*E$25)+('Incremental Rev Req'!$F$116*$R25)+IF(R25>0,$H$12,0) -> 0 | I46: =IF($Q25>$I25,F$22*$I25+F$23*($Q25-$I25),$Q25*F$22)+('Incremental Rev Req'!$F$116*$Q25)+IF(Q25>0,$J$12,0) -> 0 | J46: =IF($R25>$J25,F$25*$J25+F$26*($R25-$J25),$R25*F$25)+('Incremental Rev Req'!$F$116*$R25)+IF(R25>0,$J$12,0) -> 0
B47: Total | C47: =SUMPRODUCT(C43:C46,$U$22:$U$25) -> 0 | D47: =SUMPRODUCT(D43:D46,$U$22:$U$25) -> 0 | E47: 0 | F47: 0 | G47: 0 | H47: 0 | I47: 0 | J47: 0
C50: 2023 Recorded Average Basic Bundled CARE Customer Bill
C51: =C30 -> 2025-01-01 | E51: =D30 -> 2025-09-01 | G51: =E30 -> Authorized | I51: =F30 -> w/Pending
C52: Summer | D52: Winter | E52: Summer | F52: Winter | G52: Summer | H52: Winter | I52: Summer | J52: Winter
B53: =Zones -> 1 | C53: =IF($S22>$I22,C$31*$I22+C$32*($S22-$I22),$S22*C$31)+('Incremental Rev Req'!$F$116*$S22)+IF(S22>0,$Q$12,0) -> 28.25810858 | D53: =IF($T22>$J22,C$34*$J22+C$35*($T22-$J22),$T22*C$34)+('Incremental Rev Req'!$F$116*$T22)+IF(T22>0,$Q$12,0) -> 42.71050209 | E53: =IF($S22>$I22,D$31*$I22+D$32*($S22-$I22),$S22*D$31)+('Incremental Rev Req'!$F$116*$S22)+IF(S22>0,$Q$12,0) -> 29.42746651 | F53: =IF($T22>$J22,D$34*$J22+D$35*($T22-$J22),$T22*D$34)+('Incremental Rev Req'!$F$116*$T22)+IF(T22>0,$Q$12,0) -> 48.19820228 | G53: =IF($S22>$I22,E$31*$I22+E$32*($S22-$I22),$S22*E$31)+('Incremental Rev Req'!$F$116*$S22)+IF(S22>0,$S$12,0) -> 29.42746651 | H53: =IF($T22>$J22,E$34*$J22+E$35*($T22-$J22),$T22*E$34)+('Incremental Rev Req'!$F$116*$T22)+IF(T22>0,$S$12,0) -> 48.19820228 | I53: =IF($S22>$I22,F$31*$I22+F$32*($S22-$I22),$S22*F$31)+('Incremental Rev Req'!$F$116*$S22)+IF(S22>0,$U$12,0) -> 30.17493242 | J53: =IF($T22>$J22,F$34*$J22+F$35*($T22-$J22),$T22*F$34)+('Incremental Rev Req'!$F$116*$T22)+IF(T22>0,$U$12,0) -> 49.49727582
B54: 2 | C54: =IF($S23>$I23,C$31*$I23+C$32*($S23-$I23),$S23*C$31)+('Incremental Rev Req'!$F$116*$S23)+IF(S23>0,$Q$12,0) -> 29.50662624 | D54: =IF($T23>$J23,C$34*$J23+C$35*($T23-$J23),$T23*C$34)+('Incremental Rev Req'!$F$116*$T23)+IF(T23>0,$Q$12,0) -> 59.44477423 | E54: =IF($S23>$I23,D$31*$I23+D$32*($S23-$I23),$S23*D$31)+('Incremental Rev Req'!$F$116*$S23)+IF(S23>0,$Q$12,0) -> 30.75719825 | F54: =IF($T23>$J23,D$34*$J23+D$35*($T23-$J23),$T23*D$34)+('Incremental Rev Req'!$F$116*$T23)+IF(T23>0,$Q$12,0) -> 67.3047568 | G54: =IF($S23>$I23,E$31*$I23+E$32*($S23-$I23),$S23*E$31)+('Incremental Rev Req'!$F$116*$S23)+IF(S23>0,$S$12,0) -> 30.75719825 | H54: =IF($T23>$J23,E$34*$J23+E$35*($T23-$J23),$T23*E$34)+('Incremental Rev Req'!$F$116*$T23)+IF(T23>0,$S$12,0) -> 67.3047568 | I54: =IF($S23>$I23,F$31*$I23+F$32*($S23-$I23),$S23*F$31)+('Incremental Rev Req'!$F$116*$S23)+IF(S23>0,$U$12,0) -> 31.54376452 | J54: =IF($T23>$J23,F$34*$J23+F$35*($T23-$J23),$T23*F$34)+('Incremental Rev Req'!$F$116*$T23)+IF(T23>0,$U$12,0) -> 69.165497
B55: 3 | C55: =IF($S24>$I24,C$31*$I24+C$32*($S24-$I24),$S24*C$31)+('Incremental Rev Req'!$F$116*$S24)+IF(S24>0,$Q$12,0) -> 37.66848745 | D55: =IF($T24>$J24,C$34*$J24+C$35*($T24-$J24),$T24*C$34)+('Incremental Rev Req'!$F$116*$T24)+IF(T24>0,$Q$12,0) -> 104.8627293 | E55: =IF($S24>$I24,D$31*$I24+D$32*($S24-$I24),$S24*D$31)+('Incremental Rev Req'!$F$116*$S24)+IF(S24>0,$Q$12,0) -> 39.44997548 | F55: =IF($T24>$J24,D$34*$J24+D$35*($T24-$J24),$T24*D$34)+('Incremental Rev Req'!$F$116*$T24)+IF(T24>0,$Q$12,0) -> 119.1612436 | G55: =IF($S24>$I24,E$31*$I24+E$32*($S24-$I24),$S24*E$31)+('Incremental Rev Req'!$F$116*$S24)+IF(S24>0,$S$12,0) -> 39.44997548 | H55: =IF($T24>$J24,E$34*$J24+E$35*($T24-$J24),$T24*E$34)+('Incremental Rev Req'!$F$116*$T24)+IF(T24>0,$S$12,0) -> 119.1612436 | I55: =IF($S24>$I24,F$31*$I24+F$32*($S24-$I24),$S24*F$31)+('Incremental Rev Req'!$F$116*$S24)+IF(S24>0,$U$12,0) -> 40.49215026 | J55: =IF($T24>$J24,F$34*$J24+F$35*($T24-$J24),$T24*F$34)+('Incremental Rev Req'!$F$116*$T24)+IF(T24>0,$U$12,0) -> 122.5464198
B56: 0 | C56: =IF($S25>$I25,C$31*$I25+C$32*($S25-$I25),$S25*C$31)+('Incremental Rev Req'!$F$116*$S25)+IF(S25>0,$Q$12,0) -> 0 | D56: =IF($T25>$J25,C$34*$J25+C$35*($T25-$J25),$T25*C$34)+('Incremental Rev Req'!$F$116*$T25)+IF(T25>0,$Q$12,0) -> 0 | E56: =IF($S25>$I25,D$31*$I25+D$32*($S25-$I25),$S25*D$31)+('Incremental Rev Req'!$F$116*$S25)+IF(S25>0,$Q$12,0) -> 0 | F56: =IF($T25>$J25,D$34*$J25+D$35*($T25-$J25),$T25*D$34)+('Incremental Rev Req'!$F$116*$T25)+IF(T25>0,$Q$12,0) -> 0 | G56: =IF($S25>$I25,E$31*$I25+E$32*($S25-$I25),$S25*E$31)+('Incremental Rev Req'!$F$116*$S25)+IF(S25>0,$S$12,0) -> 0 | H56: =IF($T25>$J25,E$34*$J25+E$35*($T25-$J25),$T25*E$34)+('Incremental Rev Req'!$F$116*$T25)+IF(T25>0,$S$12,0) -> 0 | I56: =IF($S25>$I25,F$31*$I25+F$32*($S25-$I25),$S25*F$31)+('Incremental Rev Req'!$F$116*$S25)+IF(S25>0,$U$12,0) -> 0 | J56: =IF($T25>$J25,F$34*$J25+F$35*($T25-$J25),$T25*F$34)+('Incremental Rev Req'!$F$116*$T25)+IF(T25>0,$U$12,0) -> 0
B57: Total | C57: =SUMPRODUCT(C53:C56,$V$22:$V$25) -> 0 | D57: =SUMPRODUCT(D53:D56,$V$22:$V$25) -> 0 | E57: 0 | F57: 0 | G57: 0 | H57: 0 | I57: 0 | J57: 0
C60: Essential Usage Basic Bundled Non-CARE Customer Bill
C61: =C51 -> 2025-01-01 | E61: =E51 -> 2025-09-01 | G61: =G51 -> Authorized | I61: =I51 -> w/Pending
C62: Summer | D62: Winter | E62: Summer | F62: Winter | G62: Summer | H62: Winter | I62: Summer | J62: Winter
B63: =Zones -> 1 | C63: =($C$22*$I22)+('Incremental Rev Req'!$F$116*$I22)+IF(I22>0,$F$12,0) -> 24.29187 | D63: =($C$25*$J22)+('Incremental Rev Req'!$F$116*$J22)+IF(J22>0,$F$12,0) -> 60.40229333 | E63: =($D$22*$I22)+('Incremental Rev Req'!$F$116*$I22)+IF(I22>0,$F$12,0) -> 27.03037403 | F63: =($D$25*$J22)+('Incremental Rev Req'!$F$116*$J22)+IF(J22>0,$F$12,0) -> 68.26671517 | G63: =($E$22*$I22)+('Incremental Rev Req'!$F$116*$I22)+IF(I22>0,$H$12,0) -> 27.03037403 | H63: =($E$25*$J22)+('Incremental Rev Req'!$F$116*$J22)+IF(J22>0,$H$12,0) -> 68.26671517 | I63: =($F$22*$I22)+('Incremental Rev Req'!$F$116*$I22)+IF(I22>0,$J$12,0) -> 27.6781448 | J63: =($F$25*$J22)+('Incremental Rev Req'!$F$116*$J22)+IF(J22>0,$J$12,0) -> 70.12697994
B64: 2 | C64: =($C$22*$I23)+('Incremental Rev Req'!$F$116*$I23)+IF(I23>0,$F$12,0) -> 24.29187 | D64: =($C$25*$J23)+('Incremental Rev Req'!$F$116*$J23)+IF(J23>0,$F$12,0) -> 67.57491167 | E64: =($D$22*$I23)+('Incremental Rev Req'!$F$116*$I23)+IF(I23>0,$F$12,0) -> 27.03037403 | F64: =($D$25*$J23)+('Incremental Rev Req'!$F$116*$J23)+IF(J23>0,$F$12,0) -> 76.45749526 | G64: =($E$22*$I23)+('Incremental Rev Req'!$F$116*$I23)+IF(I23>0,$H$12,0) -> 27.03037403 | H64: =($E$25*$J23)+('Incremental Rev Req'!$F$116*$J23)+IF(J23>0,$H$12,0) -> 76.45749526 | I64: =($F$22*$I23)+('Incremental Rev Req'!$F$116*$I23)+IF(I23>0,$J$12,0) -> 27.6781448 | J64: =($F$25*$J23)+('Incremental Rev Req'!$F$116*$J23)+IF(J23>0,$J$12,0) -> 78.55859788
B65: 3 | C65: =($C$22*$I24)+('Incremental Rev Req'!$F$116*$I24)+IF(I24>0,$F$12,0) -> 24.29187 | D65: =($C$25*$J24)+('Incremental Rev Req'!$F$116*$J24)+IF(J24>0,$F$12,0) -> 101.45935 | E65: =($D$22*$I24)+('Incremental Rev Req'!$F$116*$I24)+IF(I24>0,$F$12,0) -> 27.03037403 | F65: =($D$25*$J24)+('Incremental Rev Req'!$F$116*$J24)+IF(J24>0,$F$12,0) -> 115.1518702 | G65: =($E$22*$I24)+('Incremental Rev Req'!$F$116*$I24)+IF(I24>0,$H$12,0) -> 27.03037403 | H65: =($E$25*$J24)+('Incremental Rev Req'!$F$116*$J24)+IF(J24>0,$H$12,0) -> 115.1518702 | I65: =($F$22*$I24)+('Incremental Rev Req'!$F$116*$I24)+IF(I24>0,$J$12,0) -> 27.6781448 | J65: =($F$25*$J24)+('Incremental Rev Req'!$F$116*$J24)+IF(J24>0,$J$12,0) -> 118.390724
B66: 0 | C66: =($C$22*$I25)+('Incremental Rev Req'!$F$116*$I25)+IF(I25>0,$F$12,0) -> 0 | D66: =($C$25*$J25)+('Incremental Rev Req'!$F$116*$J25)+IF(J25>0,$F$12,0) -> 0 | E66: =($D$22*$I25)+('Incremental Rev Req'!$F$116*$I25)+IF(I25>0,$F$12,0) -> 0 | F66: =($D$25*$J25)+('Incremental Rev Req'!$F$116*$J25)+IF(J25>0,$F$12,0) -> 0 | G66: =($E$22*$I25)+('Incremental Rev Req'!$F$116*$I25)+IF(I25>0,$H$12,0) -> 0 | H66: =($E$25*$J25)+('Incremental Rev Req'!$F$116*$J25)+IF(J25>0,$H$12,0) -> 0 | I66: =($F$22*$I25)+('Incremental Rev Req'!$F$116*$I25)+IF(I25>0,$J$12,0) -> 0 | J66: =($F$25*$J25)+('Incremental Rev Req'!$F$116*$J25)+IF(J25>0,$J$12,0) -> 0
B67: Total | C67: =SUMPRODUCT(C63:C66,$U$22:$U$25) -> 0 | D67: =SUMPRODUCT(D63:D66,$U$22:$U$25) -> 0 | E67: =SUMPRODUCT(E63:E66,$U$22:$U$25) -> 0 | F67: =SUMPRODUCT(F63:F66,$U$22:$U$25) -> 0 | G67: 0 | H67: 0 | I67: 0 | J67: 0
C70: Essential Usage Basic Bundled CARE Customer Bill
C71: =C61 -> 2025-01-01 | E71: =E61 -> 2025-09-01 | G71: =G61 -> Authorized | I71: =I61 -> w/Pending
C72: Summer | D72: Winter | E72: Summer | F72: Winter | G72: Summer | H72: Winter | I72: Summer | J72: Winter
B73: =Zones -> 1 | C73: =($C$31*$I22)+('Incremental Rev Req'!$F$116*$I22)+IF(I22>0,$Q$12,0) -> 20.72975122 | D73: =($C$34*$J22)+('Incremental Rev Req'!$F$116*$J22)+IF(J22>0,$Q$12,0) -> 47.78864 | E73: =($D$31*$I22)+('Incremental Rev Req'!$F$116*$I22)+IF(I22>0,$Q$12,0) -> 21.40940154 | F73: =($D$34*$J22)+('Incremental Rev Req'!$F$116*$J22)+IF(J22>0,$Q$12,0) -> 53.99623005 | G73: =($E$31*$I22)+('Incremental Rev Req'!$F$116*$I22)+IF(I22>0,$S$12,0) -> 21.40940154 | H73: =($E$34*$J22)+('Incremental Rev Req'!$F$116*$J22)+IF(J22>0,$S$12,0) -> 53.99623005 | I73: =($F$31*$I22)+('Incremental Rev Req'!$F$116*$I22)+IF(I22>0,$U$12,0) -> 21.92109866 | J73: =($F$34*$J22)+('Incremental Rev Req'!$F$116*$J22)+IF(J22>0,$U$12,0) -> 55.46571923
B74: 2 | C74: =($C$31*$I23)+('Incremental Rev Req'!$F$116*$I23)+IF(I23>0,$Q$12,0) -> 20.72975122 | D74: =($C$34*$J23)+('Incremental Rev Req'!$F$116*$J23)+IF(J23>0,$Q$12,0) -> 53.457705 | E74: =($D$31*$I23)+('Incremental Rev Req'!$F$116*$I23)+IF(I23>0,$Q$12,0) -> 21.40940154 | F74: =($D$34*$J23)+('Incremental Rev Req'!$F$116*$J23)+IF(J23>0,$Q$12,0) -> 60.46895627 | G74: =($E$31*$I23)+('Incremental Rev Req'!$F$116*$I23)+IF(I23>0,$S$12,0) -> 21.40940154 | H74: =($E$34*$J23)+('Incremental Rev Req'!$F$116*$J23)+IF(J23>0,$S$12,0) -> 60.46895627 | I74: =($F$31*$I23)+('Incremental Rev Req'!$F$116*$I23)+IF(I23>0,$U$12,0) -> 21.92109866 | J74: =($F$34*$J23)+('Incremental Rev Req'!$F$116*$J23)+IF(J23>0,$U$12,0) -> 62.1286918
B75: 3 | C75: =($C$31*$I24)+('Incremental Rev Req'!$F$116*$I24)+IF(I24>0,$Q$12,0) -> 20.72975122 | D75: =($C$34*$J24)+('Incremental Rev Req'!$F$116*$J24)+IF(J24>0,$Q$12,0) -> 80.23915 | E75: =($D$31*$I24)+('Incremental Rev Req'!$F$116*$I24)+IF(I24>0,$Q$12,0) -> 21.40940154 | F75: =($D$34*$J24)+('Incremental Rev Req'!$F$116*$J24)+IF(J24>0,$Q$12,0) -> 91.04700768 | G75: =($E$31*$I24)+('Incremental Rev Req'!$F$116*$I24)+IF(I24>0,$S$12,0) -> 21.40940154 | H75: =($E$34*$J24)+('Incremental Rev Req'!$F$116*$J24)+IF(J24>0,$S$12,0) -> 91.04700768 | I75: =($F$31*$I24)+('Incremental Rev Req'!$F$116*$I24)+IF(I24>0,$U$12,0) -> 21.92109866 | J75: =($F$34*$J24)+('Incremental Rev Req'!$F$116*$J24)+IF(J24>0,$U$12,0) -> 93.60549329
B76: 0 | C76: =($C$31*$I25)+('Incremental Rev Req'!$F$116*$I25)+IF(I25>0,$Q$12,0) -> 0 | D76: =($C$34*$J25)+('Incremental Rev Req'!$F$116*$J25)+IF(J25>0,$Q$12,0) -> 0 | E76: =($D$31*$I25)+('Incremental Rev Req'!$F$116*$I25)+IF(I25>0,$Q$12,0) -> 0 | F76: =($D$34*$J25)+('Incremental Rev Req'!$F$116*$J25)+IF(J25>0,$Q$12,0) -> 0 | G76: =($E$31*$I25)+('Incremental Rev Req'!$F$116*$I25)+IF(I25>0,$S$12,0) -> 0 | H76: =($E$34*$J25)+('Incremental Rev Req'!$F$116*$J25)+IF(J25>0,$S$12,0) -> 0 | I76: =($F$31*$I25)+('Incremental Rev Req'!$F$116*$I25)+IF(I25>0,$U$12,0) -> 0 | J76: =($F$34*$J25)+('Incremental Rev Req'!$F$116*$J25)+IF(J25>0,$U$12,0) -> 0
B77: Total | C77: =SUMPRODUCT(C73:C76,$V$22:$V$25) -> 0 | D77: =SUMPRODUCT(D73:D76,$V$22:$V$25) -> 0 | E77: 0 | F77: 0 | G77: 0 | H77: 0 | I77: 0 | J77: 0
C80: 5-Year Average Monthly Basic Bundled Non-CARE Customer
C81: =C71 -> 2025-01-01 | E81: =E71 -> 2025-09-01 | G81: =G71 -> Authorized | I81: =I71 -> w/Pending
C82: Summer | D82: Winter | E82: Summer | F82: Winter | G82: Summer | H82: Winter | I82: Summer | J82: Winter
B83: =Zones -> 1 | C83: =IF($Q31>$I22,C$22*$I22+C$23*($Q31-$I22),$Q31*C$22)+('Incremental Rev Req'!$F$116*$Q31)+IF(Q31>0,$F$12,0) -> 43.75772659 | D83: =IF($R31>$J22,C$25*$J22+C$26*($R31-$J22),$R31*C$25)+('Incremental Rev Req'!$F$116*$R31)+IF(R31>0,$F$12,0) -> 83.63883355 | E83: =IF($Q31>$I22,D$22*$I22+D$23*($Q31-$I22),$Q31*D$22)+('Incremental Rev Req'!$F$116*$Q31)+IF(Q31>0,$F$12,0) -> 49.25864302 | F83: =IF($R31>$J22,D$25*$J22+D$26*($R31-$J22),$R31*D$25)+('Incremental Rev Req'!$F$116*$R31)+IF(R31>0,$F$12,0) -> 94.80076795 | G83: =IF($Q31>$I22,E$22*$I22+E$23*($Q31-$I22),$Q31*E$22)+('Incremental Rev Req'!$F$116*$Q31)+IF(Q31>0,$H$12,0) -> 49.25864302 | H83: =IF($R31>$J22,E$25*$J22+E$26*($R31-$J22),$R31*E$25)+('Incremental Rev Req'!$F$116*$R31)+IF(R31>0,$H$12,0) -> 94.80076795 | I83: =IF($Q31>$I22,F$22*$I22+F$23*($Q31-$I22),$Q31*F$22)+('Incremental Rev Req'!$F$116*$Q31)+IF(Q31>0,$J$12,0) -> 50.56022435 | J83: =IF($R31>$J22,F$25*$J22+F$26*($R31-$J22),$R31*F$25)+('Incremental Rev Req'!$F$116*$R31)+IF(R31>0,$J$12,0) -> 97.44149134
B84: 2 | C84: =IF($Q32>$I23,C$22*$I23+C$23*($Q32-$I23),$Q32*C$22)+('Incremental Rev Req'!$F$116*$Q32)+IF(Q32>0,$F$12,0) -> 36.92015937 | D84: =IF($R32>$J23,C$25*$J23+C$26*($R32-$J23),$R32*C$25)+('Incremental Rev Req'!$F$116*$R32)+IF(R32>0,$F$12,0) -> 92.91456298 | E84: =IF($Q32>$I23,D$22*$I23+D$23*($Q32-$I23),$Q32*D$22)+('Incremental Rev Req'!$F$116*$Q32)+IF(Q32>0,$F$12,0) -> 41.45075218 | F84: =IF($R32>$J23,D$25*$J23+D$26*($R32-$J23),$R32*D$25)+('Incremental Rev Req'!$F$116*$R32)+IF(R32>0,$F$12,0) -> 105.393113 | G84: =IF($Q32>$I23,E$22*$I23+E$23*($Q32-$I23),$Q32*E$22)+('Incremental Rev Req'!$F$116*$Q32)+IF(Q32>0,$H$12,0) -> 41.45075218 | H84: =IF($R32>$J23,E$25*$J23+E$26*($R32-$J23),$R32*E$25)+('Incremental Rev Req'!$F$116*$R32)+IF(R32>0,$H$12,0) -> 105.393113 | I84: =IF($Q32>$I23,F$22*$I23+F$23*($Q32-$I23),$Q32*F$22)+('Incremental Rev Req'!$F$116*$Q32)+IF(Q32>0,$J$12,0) -> 42.52267634 | J84: =IF($R32>$J23,F$25*$J23+F$26*($R32-$J23),$R32*F$25)+('Incremental Rev Req'!$F$116*$R32)+IF(R32>0,$J$12,0) -> 108.3453126
B85: 3 | C85: =IF($Q33>$I24,C$22*$I24+C$23*($Q33-$I24),$Q33*C$22)+('Incremental Rev Req'!$F$116*$Q33)+IF(Q33>0,$F$12,0) -> 37.74134822 | D85: =IF($R33>$J24,C$25*$J24+C$26*($R33-$J24),$R33*C$25)+('Incremental Rev Req'!$F$116*$R33)+IF(R33>0,$F$12,0) -> 124.966398 | E85: =IF($Q33>$I24,D$22*$I24+D$23*($Q33-$I24),$Q33*D$22)+('Incremental Rev Req'!$F$116*$Q33)+IF(Q33>0,$F$12,0) -> 42.38847648 | F85: =IF($R33>$J24,D$25*$J24+D$26*($R33-$J24),$R33*D$25)+('Incremental Rev Req'!$F$116*$R33)+IF(R33>0,$F$12,0) -> 141.9948187 | G85: =IF($Q33>$I24,E$22*$I24+E$23*($Q33-$I24),$Q33*E$22)+('Incremental Rev Req'!$F$116*$Q33)+IF(Q33>0,$H$12,0) -> 42.38847648 | H85: =IF($R33>$J24,E$25*$J24+E$26*($R33-$J24),$R33*E$25)+('Incremental Rev Req'!$F$116*$R33)+IF(R33>0,$H$12,0) -> 141.9948187 | I85: =IF($Q33>$I24,F$22*$I24+F$23*($Q33-$I24),$Q33*F$22)+('Incremental Rev Req'!$F$116*$Q33)+IF(Q33>0,$J$12,0) -> 43.48798236 | J85: =IF($R33>$J24,F$25*$J24+F$26*($R33-$J24),$R33*F$25)+('Incremental Rev Req'!$F$116*$R33)+IF(R33>0,$J$12,0) -> 146.0232169
B86: 0 | C86: =IF($Q34>$I25,C$22*$I25+C$23*($Q34-$I25),$Q34*C$22)+('Incremental Rev Req'!$F$116*$Q34)+IF(Q34>0,$F$12,0) -> 0 | D86: =IF($R34>$J25,C$25*$J25+C$26*($R34-$J25),$R34*C$25)+('Incremental Rev Req'!$F$116*$R34)+IF(R34>0,$F$12,0) -> 0 | E86: =IF($Q34>$I25,D$22*$I25+D$23*($Q34-$I25),$Q34*D$22)+('Incremental Rev Req'!$F$116*$Q34)+IF(Q34>0,$F$12,0) -> 0 | F86: =IF($R34>$J25,D$25*$J25+D$26*($R34-$J25),$R34*D$25)+('Incremental Rev Req'!$F$116*$R34)+IF(R34>0,$F$12,0) -> 0 | G86: =IF($Q34>$I25,E$22*$I25+E$23*($Q34-$I25),$Q34*E$22)+('Incremental Rev Req'!$F$116*$Q34)+IF(Q34>0,$H$12,0) -> 0 | H86: =IF($R34>$J25,E$25*$J25+E$26*($R34-$J25),$R34*E$25)+('Incremental Rev Req'!$F$116*$R34)+IF(R34>0,$H$12,0) -> 0 | I86: =IF($Q34>$I25,F$22*$I25+F$23*($Q34-$I25),$Q34*F$22)+('Incremental Rev Req'!$F$116*$Q34)+IF(Q34>0,$J$12,0) -> 0 | J86: =IF($R34>$J25,F$25*$J25+F$26*($R34-$J25),$R34*F$25)+('Incremental Rev Req'!$F$116*$R34)+IF(R34>0,$J$12,0) -> 0
B87: Total | C87: =SUMPRODUCT(C83:C86,$U$22:$U$25) -> 0 | D87: =SUMPRODUCT(D83:D86,$U$22:$U$25) -> 0 | E87: =SUMPRODUCT(E83:E86,$U$22:$U$25) -> 0 | F87: 0 | G87: 0 | H87: 0 | I87: 0 | J87: 0
C90: 5-Year Average Monthly Basic Bundled CARE Customer
C91: =C81 -> 2025-01-01 | E91: =E81 -> 2025-09-01 | G91: =G81 -> Authorized | I91: =I81 -> w/Pending
C92: Summer | D92: Winter | E92: Summer | F92: Winter | G92: Summer | H92: Winter | I92: Summer | J92: Winter
B93: =Zones -> 1 | C93: =IF($S31>$I22,C$31*$I22+C$32*($S31-$I22),$S31*C$31)+('Incremental Rev Req'!$F$116*$S31)+IF(S31>0,$Q$12,0) -> 28.1162024 | D93: =IF($T31>$J22,C$34*$J22+C$35*($T31-$J22),$T31*C$34)+('Incremental Rev Req'!$F$116*$T31)+IF(T31>0,$Q$12,0) -> 44.67188922 | E93: =IF($S31>$I22,D$31*$I22+D$32*($S31-$I22),$S31*D$31)+('Incremental Rev Req'!$F$116*$S31)+IF(S31>0,$Q$12,0) -> 29.27632956 | F93: =IF($T31>$J22,D$34*$J22+D$35*($T31-$J22),$T31*D$34)+('Incremental Rev Req'!$F$116*$T31)+IF(T31>0,$Q$12,0) -> 50.43764068 | G93: =IF($S31>$I22,E$31*$I22+E$32*($S31-$I22),$S31*E$31)+('Incremental Rev Req'!$F$116*$S31)+IF(S31>0,$S$12,0) -> 29.27632956 | H93: =IF($T31>$J22,E$34*$J22+E$35*($T31-$J22),$T31*E$34)+('Incremental Rev Req'!$F$116*$T31)+IF(T31>0,$S$12,0) -> 50.43764068 | I93: =IF($S31>$I22,F$31*$I22+F$32*($S31-$I22),$S31*F$31)+('Incremental Rev Req'!$F$116*$S31)+IF(S31>0,$U$12,0) -> 30.01935134 | J93: =IF($T31>$J22,F$34*$J22+F$35*($T31-$J22),$T31*F$34)+('Incremental Rev Req'!$F$116*$T31)+IF(T31>0,$U$12,0) -> 51.80253579
B94: 2 | C94: =IF($S32>$I23,C$31*$I23+C$32*($S32-$I23),$S32*C$31)+('Incremental Rev Req'!$F$116*$S32)+IF(S32>0,$Q$12,0) -> 29.77511645 | D94: =IF($T32>$J23,C$34*$J23+C$35*($T32-$J23),$T32*C$34)+('Incremental Rev Req'!$F$116*$T32)+IF(T32>0,$Q$12,0) -> 67.15190856 | E94: =IF($S32>$I23,D$31*$I23+D$32*($S32-$I23),$S32*D$31)+('Incremental Rev Req'!$F$116*$S32)+IF(S32>0,$Q$12,0) -> 31.04315332 | F94: =IF($T32>$J23,D$34*$J23+D$35*($T32-$J23),$T32*D$34)+('Incremental Rev Req'!$F$116*$T32)+IF(T32>0,$Q$12,0) -> 76.10446013 | G94: =IF($S32>$I23,E$31*$I23+E$32*($S32-$I23),$S32*E$31)+('Incremental Rev Req'!$F$116*$S32)+IF(S32>0,$S$12,0) -> 31.04315332 | H94: =IF($T32>$J23,E$34*$J23+E$35*($T32-$J23),$T32*E$34)+('Incremental Rev Req'!$F$116*$T32)+IF(T32>0,$S$12,0) -> 76.10446013 | I94: =IF($S32>$I23,F$31*$I23+F$32*($S32-$I23),$S32*F$31)+('Incremental Rev Req'!$F$116*$S32)+IF(S32>0,$U$12,0) -> 31.83812802 | J94: =IF($T32>$J23,F$34*$J23+F$35*($T32-$J23),$T32*F$34)+('Incremental Rev Req'!$F$116*$T32)+IF(T32>0,$U$12,0) -> 78.22395296
B95: 3 | C95: =IF($S33>$I24,C$31*$I24+C$32*($S33-$I24),$S33*C$31)+('Incremental Rev Req'!$F$116*$S33)+IF(S33>0,$Q$12,0) -> 39.27514978 | D95: =IF($T33>$J24,C$34*$J24+C$35*($T33-$J24),$T33*C$34)+('Incremental Rev Req'!$F$116*$T33)+IF(T33>0,$Q$12,0) -> 114.1516301 | E95: =IF($S33>$I24,D$31*$I24+D$32*($S33-$I24),$S33*D$31)+('Incremental Rev Req'!$F$116*$S33)+IF(S33>0,$Q$12,0) -> 41.16114862 | F95: =IF($T33>$J24,D$34*$J24+D$35*($T33-$J24),$T33*D$34)+('Incremental Rev Req'!$F$116*$T33)+IF(T33>0,$Q$12,0) -> 129.7669458 | G95: =IF($S33>$I24,E$31*$I24+E$32*($S33-$I24),$S33*E$31)+('Incremental Rev Req'!$F$116*$S33)+IF(S33>0,$S$12,0) -> 41.16114862 | H95: =IF($T33>$J24,E$34*$J24+E$35*($T33-$J24),$T33*E$34)+('Incremental Rev Req'!$F$116*$T33)+IF(T33>0,$S$12,0) -> 129.7669458 | I95: =IF($S33>$I24,F$31*$I24+F$32*($S33-$I24),$S33*F$31)+('Incremental Rev Req'!$F$116*$S33)+IF(S33>0,$U$12,0) -> 42.25363994 | J95: =IF($T33>$J24,F$34*$J24+F$35*($T33-$J24),$T33*F$34)+('Incremental Rev Req'!$F$116*$T33)+IF(T33>0,$U$12,0) -> 133.4639795
B96: 0 | C96: =IF($S34>$I25,C$31*$I25+C$32*($S34-$I25),$S34*C$31)+('Incremental Rev Req'!$F$116*$S34)+IF(S34>0,$Q$12,0) -> 0 | D96: =IF($T34>$J25,C$34*$J25+C$35*($T34-$J25),$T34*C$34)+('Incremental Rev Req'!$F$116*$T34)+IF(T34>0,$Q$12,0) -> 0 | E96: =IF($S34>$I25,D$31*$I25+D$32*($S34-$I25),$S34*D$31)+('Incremental Rev Req'!$F$116*$S34)+IF(S34>0,$Q$12,0) -> 0 | F96: =IF($T34>$J25,D$34*$J25+D$35*($T34-$J25),$T34*D$34)+('Incremental Rev Req'!$F$116*$T34)+IF(T34>0,$Q$12,0) -> 0 | G96: =IF($S34>$I25,E$31*$I25+E$32*($S34-$I25),$S34*E$31)+('Incremental Rev Req'!$F$116*$S34)+IF(S34>0,$S$12,0) -> 0 | H96: =IF($T34>$J25,E$34*$J25+E$35*($T34-$J25),$T34*E$34)+('Incremental Rev Req'!$F$116*$T34)+IF(T34>0,$S$12,0) -> 0 | I96: =IF($S34>$I25,F$31*$I25+F$32*($S34-$I25),$S34*F$31)+('Incremental Rev Req'!$F$116*$S34)+IF(S34>0,$U$12,0) -> 0 | J96: =IF($T34>$J25,F$34*$J25+F$35*($T34-$J25),$T34*F$34)+('Incremental Rev Req'!$F$116*$T34)+IF(T34>0,$U$12,0) -> 0
B97: Total | C97: =SUMPRODUCT(C93:C96,$V$22:$V$25) -> 0 | D97: =SUMPRODUCT(D93:D96,$V$22:$V$25) -> 0 | E97: 0 | F97: 0 | G97: 0 | H97: 0 | I97: 0 | J97: 0

Sheet Hypothetical Summary
B1: Inputs: | F1: Assumptions:
F2: Current Effective Rates | H2: =SetUp!D4 -> 2025-09-01
C3: Baseline Region - (Residential bill) | D3: All | F3: Sales Forecast | H3: =Summary!I3 -> 2024
F4: Residential bill calculated using | H4: =Summary!I4 -> Schedule GR, Basic, Bundled, Single Family
D5: Revenue Change ($000) | F5: Non-CARE bill impact calculated with average summer usage of | J5: =IF($D$3="ALL",SUMPRODUCT('Hypothetical Res Bill Impact'!Q22:Q25,'Hypothetical Res Bill Impact'!U22:U25),VLOOKUP($D$3,'Hypothetical Res Bill Impact'!$P$22:$T$25,2,FALSE)) -> 20.15916452 | K5: therms per month
C6: Procurement | F6: Non-CARE bill impact calculated with average winter usage of | J6: =IF($D$3="ALL",SUMPRODUCT('Hypothetical Res Bill Impact'!R22:R25,'Hypothetical Res Bill Impact'!U22:U25),VLOOKUP(D$3,'Hypothetical Res Bill Impact'!$P$22:$T$25,3,FALSE)) -> 57.12475505 | K6: therms per month
C7: Customer Costs | F7: CARE bill impact calculated with average summer usage of | J7: =IF($D$3="ALL",SUMPRODUCT('Hypothetical Res Bill Impact'!S22:S25,'Hypothetical Res Bill Impact'!V22:V25),VLOOKUP($D$3,'Hypothetical Res Bill Impact'!$P$22:$T$25,4,FALSE)) -> 20.567247 | K7: therms per month
C8: Medium Pressure Distribution | F8: CARE bill impact calculated with average winter usage of | J8: =IF($D$3="ALL",SUMPRODUCT('Hypothetical Res Bill Impact'!T22:T25,'Hypothetical Res Bill Impact'!V22:V25),VLOOKUP($D$3,'Hypothetical Res Bill Impact'!$P$22:$T$25,5,FALSE)) -> 59.75775507 | K8: therms per month
C9: High Pressure Distribution | F9: Average monthly usage is for all customers (Non-CARE and CARE) based on seasonal usage in | K9: =Summary!L9 -> 2025
C10: Local Transmission | F10: Summer season | H10: =Summary!I10 -> 6 | I10: months
C11: Storage | F11: Winter Season | H11: =Summary!I11 -> 6 | I11: months
C12: GHG Revenue
C13: Other Balancing Acounts
C14: NGV Costs
C15: Backbone Transmisson
C16: Public Purpose Programs
C20: Total | D20: =SUM(D6:D18) -> 0
B25: Outputs:
D26: (A) | E26: (B) | F26: (C) | G26: (C)/(A) | H26: (C)/(B) | L26: (A) | M26: (B) | N26: (C) | O26: (C)/(A) | P26: (C)/(B)
B27: Bundled Average Rates - ¢/therm | J27: Total System (Bundled and Unbundled) Average Rates - ¢/therm
B28: Customer Group | D28: =Summary!D24 -> 2025-01-01 | E28: =Summary!E24 -> 2025-09-01 | F28: Proposed | G28: =Summary!H24 -> % Change over 1/1/2025 | H28: =Summary!I24 -> % Change over 9/1/2025 | J28: Customer Group | L28: =D28 -> 2025-01-01 | M28: =E28 -> 2025-09-01 | N28: Proposed | O28: =G28 -> % Change over 1/1/2025 | P28: =H28 -> % Change over 9/1/2025
B29: Residential | D29: 168.8445517 | E29: ='Hypothetical SAR and RAR'!G28 -> 190.3749947 | F29: ='Hypothetical SAR and RAR'!H28 -> 190.3749947 | G29: =$F29/D29-1 -> 0.127516362 | H29: =$F29/E29-1 -> 0 | J29: Residential | L29: 168.4380364 | M29: ='Hypothetical SAR and RAR'!R28 -> 189.9684794 | N29: ='Hypothetical SAR and RAR'!S28 -> 189.9684794 | O29: =$N29/L29-1 -> 0.1278241152 | P29: =$N29/M29-1 -> 0
B30: System | D30: 93.2945601 | E30: ='Hypothetical SAR and RAR'!G29 -> 103.7739364 | F30: ='Hypothetical SAR and RAR'!H29 -> 103.7739364 | G30: =$F30/D30-1 -> 0.1123256946 | H30: =$F30/E30-1 -> 0 | J30: System | L30: 71.04694684 | M30: ='Hypothetical SAR and RAR'!R29 -> 81.52632311 | N30: ='Hypothetical SAR and RAR'!S29 -> 81.52632311 | O30: =$N30/L30-1 -> 0.1474993188 | P30: =$N30/M30-1 -> 0
B33: Basic Bundled Residential Monthly Average Bills
D34: =$D$28 -> 2025-01-01 | E34: =$E$28 -> 2025-09-01 | F34: =$F$28 -> Proposed | G34: =$G$28 -> % Change over 1/1/2025 | H34: =$H$28 -> % Change over 9/1/2025
B35: Non-CARE | D35: =((D41*$H$10)+(D47*$H$11))/12 -> 64.07237152 | E35: =((E41*$H$10)+(E47*$H$11))/12 -> 71.11779023 | F35: 71.11779023 | G35: =$F35/D35-1 -> 0.1099603237 | H35: 0
B36: CARE | D36: =((D42*$H$10)+(D48*$H$11))/12 -> 52.70852188 | E36: 58.5979114 | F36: 58.5979114 | G36: 0.1117350535 | H36: 0
B37: Total | D37: =((D43*$H$10)+(D49*$H$11))/12 -> 61.05516945 | E37: 67.79365224 | F37: 67.79365224 | G37: 0.110367113 | H37: 0 | J37: ='Hypothetical Res Bill Impact'!P18 -> Basic Bundled
J38: ='Hypothetical Res Bill Impact'!P19 -> 2024 Recorded Data - Average Monthly Usage - ALL-BASIC th
B39: Basic Bundled Residential Monthly Average Bills - Summer | J39: Climate Zone | K39: Summer | L39: Winter | M39: Summer | N39: Winter
D40: =D34 -> 2025-01-01 | E40: =E28 -> 2025-09-01 | F40: =F28 -> Proposed | G40: =G28 -> % Change over 1/1/2025 | H40: =$H$28 -> % Change over 9/1/2025 | K40: Non-CARE | M40: CARE
B41: Non-CARE | D41: =IF($D$3="All",'Hypothetical Res Bill Impact'!$C$47,(VLOOKUP($D$3,'Hypothetical Res Bill Impact'!$B$43:$J$46,2,FALSE))) -> 37.2436874 | E41: =IF($D$3="All",'Hypothetical Res Bill Impact'!$E$47,(VLOOKUP($D$3,'Hypothetical Res Bill Impact'!$B$43:$J$46,4,FALSE))) -> 41.11731206 | F41: =IF($D$3="All",'Hypothetical Res Bill Impact'!$G$47,(VLOOKUP($D$3,'Hypothetical Res Bill Impact'!$B$43:$J$46,6,FALSE))) -> 41.11731206 | G41: =$F41/D41-1 -> 0.1040075494 | H41: 0 | J41: =Zones -> 1 | K41: ='Hypothetical Res Bill Impact'!Q22 -> 22.68195339 | L41: ='Hypothetical Res Bill Impact'!R22 -> 45.72507267 | M41: ='Hypothetical Res Bill Impact'!S22 -> 17.60404118 | N41: ='Hypothetical Res Bill Impact'!T22 -> 33.00381282
B42: CARE | D42: =IF($D$3="All",'Hypothetical Res Bill Impact'!$C$57,(VLOOKUP($D$3,'Hypothetical Res Bill Impact'!$B$53:$J$56,2,FALSE))) -> 30.0813254 | E42: =IF($D$3="All",'Hypothetical Res Bill Impact'!$E$57,(VLOOKUP($D$3,'Hypothetical Res Bill Impact'!$B$53:$J$56,4,FALSE))) -> 33.25530577 | F42: =IF($D$3="All",'Hypothetical Res Bill Impact'!$G$57,(VLOOKUP($D$3,'Hypothetical Res Bill Impact'!$B$53:$J$56,6,FALSE))) -> 33.25530577 | G42: 0.1055133153 | H42: 0 | J42: 2 | K42: ='Hypothetical Res Bill Impact'!Q23 -> 19.24320082 | L42: ='Hypothetical Res Bill Impact'!R23 -> 49.58569166 | M42: ='Hypothetical Res Bill Impact'!S23 -> 18.36758446 | N42: ='Hypothetical Res Bill Impact'!T23 -> 46.09184154
B43: Total | D43: =D41*(1-'Hypothetical SAR and RAR'!$AA$16)+D42*'Hypothetical SAR and RAR'!$AA$16 -> 35.34201727 | E43: =E41*(1-'Hypothetical SAR and RAR'!$AA$16)+E42*'Hypothetical SAR and RAR'!$AA$16 -> 39.02988021 | F43: =F41*(1-'Hypothetical SAR and RAR'!$AA$16)+F42*'Hypothetical SAR and RAR'!$AA$16 -> 39.02988021 | G43: 0.1043478338 | H43: 0 | J43: 3 | K43: ='Hypothetical Res Bill Impact'!Q24 -> 18.94798314 | L43: ='Hypothetical Res Bill Impact'!R24 -> 71.48580122 | M43: ='Hypothetical Res Bill Impact'!S24 -> 23.35905116 | N43: ='Hypothetical Res Bill Impact'!T24 -> 81.14343361
J44: 0 | K44: ='Hypothetical Res Bill Impact'!Q25 -> 0 | L44: ='Hypothetical Res Bill Impact'!R25 -> 0 | M44: ='Hypothetical Res Bill Impact'!S25 -> 0 | N44: ='Hypothetical Res Bill Impact'!T25 -> 0
B45: Basic Bundled Residential Monthly Average Bills - Winter
D46: =$D$28 -> 2025-01-01 | E46: =$E$28 -> 2025-09-01 | F46: =F40 -> Proposed | G46: =G28 -> % Change over 1/1/2025 | H46: =$H$28 -> % Change over 9/1/2025
B47: Non-CARE | D47: =IF($D$3="All",'Hypothetical Res Bill Impact'!$D$47,(VLOOKUP($D$3,'Hypothetical Res Bill Impact'!$B$43:$J$46,3,FALSE))) -> 90.90105564 | E47: =IF($D$3="All",'Hypothetical Res Bill Impact'!$F$47,(VLOOKUP($D$3,'Hypothetical Res Bill Impact'!$B$43:$J$46,5,FALSE))) -> 101.1182684 | F47: =IF($D$3="All",'Hypothetical Res Bill Impact'!$H$47,(VLOOKUP($D$3,'Hypothetical Res Bill Impact'!$B$43:$J$46,7,FALSE))) -> 101.1182684 | G47: =$F47/D47-1 -> 0.1123992752 | H47: 0
B48: CARE | D48: =IF($D$3="All",'Hypothetical Res Bill Impact'!$D$57,(VLOOKUP($D$3,'Hypothetical Res Bill Impact'!$B$53:$J$56,3,FALSE))) -> 75.33571836 | E48: =IF($D$3="All",'Hypothetical Res Bill Impact'!$F$57,(VLOOKUP($D$3,'Hypothetical Res Bill Impact'!$B$53:$J$56,5,FALSE))) -> 83.94051702 | F48: =IF($D$3="All",'Hypothetical Res Bill Impact'!$H$57,(VLOOKUP($D$3,'Hypothetical Res Bill Impact'!$B$53:$J$56,7,FALSE))) -> 83.94051702 | G48: 0.1142193749 | H48: 0
B49: Total | D49: =D47*(1-'Hypothetical SAR and RAR'!$AA$16)+D48*'Hypothetical SAR and RAR'!$AA$16 -> 86.76832163 | E49: =E47*(1-'Hypothetical SAR and RAR'!$AA$16)+E48*'Hypothetical SAR and RAR'!$AA$16 -> 96.55742426 | F49: =F47*(1-'Hypothetical SAR and RAR'!$AA$16)+F48*'Hypothetical SAR and RAR'!$AA$16 -> 96.55742426 | G49: 0.1128188543 | H49: 0
B52: Basic Bundled Essential Use Residential Monthly Average Bills
D53: =D46 -> 2025-01-01 | E53: =E46 -> 2025-09-01 | F53: =F46 -> Proposed | G53: =$G$28 -> % Change over 1/1/2025 | H53: % Change over Authorized
B54: Essential Use - Non-CARE | D54: =((D60*$H$10)+(D66*$H$11))/12 -> 50.50206731 | E54: =((E60*$H$10)+(E66*$H$11))/12 -> 55.88015783 | F54: 55.88015783 | G54: =$F54/D54-1 -> 0.1064924825 | H54: 0
B55: Essential Use - CARE | D55: =((D61*$H$10)+(D67*$H$11))/12 -> 41.12753611 | E55: 45.57637335 | F55: 45.57637335 | G55: 0.1081717424 | H55: 0
B56: Total | D56: =((D62*$H$10)+(D68*$H$11))/12 -> 48.01304679 | E56: 53.14441239 | F56: 53.14441239 | G56: 0.1068744006 | H56: 0
J57: ='Res Bill Impact'!H19 -> Essential Usage
B58: Basic Bundled Essential Use Residential Monthly Average Bills - Summer | J58: Monthly Tier 1 Baseline Allowance -BASIC (th)
D59: =D53 -> 2025-01-01 | E59: =E53 -> 2025-09-01 | F59: =F53 -> Proposed | G59: =$G$28 -> % Change over 1/1/2025 | H59: % Change over Authorized | J59: Climate Zone | K59: Summer | L59: Winter
B60: Essential Use - Non-CARE | D60: =IF($D$3="All",'Hypothetical Res Bill Impact'!C67,(VLOOKUP($D$3,'Hypothetical Res Bill Impact'!$B$63:$J$66,2,FALSE))) -> 23.8431905 | E60: =IF($D$3="All",'Hypothetical Res Bill Impact'!E67,(VLOOKUP($D$3,'Hypothetical Res Bill Impact'!$B$63:$J$66,4,FALSE))) -> 26.0703505 | F60: =IF($D$3="All",'Hypothetical Res Bill Impact'!G67,(VLOOKUP($D$3,'Hypothetical Res Bill Impact'!$B$63:$J$66,6,FALSE))) -> 26.0703505 | G60: =$F60/D60-1 -> 0.09340864007 | H60: 0 | J60: =Zones -> 1 | K60: ='Hypothetical Res Bill Impact'!I22 -> 13 | L60: ='Hypothetical Res Bill Impact'!J22 -> 37.33333333
B61: Essential Use - CARE | D61: =IF($D$3="All",'Hypothetical Res Bill Impact'!C77,(VLOOKUP($D$3,'Hypothetical Res Bill Impact'!$B$73:$J$76,2,FALSE))) -> 18.86931687 | E61: =IF($D$3="All",'Hypothetical Res Bill Impact'!E77,(VLOOKUP($D$3,'Hypothetical Res Bill Impact'!$B$73:$J$76,4,FALSE))) -> 20.65104487 | F61: =IF($D$3="All",'Hypothetical Res Bill Impact'!G77,(VLOOKUP($D$3,'Hypothetical Res Bill Impact'!$B$73:$J$76,6,FALSE))) -> 20.65104487 | G61: 0.094424616 | H61: 0 | J61: 2 | K61: ='Hypothetical Res Bill Impact'!I23 -> 13 | L61: ='Hypothetical Res Bill Impact'!J23 -> 42.16666667
B62: Total | D62: =D60*(1-'Hypothetical SAR and RAR'!$AA$16)+D61*'Hypothetical SAR and RAR'!$AA$16 -> 22.52258329 | E62: =E60*(1-'Hypothetical SAR and RAR'!$AA$16)+E61*'Hypothetical SAR and RAR'!$AA$16 -> 24.63147717 | F62: =F60*(1-'Hypothetical SAR and RAR'!$AA$16)+F61*'Hypothetical SAR and RAR'!$AA$16 -> 24.63147717 | G62: 0.09363463584 | H62: 0 | J62: 3 | K62: ='Hypothetical Res Bill Impact'!I24 -> 13 | L62: ='Hypothetical Res Bill Impact'!J24 -> 65
J63: 0 | K63: ='Hypothetical Res Bill Impact'!I25 -> 0 | L63: ='Hypothetical Res Bill Impact'!J25 -> 0
B64: Basic Bundled Essential Use Residential Monthly Average Bills - Winter
D65: =D59 -> 2025-01-01 | E65: =E59 -> 2025-09-01 | F65: =F59 -> Proposed | G65: =$G$28 -> % Change over 1/1/2025 | H65: % Change over Authorized
B66: Essential Use - Non-CARE | D66: =IF($D$3="All",'Hypothetical Res Bill Impact'!D67,(VLOOKUP($D$3,'Hypothetical Res Bill Impact'!$B$63:$J$66,3,FALSE))) -> 77.16094412 | E66: =IF($D$3="All",'Hypothetical Res Bill Impact'!F67,(VLOOKUP($D$3,'Hypothetical Res Bill Impact'!$B$63:$J$66,5,FALSE))) -> 85.68996516 | F66: =IF($D$3="All",'Hypothetical Res Bill Impact'!H67,(VLOOKUP($D$3,'Hypothetical Res Bill Impact'!$B$63:$J$66,7,FALSE))) -> 85.68996516 | G66: =$F66/D66-1 -> 0.1105354676 | H66: 0
B67: Essential Use - CARE | D67: =IF($D$3="All",'Hypothetical Res Bill Impact'!D77,(VLOOKUP($D$3,'Hypothetical Res Bill Impact'!$B$73:$J$76,3,FALSE))) -> 63.38575534 | E67: =IF($D$3="All",'Hypothetical Res Bill Impact'!F77,(VLOOKUP($D$3,'Hypothetical Res Bill Impact'!$B$73:$J$76,5,FALSE))) -> 70.50170182 | F67: =IF($D$3="All",'Hypothetical Res Bill Impact'!H77,(VLOOKUP($D$3,'Hypothetical Res Bill Impact'!$B$73:$J$76,7,FALSE))) -> 70.50170182 | G67: 0.1122641269 | H67: 0
B68: Total | D68: =D66*(1-'Hypothetical SAR and RAR'!$AA$16)+D67*'Hypothetical SAR and RAR'!$AA$16 -> 73.50351029 | E68: =E66*(1-'Hypothetical SAR and RAR'!$AA$16)+E67*'Hypothetical SAR and RAR'!$AA$16 -> 81.6573476 | F68: =F66*(1-'Hypothetical SAR and RAR'!$AA$16)+F67*'Hypothetical SAR and RAR'!$AA$16 -> 81.6573476 | G68: 0.1109312641 | H68: 0
B71: Basic Bundled Typical Residential Monthly Average Bills
D72: =D65 -> 2025-01-01 | E72: =E65 -> 2025-09-01 | F72: =F65 -> Proposed | G72: =$G$28 -> % Change over 1/1/2025 | H72: % Change over Authorized
B73: 5-Year Average Usage - Non-CARE | D73: =((D79*$H$10)+(D85*$H$11))/12 -> 69.4628634 | E73: =((E79*$H$10)+(E85*$H$11))/12 -> 77.17058996 | F73: 77.17058996 | G73: =$F73/D73-1 -> 0.1109618319 | H73: 0
C74: 5-Year Average Usage - CARE | D74: =((D80*$H$10)+(D86*$H$11))/12 -> 56.54243652 | E74: 62.90694411 | F74: 62.90694411 | G74: 0.1125616082 | H74: 0
B75: Total | D75: =((D81*$H$10)+(D87*$H$11))/12 -> 66.03237637 | E75: 73.38346648 | F75: 73.38346648 | G75: 0.1113255423 | H75: 0 | J75: ='Hypothetical Res Bill Impact'!P27 -> Typical Bundled
J76: ='Hypothetical Res Bill Impact'!P28 -> 2020-2024 Recorded Data - Average Monthly Usage - ALL-BASIC th
B77: Basic Bundled Typical Residential Monthly Average Bills - Summer | J77: Climate Zone | K77: Summer | L77: Winter | M77: Summer | N77: Winter
D78: =D72 -> 2025-01-01 | E78: =E72 -> 2025-09-01 | F78: =F72 -> Proposed | G78: =$G$28 -> % Change over 1/1/2025 | H78: % Change over Authorized | K78: Non-CARE | M78: CARE
B79: 5-Year Average Usage - Non-CARE | D79: =IF($D$3="All",'Hypothetical Res Bill Impact'!C87,(VLOOKUP($D$3,'Hypothetical Res Bill Impact'!$B$83:$J$86,2,FALSE))) -> 38.44132254 | E79: =IF($D$3="All",'Hypothetical Res Bill Impact'!E87,(VLOOKUP($D$3,'Hypothetical Res Bill Impact'!$B$83:$J$86,4,FALSE))) -> 42.46209576 | F79: =IF($D$3="All",'Hypothetical Res Bill Impact'!G87,(VLOOKUP($D$3,'Hypothetical Res Bill Impact'!$B$83:$J$86,6,FALSE))) -> 42.46209576 | G79: =$F79/D79-1 -> 0.1045950805 | H79: 0 | J79: =Zones -> 1 | K79: ='Hypothetical Res Bill Impact'!Q31 -> 23.11491818 | L79: ='Hypothetical Res Bill Impact'!R31 -> 49.40758765 | M79: ='Hypothetical Res Bill Impact'!S31 -> 17.51725705 | N79: ='Hypothetical Res Bill Impact'!T31 -> 34.67605291
C80: 5-Year Average Usage - CARE | D80: =IF($D$3="All",'Hypothetical Res Bill Impact'!C97,(VLOOKUP($D$3,'Hypothetical Res Bill Impact'!$B$93:$J$96,2,FALSE))) -> 30.81599798 | E80: =IF($D$3="All",'Hypothetical Res Bill Impact'!E97,(VLOOKUP($D$3,'Hypothetical Res Bill Impact'!$B$93:$J$96,4,FALSE))) -> 34.08120639 | F80: =IF($D$3="All",'Hypothetical Res Bill Impact'!G97,(VLOOKUP($D$3,'Hypothetical Res Bill Impact'!$B$93:$J$96,6,FALSE))) -> 34.08120639 | G80: 0.105958224 | H80: 0 | J80: 2 | K80: ='Hypothetical Res Bill Impact'!Q32 -> 19.56195699 | L80: ='Hypothetical Res Bill Impact'!R32 -> 55.33374712 | M80: ='Hypothetical Res Bill Impact'!S32 -> 18.5317823 | N80: ='Hypothetical Res Bill Impact'!T32 -> 51.14470611
B81: Total | D81: =D79*(1-'Hypothetical SAR and RAR'!$AA$16)+D80*'Hypothetical SAR and RAR'!$AA$16 -> 36.41673177 | E81: =E79*(1-'Hypothetical SAR and RAR'!$AA$16)+E80*'Hypothetical SAR and RAR'!$AA$16 -> 40.23689589 | F81: =F79*(1-'Hypothetical SAR and RAR'!$AA$16)+F80*'Hypothetical SAR and RAR'!$AA$16 -> 40.23689589 | G81: 0.1049013444 | H81: 0 | J81: 3 | K81: ='Hypothetical Res Bill Impact'!Q33 -> 19.98866609 | L81: ='Hypothetical Res Bill Impact'!R33 -> 77.21481657 | M81: ='Hypothetical Res Bill Impact'!S33 -> 24.34162135 | N81: ='Hypothetical Res Bill Impact'!T33 -> 87.23331811
J82: 0 | K82: ='Hypothetical Res Bill Impact'!Q34 -> 0 | L82: ='Hypothetical Res Bill Impact'!R34 -> 0 | M82: ='Hypothetical Res Bill Impact'!S34 -> 0 | N82: ='Hypothetical Res Bill Impact'!T34 -> 0
B83: Basic Bundled Typical Residential Monthly Average Bills - Winter
D84: =D78 -> 2025-01-01 | E84: =E78 -> 2025-09-01 | F84: =F78 -> Proposed | G84: =$G$28 -> % Change over 1/1/2025 | H84: % Change over Authorized
B85: 5-Year Average Usage - Non-CARE | D85: =IF($D$3="All",'Hypothetical Res Bill Impact'!D87,(VLOOKUP($D$3,'Hypothetical Res Bill Impact'!$B$83:$J$86,3,FALSE))) -> 100.4844043 | E85: =IF($D$3="All",'Hypothetical Res Bill Impact'!F87,(VLOOKUP($D$3,'Hypothetical Res Bill Impact'!$B$83:$J$86,5,FALSE))) -> 111.8790842 | F85: =IF($D$3="All",'Hypothetical Res Bill Impact'!H87,(VLOOKUP($D$3,'Hypothetical Res Bill Impact'!$B$83:$J$86,7,FALSE))) -> 111.8790842 | G85: =$F85/D85-1 -> 0.1133974968 | H85: 0
C86: 5-Year Average Usage - CARE | D86: =IF($D$3="All",'Hypothetical Res Bill Impact'!D97,(VLOOKUP($D$3,'Hypothetical Res Bill Impact'!$B$93:$J$96,3,FALSE))) -> 82.26887506 | E86: =IF($D$3="All",'Hypothetical Res Bill Impact'!F97,(VLOOKUP($D$3,'Hypothetical Res Bill Impact'!$B$93:$J$96,5,FALSE))) -> 91.73268182 | F86: =IF($D$3="All",'Hypothetical Res Bill Impact'!H97,(VLOOKUP($D$3,'Hypothetical Res Bill Impact'!$B$93:$J$96,7,FALSE))) -> 91.73268182 | G86: 0.1150350815 | H86: 0
B87: Total | D87: =D85*(1-'Hypothetical SAR and RAR'!$AA$16)+D86*'Hypothetical SAR and RAR'!$AA$16 -> 95.64802097 | E87: =E85*(1-'Hypothetical SAR and RAR'!$AA$16)+E86*'Hypothetical SAR and RAR'!$AA$16 -> 106.5300371 | F87: =F85*(1-'Hypothetical SAR and RAR'!$AA$16)+F86*'Hypothetical SAR and RAR'!$AA$16 -> 106.5300371 | G87: 0.1137714716 | H87: 0

Sheet Hypothetical SAR and RAR
C2: Revenue Change ($000)
B3: =RevRecoveryMechanisms -> Core Procurement | C3: ='Hypothetical Summary'!D6 -> 0 | G3: Allocation
B4: Allocated Base Margin | C4: ='Hypothetical Summary'!D7 -> 0 | G4: =TRANSPOSE(RevRecoveryMechanisms) -> Core Procurement | H4: Allocated Base Margin | I4: Distribution | J4: ECPT adjusted | K4: Local Transmission | L4: SGIP | M4: GHG End User | N4: Public Purpose Programs | O4: Backbone Transmission | P4: 47% Res (LUAF, Other) | Q4: ECPT | R4: EPAM | S4: CFCA | T4: Non-Residential
B5: Distribution | C5: ='Hypothetical Summary'!D8 -> 0 | F5: Residential | G5: ='SAR and RAR'!G5 -> 0.6660172187 | H5: ='SAR and RAR'!H5 -> 0.708839031 | I5: ='SAR and RAR'!I5 -> 0.6095871975 | J5: ='SAR and RAR'!J5 -> 0.4012431755 | K5: ='SAR and RAR'!K5 -> 0.4207017225 | L5: ='SAR and RAR'!L5 -> 0.3707585355 | M5: ='SAR and RAR'!M5 -> 0.5437255755 | N5: ='SAR and RAR'!N5 -> 0.5526432166 | O5: ='SAR and RAR'!O5 -> 0 | P5: ='SAR and RAR'!P5 -> 0.4735382425 | Q5: ='SAR and RAR'!Q5 -> 0.2583309048 | R5: ='SAR and RAR'!R5 -> 0.708839031 | S5: ='SAR and RAR'!S5 -> 0.7082921542 | T5: ='SAR and RAR'!T5 -> 0
B6: ECPT adjusted | C6: ='Hypothetical Summary'!D9 -> 0
B7: Local Transmission | C7: ='Hypothetical Summary'!D10 -> 0 | G7: Revenue Change ($000) - System
B8: SGIP | C8: ='Hypothetical Summary'!D11 -> 0 | F8: w/Proposed | G8: =TRANSPOSE(RevRecoveryMechanisms) -> Core Procurement | H8: Allocated Base Margin | I8: Distribution | J8: ECPT adjusted | K8: Local Transmission | L8: SGIP | M8: GHG End User | N8: Public Purpose Programs | O8: Backbone Transmission | P8: 47% Res (LUAF, Other) | Q8: ECPT | R8: EPAM | S8: CFCA | T8: Non-Residential
B9: GHG End User | C9: ='Hypothetical Summary'!D12 -> 0 | F9: Residential | G9: =G5*G10 -> 0 | H9: =H5*H10 -> 0 | I9: =I5*I10 -> 0 | J9: 0 | K9: 0 | L9: 0 | M9: 0 | N9: 0 | O9: =O5*O10 -> 0 | P9: 0 | Q9: =Q5*Q10 -> 0 | R9: =R5*R10 -> 0 | S9: =S5*S10 -> 0 | T9: 0 | U9: =SUM(G9:T9) -> 0 | V9: Check
B10: Public Purpose Programs | C10: ='Hypothetical Summary'!D13 -> 0 | F10: Total System | G10: =C3 -> 0 | H10: =C4 -> 0 | I10: =C5 -> 0 | J10: =C6 -> 0 | K10: =C7 -> 0 | L10: =C8 -> 0 | M10: =C9 -> 0 | N10: =C10 -> 0 | O10: =C11 -> 0 | P10: =C12 -> 0 | Q10: =C13 -> 0 | R10: =C14 -> 0 | S10: =C15 -> 0 | T10: =C16 -> 0 | U10: =SUM(G10:T10) -> 0 | V10: =U10-C17 -> 0
B11: Backbone Transmission | C11: ='Hypothetical Summary'!D14 -> 0
B12: 47% Res (LUAF, Other) | C12: ='Hypothetical Summary'!D15 -> 0
B13: ECPT | C13: ='Hypothetical Summary'!D16 -> 0
B14: EPAM | C14: ='Hypothetical Summary'!D17 -> 0
B15: CFCA | C15: ='Hypothetical Summary'!D18 -> 0 | AA15: w/Proposed
B16: Non-Residential | C16: ='Hypothetical Summary'!D14 -> 0 | U16: Total UDC w/Proposed | W16: Commodity w/Proposed | Z16: % of CARE Sales (Bundled) | AA16: ='SAR and RAR'!AC15 -> 0.2655087991
B17: Total | C17: =SUM(C3:C16) -> 0 | G17: Revenue Split - Bundled | U17: Bundled Revenue Change | W17: Bundled Revenue Change
B18: CPUC Fee | C18: ='SAR and RAR'!D18 -> 0.0025 | G18: =TRANSPOSE(RevRecoveryMechanisms) -> Core Procurement | H18: Allocated Base Margin | I18: Distribution | J18: ECPT adjusted | K18: Local Transmission | L18: SGIP | M18: GHG End User | N18: Public Purpose Programs | O18: Backbone Transmission | P18: 47% Res (LUAF, Other) | Q18: ECPT | R18: EPAM | S18: CFCA | T18: Non-Residential | U18: Total | W18: Total
F19: Residential | G19: 1 | H19: 1 | I19: 1 | J19: 1 | K19: 1 | L19: 1 | M19: 1 | N19: 1 | O19: 1 | P19: 1 | Q19: 1 | R19: 1 | S19: 1 | T19: 0 | U19: =SUMPRODUCT(H9:S9,H19:S19) -> 0 | W19: =SUMPRODUCT(G9,G19) -> 0
F20: Total System | G20: 1 | H20: 1 | I20: 1 | J20: 1 | K20: 1 | L20: 1 | M20: 1 | N20: 1 | O20: 1 | P20: 1 | Q20: 1 | R20: 1 | S20: 1 | T20: 0 | U20: =SUMPRODUCT(H10:S10,H20:S20) -> 0 | W20: =SUMPRODUCT(G10,G20) -> 0
C22: ='SAR and RAR'!C22 -> CAP D.24-07-009 SALES DETERMINANTS SYSTEM NET (MTH) Average year Throughput | D22: ='SAR and RAR'!D22 -> CAP D.24-07-009 SALES DETERMINANTS BUNDLED (MTH)Average year throughput
B23: Residential | C23: ='SAR and RAR'!C23 -> 2185982.983 | D23: ='SAR and RAR'!D23 -> 2158593.606
B24: Total System | C24: ='SAR and RAR'!C24 -> 8461949.161 | D24: ='SAR and RAR'!D24 -> 3032625.674
F26: Bundled | P26: System (Bundled and Unbundled)
F27: =Summary!I3&" Authorized Sales Forecast" -> 2024 Authorized Sales Forecast | G27: ='SAR and RAR'!G27 -> 09/01/2025 Avg Rates(sales adj.) | H27: Proposed Avg Rates | I27: % Change | Q27: =F27 -> 2024 Authorized Sales Forecast | R27: =G27 -> 09/01/2025 Avg Rates(sales adj.) | S27: Proposed Avg Rates | T27: % Change
E28: Residential | F28: ='SAR and RAR'!F28 -> 2158593.606 | G28: 190.3749947 | H28: =(U19/C23*100)+(W19/D23*100)+G28 -> 190.3749947 | I28: =H28/G28-1 -> 0 | P28: Residential | Q28: ='SAR and RAR'!Q28 -> 2185982.983 | R28: 189.9684794 | S28: =U9/Q28*100+R28 -> 189.9684794 | T28: =S28/R28-1 -> 0
E29: Total System | F29: ='SAR and RAR'!F29 -> 3032625.674 | G29: 103.7739364 | H29: =(U20/C24*100)+(W20/D24*100)+G29 -> 103.7739364 | I29: =H29/G29-1 -> 0 | P29: Total System | Q29: ='SAR and RAR'!Q29 -> 8461949.161 | R29: 81.52632311 | S29: =U10/Q29*100+R29 -> 81.52632311 | T29: =S29/R29-1 -> 0

Sheet Hypothetical Res Bill Impact
E3: Schedule GR | P3: Schedule GR [CARE]
E4: ='Res Bill Impact'!E4 -> 2024 | F4: ='Res Bill Impact'!F4 -> 2025-09-01 | G4: ='Res Bill Impact'!G4 -> 2025-09-01 | H4: Proposed | I4: Proposed | P4: =SalesForecastYear -> 2024 | Q4: ='Res Bill Impact'!Q4 -> 2025-09-01 | R4: ='Res Bill Impact'!R4 -> 2025-09-01 | S4: Proposed | T4: Proposed
E5: Sales Forecast | F5: Rates | G5: Revenue | H5: Rates | I5: Revenue | P5: Sales Forecast | Q5: Rates | R5: Revenue | S5: Rates | T5: Revenue
D7: Baseline | E7: ='Res Bill Impact'!E7 -> 1106153.307 | F7: ='Res Bill Impact'!F7 -> 1.618296193 | G7: =F7*E7 -> 1790083.685 | H7: =(Y10/SUM(SUM(E7),F9/F7*SUM(E9),SUM(P7)*(1+(Q7/F7-1)),SUM(P9)*(1+(Q9/F9-1))*F9/F7)) -> 1.618296193 | I7: =E7*H7 -> 1790083.685 | O7: Baseline | P7: ='Res Bill Impact'!P7 -> 408227.7802 | Q7: ='Res Bill Impact'!Q7 -> 1.278349606 | R7: ='Res Bill Impact'!R7 -> 521857.8219 | S7: =H7*(1+(Q7/F7-1)) -> 1.278349606 | T7: =P7*S7 -> 521857.8219 | X7: Bundled Residential Rev Req
X8: Current | Y8: =(SUM(G7:G9)+SUM(R7:R9)) -> 3642859.261
D9: Non-Baseline | E9: ='Res Bill Impact'!E9 -> 490559.9158 | F9: ='Res Bill Impact'!F9 -> 2.099276193 | G9: =F9*E9 -> 1029820.752 | H9: =F9/F$7*H$7 -> 2.099276193 | I9: =E9*H9 -> 1029820.752 | O9: Non-Baseline | P9: ='Res Bill Impact'!P9 -> 181041.9805 | Q9: ='Res Bill Impact'!Q9 -> 1.663133606 | R9: ='Res Bill Impact'!R9 -> 301097.0019 | S9: =H9*(1+(Q9/F9-1)) -> 1.663133606 | T9: =P9*S9 -> 301097.0019 | X9: Change (Proposed) | Y9: ='Hypothetical SAR and RAR'!U9 -> 0
X10: Proposed (w/ Current Revenues) | Y10: =Y8+Y9 -> 3642859.261
E11: Non-CARE customers | P11: CARE Customers
D12: Fixed Charge | E12: =E13-P12 -> 4047089.348 | F12: 5 | G12: =F12*12*E12/1000 -> 242825.3609 | H12: 5 | I12: =(H12*12*E12)/1000 -> 242825.3609 | O12: Fixed Charge | P12: ='Res Bill Impact'!P12 -> 1799771 | Q12: =F12*(1-CAREDiscountPercent) -> 4 | R12: =Q12*12*P12/1000 -> 86389.008 | S12: =H12*(1-CAREDiscountPercent) -> 4 | T12: =(S12*12*P12)/1000 -> 86389.008
D13: Total Customers | E13: ='Res Bill Impact'!E13 -> 5846860.348
P18: ='Res Bill Impact'!P18 -> Basic Bundled
H19: ='Res Bill Impact'!H19 -> Essential Usage | P19: ='Res Bill Impact'!P19 -> 2024 Recorded Data - Average Monthly Usage - ALL-BASIC th
B20: SCHEDULE DR RATES ($/th) | H20: Monthly Tier 1 Baseline Allowance -BASIC (th) | P20: Climate Zone | Q20: Summer | R20: Winter | S20: Summer | T20: Winter | U20: Population Weight
B21: Rates | C21: ='Res Bill Impact'!C21 -> 2025-01-01 | D21: ='Res Bill Impact'!D21 -> 2025-09-01 | E21: Proposed | H21: Climate Zone | I21: Summer | J21: Winter | Q21: Non-CARE | S21: CARE | U21: Non-CARE | V21: CARE
A22: Summer | B22: Tier 1 | C22: 1.446976193 | D22: 1.618296193 | E22: =H7 -> 1.618296193 | H22: =Zones -> 1 | I22: ='Res Bill Impact'!I22 -> 13 | J22: ='Res Bill Impact'!J22 -> 37.33333333 | P22: =Zones -> 1 | Q22: ='Res Bill Impact'!Q22 -> 22.68195339 | R22: ='Res Bill Impact'!R22 -> 45.72507267 | S22: ='Res Bill Impact'!S22 -> 17.60404118 | T22: ='Res Bill Impact'!T22 -> 33.00381282 | U22: =SUM(Q22:R22)/SUM($Q$22:$R$25) -> 0.3004660927 | V22: =SUM(S22:T22)/SUM($S$22:$T$25) -> 0.2304864426
B23: Tier 2 | C23: 1.869296193 | D23: 2.099276193 | E23: =H9 -> 2.099276193 | H23: 2 | I23: ='Res Bill Impact'!I23 -> 13 | J23: ='Res Bill Impact'!J23 -> 42.16666667 | P23: 2 | Q23: ='Res Bill Impact'!Q23 -> 19.24320082 | R23: ='Res Bill Impact'!R23 -> 49.58569166 | S23: ='Res Bill Impact'!S23 -> 18.36758446 | T23: ='Res Bill Impact'!T23 -> 46.09184154 | U23: =SUM(Q23:R23)/SUM($Q$22:$R$25) -> 0.3023190684 | V23: =SUM(S23:T23)/SUM($S$22:$T$25) -> 0.2935715037
H24: 3 | I24: ='Res Bill Impact'!I24 -> 13 | J24: ='Res Bill Impact'!J24 -> 65 | P24: 3 | Q24: ='Res Bill Impact'!Q24 -> 18.94798314 | R24: ='Res Bill Impact'!R24 -> 71.48580122 | S24: ='Res Bill Impact'!S24 -> 23.35905116 | T24: ='Res Bill Impact'!T24 -> 81.14343361 | U24: =SUM(Q24:R24)/SUM($Q$22:$R$25) -> 0.3972148389 | V24: =SUM(S24:T24)/SUM($S$22:$T$25) -> 0.4759420537
A25: Winter | B25: Tier 1 | C25: =C22 -> 1.446976193 | D25: 1.618296193 | E25: 1.618296193 | H25: 0 | I25: ='Res Bill Impact'!I25 -> 0 | J25: ='Res Bill Impact'!J25 -> 0 | P25: 0 | Q25: ='Res Bill Impact'!Q25 -> 0 | R25: ='Res Bill Impact'!R25 -> 0 | S25: ='Res Bill Impact'!S25 -> 0 | T25: ='Res Bill Impact'!T25 -> 0 | U25: =SUM(Q25:R25)/SUM($Q$22:$R$25) -> 0 | V25: =SUM(S25:T25)/SUM($S$22:$T$25) -> 0
B26: Tier 2 | C26: 1.869296193 | D26: 2.099276193 | E26: 2.099276193
P27: ='Res Bill Impact'!P27 -> Typical Bundled
P28: ='Res Bill Impact'!P28 -> 2020-2024 Recorded Data - Average Monthly Usage - ALL-BASIC th
B29: SCHEDULE DR [CARE] ($/th) | P29: Climate Zone | Q29: Summer | R29: Winter | S29: Summer | T29: Winter | U29: Population Weight
B30: Rates | C30: =C21 -> 2025-01-01 | D30: =D21 -> 2025-09-01 | E30: Proposed | Q30: Non-CARE | S30: CARE | U30: Non-CARE | V30: CARE
A31: Summer | B31: Tier 1 | C31: 1.141293606 | D31: 1.278349606 | E31: =S7 -> 1.278349606 | P31: =Zones -> 1 | Q31: ='Res Bill Impact'!Q31 -> 23.11491818 | R31: ='Res Bill Impact'!R31 -> 49.40758765 | S31: ='Res Bill Impact'!S31 -> 17.51725705 | T31: ='Res Bill Impact'!T31 -> 34.67605291 | U31: =SUM(Q31:R31)/SUM($Q$31:$R$34) -> 0.2964680076 | V31: =SUM(S31:T31)/SUM($S$31:$T$34) -> 0.2235788669
B32: Tier 2 | C32: 1.479149606 | D32: 1.663133606 | E32: =S9 -> 1.663133606 | P32: 2 | Q32: ='Res Bill Impact'!Q32 -> 19.56195699 | R32: ='Res Bill Impact'!R32 -> 55.33374712 | S32: ='Res Bill Impact'!S32 -> 18.5317823 | T32: ='Res Bill Impact'!T32 -> 51.14470611 | U32: =SUM(Q32:R32)/SUM($Q$31:$R$34) -> 0.3061695114 | V32: =SUM(S32:T32)/SUM($S$31:$T$34) -> 0.2984710174
P33: 3 | Q33: ='Res Bill Impact'!Q33 -> 19.98866609 | R33: ='Res Bill Impact'!R33 -> 77.21481657 | S33: ='Res Bill Impact'!S33 -> 24.34162135 | T33: ='Res Bill Impact'!T33 -> 87.23331811 | U33: 0.3973624809 | V33: 0.4779501157
A34: Winter | B34: Tier 1 | C34: =C31 -> 1.141293606 | D34: 1.278349606 | E34: 1.278349606 | P34: 0 | Q34: ='Res Bill Impact'!Q34 -> 0 | R34: ='Res Bill Impact'!R34 -> 0 | S34: ='Res Bill Impact'!S34 -> 0 | T34: ='Res Bill Impact'!T34 -> 0 | U34: 0 | V34: 0
B35: Tier 2 | C35: 1.479149606 | D35: 1.663133606 | E35: 1.663133606
B39: Note: Bill inserts include CPUC fee in the calculations
C40: 2023 Recorded Average Basic Bundled Non-CARE Customer
C41: =C30 -> 2025-01-01 | E41: =D30 -> 2025-09-01 | G41: =E30 -> Proposed
C42: Summer | D42: Winter | E42: Summer | F42: Winter | G42: Summer | H42: Winter
B43: =Zones -> 1 | C43: =IF($Q22>$I22,C$22*$I22+C$23*($Q22-$I22),$Q22*C$22)+('Hypothetical SAR and RAR'!$C$18*$Q22)+IF(Q22>0,$F$12,0) -> 41.96583399 | D43: =IF($R22>$J22,C$25*$J22+C$26*($R22-$J22),$R22*C$25)+('Hypothetical SAR and RAR'!$C$18*$R22)+IF(R22>0,$F$12,0) -> 74.82140359 | E43: =IF($Q22>$I22,D$22*$I22+D$23*($Q22-$I22),$Q22*D$22)+('Hypothetical SAR and RAR'!$C$18*$Q22)+IF(Q22>0,$F$12,0) -> 46.41964963 | F43: =IF($R22>$J22,D$25*$J22+D$26*($R22-$J22),$R22*D$25)+('Hypothetical SAR and RAR'!$C$18*$R22)+IF(R22>0,$F$12,0) -> 83.14728247 | G43: =IF($Q22>$I22,E$22*$I22+E$23*($Q22-$I22),$Q22*E$22)+('Hypothetical SAR and RAR'!$C$18*$Q22)+IF(Q22>0,$H$12,0) -> 46.41964963 | H43: =IF($R22>$J22,E$25*$J22+E$26*($R22-$J22),$R22*E$25)+('Hypothetical SAR and RAR'!$C$18*$R22)+IF(R22>0,$H$12,0) -> 83.14728247
B44: 2 | C44: =IF($Q23>$I23,C$22*$I23+C$23*($Q23-$I23),$Q23*C$22)+('Hypothetical SAR and RAR'!$C$18*$Q23)+IF(Q23>0,$F$12,0) -> 35.52919002 | D44: =IF($R23>$J23,C$25*$J23+C$26*($R23-$J23),$R23*C$25)+('Hypothetical SAR and RAR'!$C$18*$R23)+IF(R23>0,$F$12,0) -> 80.0064822 | E44: =IF($Q23>$I23,D$22*$I23+D$23*($Q23-$I23),$Q23*D$22)+('Hypothetical SAR and RAR'!$C$18*$Q23)+IF(Q23>0,$F$12,0) -> 39.19216135 | F44: =IF($R23>$J23,D$25*$J23+D$26*($R23-$J23),$R23*D$25)+('Hypothetical SAR and RAR'!$C$18*$R23)+IF(R23>0,$F$12,0) -> 88.9367029 | G44: =IF($Q23>$I23,E$22*$I23+E$23*($Q23-$I23),$Q23*E$22)+('Hypothetical SAR and RAR'!$C$18*$Q23)+IF(Q23>0,$H$12,0) -> 39.19216135 | H44: =IF($R23>$J23,E$25*$J23+E$26*($R23-$J23),$R23*E$25)+('Hypothetical SAR and RAR'!$C$18*$R23)+IF(R23>0,$H$12,0) -> 88.9367029
B45: 3 | C45: =IF($Q24>$I24,C$22*$I24+C$23*($Q24-$I24),$Q24*C$22)+('Hypothetical SAR and RAR'!$C$18*$Q24)+IF(Q24>0,$F$12,0) -> 34.9766027 | D45: =IF($R24>$J24,C$25*$J24+C$26*($R24-$J24),$R24*C$25)+('Hypothetical SAR and RAR'!$C$18*$R24)+IF(R24>0,$F$12,0) -> 111.3560506 | E45: =IF($Q24>$I24,D$22*$I24+D$23*($Q24-$I24),$Q24*D$22)+('Hypothetical SAR and RAR'!$C$18*$Q24)+IF(Q24>0,$F$12,0) -> 38.57167986 | F45: =IF($R24>$J24,D$25*$J24+D$26*($R24-$J24),$R24*D$25)+('Hypothetical SAR and RAR'!$C$18*$R24)+IF(R24>0,$F$12,0) -> 123.9834551 | G45: =IF($Q24>$I24,E$22*$I24+E$23*($Q24-$I24),$Q24*E$22)+('Hypothetical SAR and RAR'!$C$18*$Q24)+IF(Q24>0,$H$12,0) -> 38.57167986 | H45: =IF($R24>$J24,E$25*$J24+E$26*($R24-$J24),$R24*E$25)+('Hypothetical SAR and RAR'!$C$18*$R24)+IF(R24>0,$H$12,0) -> 123.9834551
B46: 0 | C46: =IF($Q25>$I25,C$22*$I25+C$23*($Q25-$I25),$Q25*C$22)+('Hypothetical SAR and RAR'!$C$18*$Q25)+IF(Q25>0,$F$12,0) -> 0 | D46: =IF($R25>$J25,C$25*$J25+C$26*($R25-$J25),$R25*C$25)+('Hypothetical SAR and RAR'!$C$18*$R25)+IF(R25>0,$F$12,0) -> 0 | E46: =IF($Q25>$I25,D$22*$I25+D$23*($Q25-$I25),$Q25*D$22)+('Hypothetical SAR and RAR'!$C$18*$Q25)+IF(Q25>0,$F$12,0) -> 0 | F46: =IF($R25>$J25,D$25*$J25+D$26*($R25-$J25),$R25*D$25)+('Hypothetical SAR and RAR'!$C$18*$R25)+IF(R25>0,$F$12,0) -> 0 | G46: =IF($Q25>$I25,E$22*$I25+E$23*($Q25-$I25),$Q25*E$22)+('Hypothetical SAR and RAR'!$C$18*$Q25)+IF(Q25>0,$H$12,0) -> 0 | H46: =IF($R25>$J25,E$25*$J25+E$26*($R25-$J25),$R25*E$25)+('Hypothetical SAR and RAR'!$C$18*$R25)+IF(R25>0,$H$12,0) -> 0
B47: Total | C47: =SUMPRODUCT(C43:C46,$U$22:$U$25) -> 37.2436874 | D47: =SUMPRODUCT(D43:D46,$U$22:$U$25) -> 90.90105564 | E47: 41.11731206 | F47: 101.1182684 | G47: 41.11731206 | H47: 101.1182684
C50: 2023 Recorded Average Basic Bundled CARE Customer
C51: =C30 -> 2025-01-01 | E51: =D30 -> 2025-09-01 | G51: =E30 -> Proposed
C52: Summer | D52: Winter | E52: Summer | F52: Winter | G52: Summer | H52: Winter
B53: =Zones -> 1 | C53: =IF($S22>$I22,C$31*$I22+C$32*($S22-$I22),$S22*C$31)+('Hypothetical SAR and RAR'!$C$18*$S22)+IF(S22>0,$Q$12,0) -> 25.69089267 | D53: =IF($T22>$J22,C$34*$J22+C$35*($T22-$J22),$T22*C$34)+('Hypothetical SAR and RAR'!$C$18*$T22)+IF(T22>0,$Q$12,0) -> 41.74955007 | E53: =IF($S22>$I22,D$31*$I22+D$32*($S22-$I22),$S22*D$31)+('Hypothetical SAR and RAR'!$C$18*$S22)+IF(S22>0,$Q$12,0) -> 28.31969058 | F53: =IF($T22>$J22,D$34*$J22+D$35*($T22-$J22),$T22*D$34)+('Hypothetical SAR and RAR'!$C$18*$T22)+IF(T22>0,$Q$12,0) -> 46.27292063 | G53: =IF($S22>$I22,E$31*$I22+E$32*($S22-$I22),$S22*E$31)+('Hypothetical SAR and RAR'!$C$18*$S22)+IF(S22>0,$S$12,0) -> 28.31969058 | H53: =IF($T22>$J22,E$34*$J22+E$35*($T22-$J22),$T22*E$34)+('Hypothetical SAR and RAR'!$C$18*$T22)+IF(T22>0,$S$12,0) -> 46.27292063
B54: 2 | C54: =IF($S23>$I23,C$31*$I23+C$32*($S23-$I23),$S23*C$31)+('Hypothetical SAR and RAR'!$C$18*$S23)+IF(S23>0,$Q$12,0) -> 26.82219627 | D54: =IF($T23>$J23,C$34*$J23+C$35*($T23-$J23),$T23*C$34)+('Hypothetical SAR and RAR'!$C$18*$T23)+IF(T23>0,$Q$12,0) -> 58.04569751 | E54: =IF($S23>$I23,D$31*$I23+D$32*($S23-$I23),$S23*D$31)+('Hypothetical SAR and RAR'!$C$18*$S23)+IF(S23>0,$Q$12,0) -> 29.59147393 | F54: =IF($T23>$J23,D$34*$J23+D$35*($T23-$J23),$T23*D$34)+('Hypothetical SAR and RAR'!$C$18*$T23)+IF(T23>0,$Q$12,0) -> 64.54706155 | G54: =IF($S23>$I23,E$31*$I23+E$32*($S23-$I23),$S23*E$31)+('Hypothetical SAR and RAR'!$C$18*$S23)+IF(S23>0,$S$12,0) -> 29.59147393 | H54: =IF($T23>$J23,E$34*$J23+E$35*($T23-$J23),$T23*E$34)+('Hypothetical SAR and RAR'!$C$18*$T23)+IF(T23>0,$S$12,0) -> 64.54706155
B55: 3 | C55: =IF($S24>$I24,C$31*$I24+C$32*($S24-$I24),$S24*C$31)+('Hypothetical SAR and RAR'!$C$18*$S24)+IF(S24>0,$Q$12,0) -> 34.21780094 | D55: =IF($T24>$J24,C$34*$J24+C$35*($T24-$J24),$T24*C$34)+('Hypothetical SAR and RAR'!$C$18*$T24)+IF(T24>0,$Q$12,0) -> 102.2654964 | E55: =IF($S24>$I24,D$31*$I24+D$32*($S24-$I24),$S24*D$31)+('Hypothetical SAR and RAR'!$C$18*$S24)+IF(S24>0,$Q$12,0) -> 37.90542861 | F55: =IF($T24>$J24,D$34*$J24+D$35*($T24-$J24),$T24*D$34)+('Hypothetical SAR and RAR'!$C$18*$T24)+IF(T24>0,$Q$12,0) -> 114.1442699 | G55: =IF($S24>$I24,E$31*$I24+E$32*($S24-$I24),$S24*E$31)+('Hypothetical SAR and RAR'!$C$18*$S24)+IF(S24>0,$S$12,0) -> 37.90542861 | H55: =IF($T24>$J24,E$34*$J24+E$35*($T24-$J24),$T24*E$34)+('Hypothetical SAR and RAR'!$C$18*$T24)+IF(T24>0,$S$12,0) -> 114.1442699
B56: 0 | C56: =IF($S25>$I25,C$31*$I25+C$32*($S25-$I25),$S25*C$31)+('Hypothetical SAR and RAR'!$C$18*$S25)+IF(S25>0,$Q$12,0) -> 0 | D56: =IF($T25>$J25,C$34*$J25+C$35*($T25-$J25),$T25*C$34)+('Hypothetical SAR and RAR'!$C$18*$T25)+IF(T25>0,$Q$12,0) -> 0 | E56: =IF($S25>$I25,D$31*$I25+D$32*($S25-$I25),$S25*D$31)+('Hypothetical SAR and RAR'!$C$18*$S25)+IF(S25>0,$Q$12,0) -> 0 | F56: =IF($T25>$J25,D$34*$J25+D$35*($T25-$J25),$T25*D$34)+('Hypothetical SAR and RAR'!$C$18*$T25)+IF(T25>0,$Q$12,0) -> 0 | G56: =IF($S25>$I25,E$31*$I25+E$32*($S25-$I25),$S25*E$31)+('Hypothetical SAR and RAR'!$C$18*$S25)+IF(S25>0,$S$12,0) -> 0 | H56: =IF($T25>$J25,E$34*$J25+E$35*($T25-$J25),$T25*E$34)+('Hypothetical SAR and RAR'!$C$18*$T25)+IF(T25>0,$S$12,0) -> 0
B57: Total | C57: =SUMPRODUCT(C53:C56,$V$22:$V$25) -> 30.0813254 | D57: =SUMPRODUCT(D53:D56,$V$22:$V$25) -> 75.33571836 | E57: 33.25530577 | F57: 83.94051702 | G57: 33.25530577 | H57: 83.94051702
C60: Essential Usage Basic Bundled Non-CARE Customer
C61: =C51 -> 2025-01-01 | E61: =D30 -> 2025-09-01 | G61: =G51 -> Proposed
C62: Summer | D62: Winter | E62: Summer | F62: Winter | G62: Summer | H62: Winter
B63: =Zones -> 1 | C63: =($C$22*$I22)+('Hypothetical SAR and RAR'!$C$18*$I22)+IF(I22>0,$F$12,0) -> 23.8431905 | D63: =($C$25*$J22)+('Hypothetical SAR and RAR'!$C$18*$J22)+IF(J22>0,$F$12,0) -> 59.11377786 | E63: =($D$22*$I22)+('Hypothetical SAR and RAR'!$C$18*$I22)+IF(I22>0,$F$12,0) -> 26.0703505 | F63: =($D$25*$J22)+('Hypothetical SAR and RAR'!$C$18*$J22)+IF(J22>0,$F$12,0) -> 65.50972453 | G63: =($E$22*$I22)+('Hypothetical SAR and RAR'!$C$18*$I22)+IF(I22>0,$H$12,0) -> 26.0703505 | H63: =($E$25*$J22)+('Hypothetical SAR and RAR'!$C$18*$J22)+IF(J22>0,$H$12,0) -> 65.50972453
B64: 2 | C64: =($C$22*$I23)+('Hypothetical SAR and RAR'!$C$18*$I23)+IF(I23>0,$F$12,0) -> 23.8431905 | D64: =($C$25*$J23)+('Hypothetical SAR and RAR'!$C$18*$J23)+IF(J23>0,$F$12,0) -> 66.11957946 | E64: =($D$22*$I23)+('Hypothetical SAR and RAR'!$C$18*$I23)+IF(I23>0,$F$12,0) -> 26.0703505 | F64: =($D$25*$J23)+('Hypothetical SAR and RAR'!$C$18*$J23)+IF(J23>0,$F$12,0) -> 73.34357279 | G64: =($E$22*$I23)+('Hypothetical SAR and RAR'!$C$18*$I23)+IF(I23>0,$H$12,0) -> 26.0703505 | H64: =($E$25*$J23)+('Hypothetical SAR and RAR'!$C$18*$J23)+IF(J23>0,$H$12,0) -> 73.34357279
B65: 3 | C65: =($C$22*$I24)+('Hypothetical SAR and RAR'!$C$18*$I24)+IF(I24>0,$F$12,0) -> 23.8431905 | D65: =($C$25*$J24)+('Hypothetical SAR and RAR'!$C$18*$J24)+IF(J24>0,$F$12,0) -> 99.21595252 | E65: =($D$22*$I24)+('Hypothetical SAR and RAR'!$C$18*$I24)+IF(I24>0,$F$12,0) -> 26.0703505 | F65: =($D$25*$J24)+('Hypothetical SAR and RAR'!$C$18*$J24)+IF(J24>0,$F$12,0) -> 110.3517525 | G65: =($E$22*$I24)+('Hypothetical SAR and RAR'!$C$18*$I24)+IF(I24>0,$H$12,0) -> 26.0703505 | H65: =($E$25*$J24)+('Hypothetical SAR and RAR'!$C$18*$J24)+IF(J24>0,$H$12,0) -> 110.3517525
B66: 0 | C66: =($C$22*$I25)+('Hypothetical SAR and RAR'!$C$18*$I25)+IF(I25>0,$F$12,0) -> 0 | D66: =($C$25*$J25)+('Hypothetical SAR and RAR'!$C$18*$J25)+IF(J25>0,$F$12,0) -> 0 | E66: =($D$22*$I25)+('Hypothetical SAR and RAR'!$C$18*$I25)+IF(I25>0,$F$12,0) -> 0 | F66: =($D$25*$J25)+('Hypothetical SAR and RAR'!$C$18*$J25)+IF(J25>0,$F$12,0) -> 0 | G66: =($E$22*$I25)+('Hypothetical SAR and RAR'!$C$18*$I25)+IF(I25>0,$H$12,0) -> 0 | H66: =($E$25*$J25)+('Hypothetical SAR and RAR'!$C$18*$J25)+IF(J25>0,$H$12,0) -> 0
B67: Total | C67: =SUMPRODUCT(C63:C66,$U$22:$U$25) -> 23.8431905 | D67: =SUMPRODUCT(D63:D66,$U$22:$U$25) -> 77.16094412 | E67: =SUMPRODUCT(E63:E66,$U$22:$U$25) -> 26.0703505 | F67: 85.68996516 | G67: 26.0703505 | H67: 85.68996516
C70: Essential Usage Basic Bundled CARE Customer
C71: =C51 -> 2025-01-01 | E71: =E61 -> 2025-09-01 | G71: =G61 -> Proposed
C72: Summer | D72: Winter | E72: Summer | F72: Winter | G72: Summer | H72: Winter
B73: =Zones -> 1 | C73: =($C$31*$I22)+('Hypothetical SAR and RAR'!$C$18*$I22)+IF(I22>0,$Q$12,0) -> 18.86931687 | D73: =($C$34*$J22)+('Hypothetical SAR and RAR'!$C$18*$J22)+IF(J22>0,$Q$12,0) -> 46.70162795 | E73: =($D$31*$I22)+('Hypothetical SAR and RAR'!$C$18*$I22)+IF(I22>0,$Q$12,0) -> 20.65104487 | F73: =($D$34*$J22)+('Hypothetical SAR and RAR'!$C$18*$J22)+IF(J22>0,$Q$12,0) -> 51.81838528 | G73: =($E$31*$I22)+('Hypothetical SAR and RAR'!$C$18*$I22)+IF(I22>0,$S$12,0) -> 20.65104487 | H73: =($E$34*$J22)+('Hypothetical SAR and RAR'!$C$18*$J22)+IF(J22>0,$S$12,0) -> 51.81838528
B74: 2 | C74: =($C$31*$I23)+('Hypothetical SAR and RAR'!$C$18*$I23)+IF(I23>0,$Q$12,0) -> 18.86931687 | D74: =($C$34*$J23)+('Hypothetical SAR and RAR'!$C$18*$J23)+IF(J23>0,$Q$12,0) -> 52.22996371 | E74: =($D$31*$I23)+('Hypothetical SAR and RAR'!$C$18*$I23)+IF(I23>0,$Q$12,0) -> 20.65104487 | F74: =($D$34*$J23)+('Hypothetical SAR and RAR'!$C$18*$J23)+IF(J23>0,$Q$12,0) -> 58.00915837 | G74: =($E$31*$I23)+('Hypothetical SAR and RAR'!$C$18*$I23)+IF(I23>0,$S$12,0) -> 20.65104487 | H74: =($E$34*$J23)+('Hypothetical SAR and RAR'!$C$18*$J23)+IF(J23>0,$S$12,0) -> 58.00915837
B75: 3 | C75: =($C$31*$I24)+('Hypothetical SAR and RAR'!$C$18*$I24)+IF(I24>0,$Q$12,0) -> 18.86931687 | D75: =($C$34*$J24)+('Hypothetical SAR and RAR'!$C$18*$J24)+IF(J24>0,$Q$12,0) -> 78.34658437 | E75: =($D$31*$I24)+('Hypothetical SAR and RAR'!$C$18*$I24)+IF(I24>0,$Q$12,0) -> 20.65104487 | F75: =($D$34*$J24)+('Hypothetical SAR and RAR'!$C$18*$J24)+IF(J24>0,$Q$12,0) -> 87.25522437 | G75: =($E$31*$I24)+('Hypothetical SAR and RAR'!$C$18*$I24)+IF(I24>0,$S$12,0) -> 20.65104487 | H75: =($E$34*$J24)+('Hypothetical SAR and RAR'!$C$18*$J24)+IF(J24>0,$S$12,0) -> 87.25522437
B76: 0 | C76: =($C$31*$I25)+('Hypothetical SAR and RAR'!$C$18*$I25)+IF(I25>0,$Q$12,0) -> 0 | D76: =($C$34*$J25)+('Hypothetical SAR and RAR'!$C$18*$J25)+IF(J25>0,$Q$12,0) -> 0 | E76: =($D$31*$I25)+('Hypothetical SAR and RAR'!$C$18*$I25)+IF(I25>0,$Q$12,0) -> 0 | F76: =($D$34*$J25)+('Hypothetical SAR and RAR'!$C$18*$J25)+IF(J25>0,$Q$12,0) -> 0 | G76: =($E$31*$I25)+('Hypothetical SAR and RAR'!$C$18*$I25)+IF(I25>0,$S$12,0) -> 0 | H76: =($E$34*$J25)+('Hypothetical SAR and RAR'!$C$18*$J25)+IF(J25>0,$S$12,0) -> 0
B77: Total | C77: =SUMPRODUCT(C73:C76,$V$22:$V$25) -> 18.86931687 | D77: =SUMPRODUCT(D73:D76,$V$22:$V$25) -> 63.38575534 | E77: 20.65104487 | F77: 70.50170182 | G77: 20.65104487 | H77: 70.50170182
C80: 5-Year Average Monthly Usage Basic Bundled Non-CARE Customer
C81: =C71 -> 2025-01-01 | E81: =E71 -> 2025-09-01 | G81: =G71 -> Proposed
C82: Summer | D82: Winter | E82: Summer | F82: Winter | G82: Summer | H82: Winter
B83: =Zones -> 1 | C83: =IF($Q31>$I22,C$22*$I22+C$23*($Q31-$I22),$Q31*C$22)+('Hypothetical SAR and RAR'!$C$18*$Q31)+IF(Q31>0,$F$12,0) -> 42.77625584 | D83: =IF($R31>$J22,C$25*$J22+C$26*($R31-$J22),$R31*C$25)+('Hypothetical SAR and RAR'!$C$18*$R31)+IF(R31>0,$F$12,0) -> 81.71432113 | E83: =IF($Q31>$I22,D$22*$I22+D$23*($Q31-$I22),$Q31*D$22)+('Hypothetical SAR and RAR'!$C$18*$Q31)+IF(Q31>0,$F$12,0) -> 47.32964472 | F83: =IF($R31>$J22,D$25*$J22+D$26*($R31-$J22),$R31*D$25)+('Hypothetical SAR and RAR'!$C$18*$R31)+IF(R31>0,$F$12,0) -> 90.8871048 | G83: =IF($Q31>$I22,E$22*$I22+E$23*($Q31-$I22),$Q31*E$22)+('Hypothetical SAR and RAR'!$C$18*$Q31)+IF(Q31>0,$H$12,0) -> 47.32964472 | H83: =IF($R31>$J22,E$25*$J22+E$26*($R31-$J22),$R31*E$25)+('Hypothetical SAR and RAR'!$C$18*$R31)+IF(R31>0,$H$12,0) -> 90.8871048
B84: 2 | C84: =IF($Q32>$I23,C$22*$I23+C$23*($Q32-$I23),$Q32*C$22)+('Hypothetical SAR and RAR'!$C$18*$Q32)+IF(Q32>0,$F$12,0) -> 36.12583662 | D84: =IF($R32>$J23,C$25*$J23+C$26*($R32-$J23),$R32*C$25)+('Hypothetical SAR and RAR'!$C$18*$R32)+IF(R32>0,$F$12,0) -> 90.76567051 | E84: =IF($Q32>$I23,D$22*$I23+D$23*($Q32-$I23),$Q32*D$22)+('Hypothetical SAR and RAR'!$C$18*$Q32)+IF(Q32>0,$F$12,0) -> 39.86211549 | F84: =IF($R32>$J23,D$25*$J23+D$26*($R32-$J23),$R32*D$25)+('Hypothetical SAR and RAR'!$C$18*$R32)+IF(R32>0,$F$12,0) -> 101.017829 | G84: =IF($Q32>$I23,E$22*$I23+E$23*($Q32-$I23),$Q32*E$22)+('Hypothetical SAR and RAR'!$C$18*$Q32)+IF(Q32>0,$H$12,0) -> 39.86211549 | H84: =IF($R32>$J23,E$25*$J23+E$26*($R32-$J23),$R32*E$25)+('Hypothetical SAR and RAR'!$C$18*$R32)+IF(R32>0,$H$12,0) -> 101.017829
B85: 3 | C85: =IF($Q33>$I24,C$22*$I24+C$23*($Q33-$I24),$Q33*C$22)+('Hypothetical SAR and RAR'!$C$18*$Q33)+IF(Q33>0,$F$12,0) -> 36.92454908 | D85: =IF($R33>$J24,C$25*$J24+C$26*($R33-$J24),$R33*C$25)+('Hypothetical SAR and RAR'!$C$18*$R33)+IF(R33>0,$F$12,0) -> 122.0795997 | E85: =IF($Q33>$I24,D$22*$I24+D$23*($Q33-$I24),$Q33*D$22)+('Hypothetical SAR and RAR'!$C$18*$Q33)+IF(Q33>0,$F$12,0) -> 40.75896251 | F85: =IF($R33>$J24,D$25*$J24+D$26*($R33-$J24),$R33*D$25)+('Hypothetical SAR and RAR'!$C$18*$R33)+IF(R33>0,$F$12,0) -> 136.0245632 | G85: =IF($Q33>$I24,E$22*$I24+E$23*($Q33-$I24),$Q33*E$22)+('Hypothetical SAR and RAR'!$C$18*$Q33)+IF(Q33>0,$H$12,0) -> 40.75896251 | H85: =IF($R33>$J24,E$25*$J24+E$26*($R33-$J24),$R33*E$25)+('Hypothetical SAR and RAR'!$C$18*$R33)+IF(R33>0,$H$12,0) -> 136.0245632
B86: 0 | C86: =IF($Q34>$I25,C$22*$I25+C$23*($Q34-$I25),$Q34*C$22)+('Hypothetical SAR and RAR'!$C$18*$Q34)+IF(Q34>0,$F$12,0) -> 0 | D86: =IF($R34>$J25,C$25*$J25+C$26*($R34-$J25),$R34*C$25)+('Hypothetical SAR and RAR'!$C$18*$R34)+IF(R34>0,$F$12,0) -> 0 | E86: =IF($Q34>$I25,D$22*$I25+D$23*($Q34-$I25),$Q34*D$22)+('Hypothetical SAR and RAR'!$C$18*$Q34)+IF(Q34>0,$F$12,0) -> 0 | F86: =IF($R34>$J25,D$25*$J25+D$26*($R34-$J25),$R34*D$25)+('Hypothetical SAR and RAR'!$C$18*$R34)+IF(R34>0,$F$12,0) -> 0 | G86: =IF($Q34>$I25,E$22*$I25+E$23*($Q34-$I25),$Q34*E$22)+('Hypothetical SAR and RAR'!$C$18*$Q34)+IF(Q34>0,$H$12,0) -> 0 | H86: =IF($R34>$J25,E$25*$J25+E$26*($R34-$J25),$R34*E$25)+('Hypothetical SAR and RAR'!$C$18*$R34)+IF(R34>0,$H$12,0) -> 0
B87: Total | C87: =SUMPRODUCT(C83:C86,$U$22:$U$25) -> 38.44132254 | D87: =SUMPRODUCT(D83:D86,$U$22:$U$25) -> 100.4844043 | E87: 42.46209576 | F87: 111.8790842 | G87: 42.46209576 | H87: 111.8790842
C90: 5-Year Average Monthly Usage Basic Bundled CARE Customer
C91: =C81 -> 2025-01-01 | E91: =E81 -> 2025-09-01 | G91: =G81 -> Proposed
C92: Summer | D92: Winter | E92: Summer | F92: Winter | G92: Summer | H92: Winter
B93: =Zones -> 1 | C93: =IF($S31>$I22,C$31*$I22+C$32*($S31-$I22),$S31*C$31)+('Hypothetical SAR and RAR'!$C$18*$S31)+IF(S31>0,$Q$12,0) -> 25.56230901 | D93: =IF($T31>$J22,C$34*$J22+C$35*($T31-$J22),$T31*C$34)+('Hypothetical SAR and RAR'!$C$18*$T31)+IF(T31>0,$Q$12,0) -> 43.66224759 | E93: =IF($S31>$I22,D$31*$I22+D$32*($S31-$I22),$S31*D$31)+('Hypothetical SAR and RAR'!$C$18*$S31)+IF(S31>0,$Q$12,0) -> 28.17514003 | F93: =IF($T31>$J22,D$34*$J22+D$35*($T31-$J22),$T31*D$34)+('Hypothetical SAR and RAR'!$C$18*$T31)+IF(T31>0,$Q$12,0) -> 48.41480869 | G93: =IF($S31>$I22,E$31*$I22+E$32*($S31-$I22),$S31*E$31)+('Hypothetical SAR and RAR'!$C$18*$S31)+IF(S31>0,$S$12,0) -> 28.17514003 | H93: =IF($T31>$J22,E$34*$J22+E$35*($T31-$J22),$T31*E$34)+('Hypothetical SAR and RAR'!$C$18*$T31)+IF(T31>0,$S$12,0) -> 48.41480869
B94: 2 | C94: =IF($S32>$I23,C$31*$I23+C$32*($S32-$I23),$S32*C$31)+('Hypothetical SAR and RAR'!$C$18*$S32)+IF(S32>0,$Q$12,0) -> 27.06547994 | D94: =IF($T32>$J23,C$34*$J23+C$35*($T32-$J23),$T32*C$34)+('Hypothetical SAR and RAR'!$C$18*$T32)+IF(T32>0,$Q$12,0) -> 65.53227231 | E94: =IF($S32>$I23,D$31*$I23+D$32*($S32-$I23),$S32*D$31)+('Hypothetical SAR and RAR'!$C$18*$S32)+IF(S32>0,$Q$12,0) -> 29.86496737 | F94: =IF($T32>$J23,D$34*$J23+D$35*($T32-$J23),$T32*D$34)+('Hypothetical SAR and RAR'!$C$18*$T32)+IF(T32>0,$Q$12,0) -> 72.96328259 | G94: =IF($S32>$I23,E$31*$I23+E$32*($S32-$I23),$S32*E$31)+('Hypothetical SAR and RAR'!$C$18*$S32)+IF(S32>0,$S$12,0) -> 29.86496737 | H94: =IF($T32>$J23,E$34*$J23+E$35*($T32-$J23),$T32*E$34)+('Hypothetical SAR and RAR'!$C$18*$T32)+IF(T32>0,$S$12,0) -> 72.96328259
B95: 3 | C95: =IF($S33>$I24,C$31*$I24+C$32*($S33-$I24),$S33*C$31)+('Hypothetical SAR and RAR'!$C$18*$S33)+IF(S33>0,$Q$12,0) -> 35.67362567 | D95: =IF($T33>$J24,C$34*$J24+C$35*($T33-$J24),$T33*C$34)+('Hypothetical SAR and RAR'!$C$18*$T33)+IF(T33>0,$Q$12,0) -> 111.2885714 | E95: =IF($S33>$I24,D$31*$I24+D$32*($S33-$I24),$S33*D$31)+('Hypothetical SAR and RAR'!$C$18*$S33)+IF(S33>0,$Q$12,0) -> 39.54203054 | F95: =IF($T33>$J24,D$34*$J24+D$35*($T33-$J24),$T33*D$34)+('Hypothetical SAR and RAR'!$C$18*$T33)+IF(T33>0,$Q$12,0) -> 124.2877862 | G95: =IF($S33>$I24,E$31*$I24+E$32*($S33-$I24),$S33*E$31)+('Hypothetical SAR and RAR'!$C$18*$S33)+IF(S33>0,$S$12,0) -> 39.54203054 | H95: =IF($T33>$J24,E$34*$J24+E$35*($T33-$J24),$T33*E$34)+('Hypothetical SAR and RAR'!$C$18*$T33)+IF(T33>0,$S$12,0) -> 124.2877862
B96: 0 | C96: =IF($S34>$I25,C$31*$I25+C$32*($S34-$I25),$S34*C$31)+('Hypothetical SAR and RAR'!$C$18*$S34)+IF(S34>0,$Q$12,0) -> 0 | D96: =IF($T34>$J25,C$34*$J25+C$35*($T34-$J25),$T34*C$34)+('Hypothetical SAR and RAR'!$C$18*$T34)+IF(T34>0,$Q$12,0) -> 0 | E96: =IF($S34>$I25,D$31*$I25+D$32*($S34-$I25),$S34*D$31)+('Hypothetical SAR and RAR'!$C$18*$S34)+IF(S34>0,$Q$12,0) -> 0 | F96: =IF($T34>$J25,D$34*$J25+D$35*($T34-$J25),$T34*D$34)+('Hypothetical SAR and RAR'!$C$18*$T34)+IF(T34>0,$Q$12,0) -> 0 | G96: =IF($S34>$I25,E$31*$I25+E$32*($S34-$I25),$S34*E$31)+('Hypothetical SAR and RAR'!$C$18*$S34)+IF(S34>0,$S$12,0) -> 0 | H96: =IF($T34>$J25,E$34*$J25+E$35*($T34-$J25),$T34*E$34)+('Hypothetical SAR and RAR'!$C$18*$T34)+IF(T34>0,$S$12,0) -> 0
B97: Total | C97: =SUMPRODUCT(C93:C96,$V$22:$V$25) -> 30.81599798 | D97: =SUMPRODUCT(D93:D96,$V$22:$V$25) -> 82.26887506 | E97: 34.08120639 | F97: 91.73268182 | G97: 34.08120639 | H97: 91.73268182

Sheet SetUp
C4: Current Quarter Effective Rate Date | D4: 2025-09-01 | F4: Zones | H4: Revenue Recovery Mechanisms | J4: Years Available for Rate Impact | K4: Procurement Rate Assumption
C5: Beginning of Year Effecive Rate Date | D5: 2025-01-01 | F5: 1 | H5: Core Procurement | J5: 2025 | K5: 0.3467433333
C6: Care Discount % | D6: 0.2 | F6: 2 | H6: Allocated Base Margin | J6: =J5+1 -> 2026 | K6: =K5*(1+L6) -> 0.3814176667 | L6: 0.1
C7: Proposed Residential Fixed Charge | D7: 5 | F7: 3 | H7: Distribution | J7: =J6+1 -> 2027 | K7: 0.4195594333 | L7: 0.1
H8: ECPT adjusted | J8: 2028 | K8: 0.4615153767 | L8: 0.1
F9: All | H9: Local Transmission | J9: 2029 | K9: 0.5076669143 | L9: 0.1
H10: SGIP
H11: GHG End User | J11: =J5-1 -> 2024 | K11: 0.3507425
C12: Regulatory Fee | D12: 0.0025 | H12: Public Purpose Programs
H13: Backbone Transmission
F14: Other Revenues | H14: 47% Res (LUAF, Other)
F15: and Balancing | H15: ECPT
F16: Accouns | H16: EPAM
H17: CFCA
H18: Non-Residential
H19: Storage
H22: Procurement
H23: Customer Costs
H24: Medium Pressure Distribution
H25: High Pressure Distribution
H26: Local Transmission
H27: Storage
H28: GHG Revenue
H29: Other Balancing Acounts
H30: NGV Costs
H31: Backbone Transmisson
H32: Public Purpose Programs
